Authority,Department,Spending Area,Expense Type,Posting Date,Reference,Amount,Supplier
OXFORDSHIRE CC,"CHILDRENS, YOUNG PEOPLE AND FAMILIES",CHILDREN IN CARE NON-STAFFING - CENTRL 2,PAYMENT TO GOVERNMENT DEPARTMENTS,28/07/2023,9015059768,58.5,HM PASSPORT OFFICE
OXFORDSHIRE CC,SOCIAL AND COMMUNITY SERVICES,HOLTON SITE,CATERING PROVISIONS,28/07/2023,9015059776,12.65,MILK AND MORE (RECUR
OXFORDSHIRE CC,SOCIAL AND COMMUNITY SERVICES,CSS - OXFORD,CATERING PROVISIONS,28/07/2023,9015059826,67.86,ALDI STORES 775-142
OXFORDSHIRE CC,"CHILDRENS, YOUNG PEOPLE AND FAMILIES",THAME E&A HOME,SUBSCRIPTIONS,28/07/2023,9015059812,3.95,SPLASHDOWN POOLE
OXFORDSHIRE CC,"CHILDRENS, YOUNG PEOPLE AND FAMILIES",THAME E&A HOME,FURNITURE,28/07/2023,9015059912,46,DUNELM LTD
OXFORDSHIRE CC,"CHILDRENS, YOUNG PEOPLE AND FAMILIES","	LEAVING CARE NORTH",ENTERTAINMENT EXPENSES,28/07/2023,9015060012,19,THE LIGHT CINEMAS BANB
OXFORDSHIRE CC,"CHILDRENS, YOUNG PEOPLE AND FAMILIES",DIDCOT MOVE-ON HOME,CATERING PROVISIONS,28/07/2023,9015059808,13.26,SAINSBURYS S/MKTS
OXFORDSHIRE CC,CORPORATE CORE,LIBRARY COLLECTIONS,"BOOKS, DVDS AND CDS",28/07/2023,9015059802,505.39,OVERDRIVE DIST
OXFORDSHIRE CC,ENVIRONMENT AND ECONOMY,WITNEY LIBRARY,"NEWSPAPERS, PERIODICALS AND PUBLICATIONS",28/07/2023,9015059818,29.82,PPOINT_ NEWSLINK WITNE
OXFORDSHIRE CC,SOCIAL AND COMMUNITY SERVICES,FLEET OPERATIONS,CATERING PROVISIONS,28/07/2023,9015059804,18.4,MILK AND MORE (RECUR
OXFORDSHIRE CC,"CHILDRENS, YOUNG PEOPLE AND FAMILIES",THAME E&A HOME,CATERING PROVISIONS,28/07/2023,9015059814,4.4,CANDY CABIN
OXFORDSHIRE CC,SOCIAL AND COMMUNITY SERVICES,CSS WITNEY,MATERIALS,28/07/2023,9015059870,8.99,AMAZON PRIME IA1430XB5
OXFORDSHIRE CC,ENVIRONMENT AND ECONOMY,HOME LIBRARY SERVICE,CLOTHING AND UNIFORMS,28/07/2023,9015059864,403.35,MUNRO VALETING SUPPLIE
OXFORDSHIRE CC,"CHILDRENS, YOUNG PEOPLE AND FAMILIES",PAUSE PROGRAMME,HARDWARE AND CROCKERY,28/07/2023,9015059858,5.98,ROOT ONE LIMITED
OXFORDSHIRE CC,SOCIAL AND COMMUNITY SERVICES,CSS - OXFORD,MATERIALS,28/07/2023,9015059878,56.97,AMZNMKTPLACE
OXFORDSHIRE CC,"CHILDRENS, YOUNG PEOPLE AND FAMILIES","	LOOKED AFTER CITY 2",PAYMENTS TO TRANSPORT OPERATORS,28/07/2023,9015059890,7.95,TRAINLINE
OXFORDSHIRE CC,"CHILDRENS, YOUNG PEOPLE AND FAMILIES","	LOOKED AFTER CITY 2",OTHER TRANSPORT ARRANGEMENTS,28/07/2023,9015059898,36,SUMUP   TAXI
OXFORDSHIRE CC,"CHILDRENS, YOUNG PEOPLE AND FAMILIES","	LOOKED AFTER CITY 2",PAYMENTS TO TRANSPORT OPERATORS,28/07/2023,9015059892,6.32,TRAINLINE
OXFORDSHIRE CC,ENVIRONMENT AND ECONOMY,BICESTER LIBRARY,CATERING PROVISIONS,28/07/2023,9015059832,27,SAINSBURYS S/MKTS
OXFORDSHIRE CC,"CHILDRENS, YOUNG PEOPLE AND FAMILIES",THAME E&A HOME,RESIDENTIAL ACTIVITIES,28/07/2023,9015059816,20.58,SANDFORD HOLIDAY PARK
OXFORDSHIRE CC,"CHILDRENS, YOUNG PEOPLE AND FAMILIES","	LEAVING CARE CITY 1",OTHER TRANSPORT ARRANGEMENTS,28/07/2023,9015059806,4.6,MOREBUS
OXFORDSHIRE CC,"CHILDRENS, YOUNG PEOPLE AND FAMILIES",THAME E&A HOME,RESIDENTIAL ACTIVITIES,28/07/2023,9015059820,4.99,SANDFORD HOLIDAY PARK
OXFORDSHIRE CC,"CHILDRENS, YOUNG PEOPLE AND FAMILIES",THAME E&A HOME,RESIDENTIAL ACTIVITIES,28/07/2023,9015059824,39.93,SANDFORD HOLIDAY PARK
OXFORDSHIRE CC,"CHILDRENS, YOUNG PEOPLE AND FAMILIES",FIELDWORK UASC,PAYMENTS TO TRANSPORT OPERATORS,28/07/2023,9015059856,177.6,BICESTER VIL SSTP
OXFORDSHIRE CC,"CHILDRENS, YOUNG PEOPLE AND FAMILIES",KINGFISHER,ENTERTAINMENT EXPENSES,28/07/2023,9015059854,10,HOLLYWOOD BOWL
OXFORDSHIRE CC,ENVIRONMENT AND ECONOMY,HOME LIBRARY SERVICE,EQUIPMENT,28/07/2023,9015059866,15.71,BIGDUG LIMITED
OXFORDSHIRE CC,"CHILDRENS, YOUNG PEOPLE AND FAMILIES",KINGFISHER,ENTERTAINMENT EXPENSES,28/07/2023,9015059852,7.25,HOLLYWOOD BOWL
OXFORDSHIRE CC,SOCIAL AND COMMUNITY SERVICES,CSS WITNEY,CATERING PROVISIONS,28/07/2023,9015059872,19.03,CO-OP GROUP 070582
OXFORDSHIRE CC,"CHILDRENS, YOUNG PEOPLE AND FAMILIES",DIDCOT MOVE-ON HOME,CATERING PROVISIONS,28/07/2023,9015059860,28.1,ALDI 99 775
OXFORDSHIRE CC,SOCIAL AND COMMUNITY SERVICES,CSS WITNEY,MATERIALS,28/07/2023,9015059868,4.05,POUNDLAND LTD - 1912
OXFORDSHIRE CC,"CHILDRENS, YOUNG PEOPLE AND FAMILIES",WITNEY,VEHICLE FUEL,28/07/2023,9015059874,9.15,TESCO PFS 3418
OXFORDSHIRE CC,CORPORATE CORE,BUSINESS INTELLECTUAL PROPERTY CENTRE,CATERING,28/07/2023,9015059876,25,BENITOS HAT
OXFORDSHIRE CC,"CHILDRENS, YOUNG PEOPLE AND FAMILIES",NTH EARLY HELP-BCSTR,CATERING,28/07/2023,9015059882,19.55,MNK TREACLE S TEA ROOM
OXFORDSHIRE CC,"CHILDRENS, YOUNG PEOPLE AND FAMILIES","	LOOKED AFTER CITY 2",OTHER TRANSPORT ARRANGEMENTS,28/07/2023,9015059896,36,SUMUP   TAXI
OXFORDSHIRE CC,"CHILDRENS, YOUNG PEOPLE AND FAMILIES","	LOOKED AFTER CITY 2",PAYMENTS TO TRANSPORT OPERATORS,28/07/2023,9015059894,3.97,TRAINLINE
OXFORDSHIRE CC,SOCIAL AND COMMUNITY SERVICES,"	MUSEUMS COLLECTIONS",CATERING PROVISIONS,28/07/2023,9015059888,4.62,MILK AND MORE (RECUR
OXFORDSHIRE CC,SOCIAL AND COMMUNITY SERVICES,CSS - OXFORD,HIRED AND CONTRACTED SERVICES,28/07/2023,9015059880,229.2,RENTOKIL INITIAL PEST
OXFORDSHIRE CC,ENVIRONMENT AND ECONOMY,BICESTER LIBRARY,MATERIALS,28/07/2023,9015059830,6,POUNDLAND LTD - 1505
OXFORDSHIRE CC,"CHILDRENS, YOUNG PEOPLE AND FAMILIES",CHILDREN IN CARE NON-STAFFING - NORTH,CLOTHING AND UNIFORMS,28/07/2023,9015059828,47.59,BOOHOO.COM UK LTD
OXFORDSHIRE CC,"CHILDRENS, YOUNG PEOPLE AND FAMILIES",KINGFISHER,HOSPITALITY EXPENSES,28/07/2023,9015059848,2.8,TANDEM
OXFORDSHIRE CC,"CHILDRENS, YOUNG PEOPLE AND FAMILIES",FAMILY SOLUTIONS PLUS NON-STAFF - NORTH,NON-STAFF SUBSISTENCE AND EXPENSES,28/07/2023,9015059948,40,CS MORRISONS GIFT CARD
OXFORDSHIRE CC,"CHILDRENS, YOUNG PEOPLE AND FAMILIES",KINGFISHER,PAYMENTS TO TRANSPORT OPERATORS,28/07/2023,9015059956,37.4,GWR DIDCOT PKWY TO
OXFORDSHIRE CC,"CHILDRENS, YOUNG PEOPLE AND FAMILIES",UASC 16&17,OTHER EXPENSES,28/07/2023,9015059964,11.94,HEADINGTON BUTCHERS AN
OXFORDSHIRE CC,"CHILDRENS, YOUNG PEOPLE AND FAMILIES",KINGFISHER,OTHER TRANSPORT ARRANGEMENTS,28/07/2023,9015059954,7.2,DIDCOT PARKWAY RAILWAY
OXFORDSHIRE CC,"CHILDRENS, YOUNG PEOPLE AND FAMILIES",UASC 16&17,OTHER EXPENSES,28/07/2023,9015059962,16.24,CO-OPERATIVE FOOD
OXFORDSHIRE CC,"CHILDRENS, YOUNG PEOPLE AND FAMILIES",HOUSE PROJECT,MATERIALS,28/07/2023,9015059950,7.5,AMZNMKTPLACE
OXFORDSHIRE CC,ENVIRONMENT AND ECONOMY,"	TREE MAINT OPS",RECRUTIMENT EXPENSES (EXCL. ADVERTISING),28/07/2023,9015059958,148.8,WWW.HORTEJOBS.COM
OXFORDSHIRE CC,SOCIAL AND COMMUNITY SERVICES,"	MTFC",SUBSCRIPTIONS,28/07/2023,9015059966,82.5,FUSION LIFESTYLE
OXFORDSHIRE CC,SOCIAL AND COMMUNITY SERVICES,"	MTFC",CATERING PROVISIONS,28/07/2023,9015059970,8.7,SAINSBURYS S/MKTS
OXFORDSHIRE CC,"CHILDRENS, YOUNG PEOPLE AND FAMILIES",40 THE MOORS,OTHER TRANSPORT ARRANGEMENTS,28/07/2023,9015059996,4.4,WESTGATE OXFORD CAR PA
OXFORDSHIRE CC,"CHILDRENS, YOUNG PEOPLE AND FAMILIES",EYNSHAM,CATERING,28/07/2023,9015060004,10,CHURROS
OXFORDSHIRE CC,"CHILDRENS, YOUNG PEOPLE AND FAMILIES","	LEAVING CARE NORTH",ENTERTAINMENT EXPENSES,28/07/2023,9015060014,11.99,THE LIGHT CINEMAS BANB
OXFORDSHIRE CC,"CHILDRENS, YOUNG PEOPLE AND FAMILIES",EYNSHAM,CATERING,28/07/2023,9015060006,3.75,PYD TOMMI'S OXFORD
OXFORDSHIRE CC,"CHILDRENS, YOUNG PEOPLE AND FAMILIES","	LEAVING CARE NORTH",ENTERTAINMENT EXPENSES,28/07/2023,9015060016,5,THE LIGHT CINEMAS BANB
OXFORDSHIRE CC,"CHILDRENS, YOUNG PEOPLE AND FAMILIES",40 THE MOORS,POCKET MONEY (PAID TO CHILDREN),28/07/2023,9015059998,10,AMAZON.CO.UK YM6GQ0IM5
OXFORDSHIRE CC,"CHILDRENS, YOUNG PEOPLE AND FAMILIES","	LEAVING CARE NORTH",CATERING PROVISIONS,28/07/2023,9015060020,1.25,NYA LIGHT CINEMAS (HOL
OXFORDSHIRE CC,"CHILDRENS, YOUNG PEOPLE AND FAMILIES",EYNSHAM,CATERING PROVISIONS,28/07/2023,9015060002,1.49,SPAR EYNSHAM
OXFORDSHIRE CC,"CHILDRENS, YOUNG PEOPLE AND FAMILIES",FIELDWORK UASC,OTHER TRANSPORT ARRANGEMENTS,28/07/2023,9015060010,4.5,STGCOACH/CTYLINK
OXFORDSHIRE CC,"CHILDRENS, YOUNG PEOPLE AND FAMILIES",EYNSHAM,OTHER TRANSPORT ARRANGEMENTS,28/07/2023,9015060000,4.8,WESTGATE OXFORD CAR PA
OXFORDSHIRE CC,CORPORATE CORE,"	LEGAL SERVICES",LEGAL COSTS,28/07/2023,9015060008,11,OXFORDSHIRE CC WEB1
OXFORDSHIRE CC,"CHILDRENS, YOUNG PEOPLE AND FAMILIES","	LEAVING CARE NORTH",CATERING PROVISIONS,28/07/2023,9015060018,1.25,NYA LIGHT CINEMAS (HOL
OXFORDSHIRE CC,SOCIAL AND COMMUNITY SERVICES,BICESTER LIBRARY,STATIONERY,28/07/2023,9015059926,18,ZETTLE_ DANNY BOY TRAD
OXFORDSHIRE CC,"CHILDRENS, YOUNG PEOPLE AND FAMILIES",EYNSHAM,MATERIALS,28/07/2023,9015059934,14.99,AMZNMKTPLACE
OXFORDSHIRE CC,CORPORATE CORE,,STATIONERY,28/07/2023,9015059942,304.1,LYRECO UK LTD
OXFORDSHIRE CC,"CHILDRENS, YOUNG PEOPLE AND FAMILIES",KINGFISHER,CATERING,28/07/2023,9015059952,32.75,COTTONCANDY
OXFORDSHIRE CC,"CHILDRENS, YOUNG PEOPLE AND FAMILIES","	SM QUALITY ASSURANCE",MATERIALS,28/07/2023,9015059960,20,WWW.BOOSTPOWER.CO.UK
OXFORDSHIRE CC,SOCIAL AND COMMUNITY SERVICES,"	MTFC",CATERING,28/07/2023,9015059968,12.45,COSTA COFFEE-HENLEY ON
OXFORDSHIRE CC,"CHILDRENS, YOUNG PEOPLE AND FAMILIES",FSP NON-STAFFING - CENTRAL,CATERING,28/07/2023,9015060046,10.9,THAME STARBUCKS
OXFORDSHIRE CC,"CHILDRENS, YOUNG PEOPLE AND FAMILIES",FSP NON-STAFFING - CENTRAL,OTHER TRANSPORT ARRANGEMENTS,28/07/2023,9015060054,2,STGCOACH/CTYLINK
OXFORDSHIRE CC,ENVIRONMENT AND ECONOMY,MAINTENANCE STAFF,EQUIPMENT,28/07/2023,9015059748,19.99,AMZNMKTPLACE
OXFORDSHIRE CC,"CHILDRENS, YOUNG PEOPLE AND FAMILIES","	LEAVING CARE SOUTH",PAYMENTS TO TRANSPORT OPERATORS,28/07/2023,9015060060,88.64,TRAINLINE
OXFORDSHIRE CC,COMMUNITY SAFETY,ON ST PARK OXFD SPA,MATERIALS,28/07/2023,9015059756,9.99,AMAZON.CO.UK RF5XA5HW5
OXFORDSHIRE CC,"CHILDRENS, YOUNG PEOPLE AND FAMILIES","	LEAVING CARE CITY 2",OTHER TRANSPORT ARRANGEMENTS,28/07/2023,9015059764,12,APCOA -READING STATION
OXFORDSHIRE CC,"CHILDRENS, YOUNG PEOPLE AND FAMILIES",FSP NON-STAFFING - CENTRAL,OTHER TRANSPORT ARRANGEMENTS,28/07/2023,9015060048,2,OXFORD BUS COMPANY
OXFORDSHIRE CC,"CHILDRENS, YOUNG PEOPLE AND FAMILIES",CSS - ABINGDON,TECHNICAL AND PROFESSIONAL CONSULTANT F,28/07/2023,9015060056,372.7,KOLLER ENGINEERING LIM
OXFORDSHIRE CC,ENVIRONMENT AND ECONOMY,HARD FM,PREMISES REPAIRS,28/07/2023,9015059744,21.9,CITY ELECTRICAL FA
OXFORDSHIRE CC,"CHILDRENS, YOUNG PEOPLE AND FAMILIES",THAME E&A HOME,CLOTHING AND UNIFORMS,28/07/2023,9015059752,111.5,PRIMARK
OXFORDSHIRE CC,SOCIAL AND COMMUNITY SERVICES,CSS BICESTER,LAUNDRY AND DRY CLEANING,28/07/2023,9015059738,29.5,BICESTER SHOE REPAIRS
OXFORDSHIRE CC,SOCIAL AND COMMUNITY SERVICES,CSS BICESTER,CATERING PROVISIONS,28/07/2023,9015059746,28.9,ICELAND
OXFORDSHIRE CC,"CHILDRENS, YOUNG PEOPLE AND FAMILIES",CSS WALLINGFORD,EDUCATIONAL AND VOCATIONAL TRAINING ,28/07/2023,9015059722,100,ZETTLE_ DELTAVIOLIN
OXFORDSHIRE CC,"CHILDRENS, YOUNG PEOPLE AND FAMILIES",CSS WANTAGE,SUBSCRIPTIONS,28/07/2023,9015059734,6.52,HOLLYWOOD BOWL
OXFORDSHIRE CC,"CHILDRENS, YOUNG PEOPLE AND FAMILIES","	LEAVING CARE SOUTH",CATERING,28/07/2023,9015060062,18.05,R AND R
OXFORDSHIRE CC,"CHILDRENS, YOUNG PEOPLE AND FAMILIES",FPT SOUTH/VALE,PAYMENTS TO TRANSPORT OPERATORS,28/07/2023,9015060064,160.94,EASYJET
OXFORDSHIRE CC,"CHILDRENS, YOUNG PEOPLE AND FAMILIES",CSS WALLINGFORD,MATERIALS,28/07/2023,9015059724,21.97,AMZNMKTPLACE AMAZON.CO
OXFORDSHIRE CC,"CHILDRENS, YOUNG PEOPLE AND FAMILIES",THAME E&A HOME,OTHER TRANSPORT ARRANGEMENTS,28/07/2023,9015059754,2.3,DOLPIN CENTRE MUTLI ST
OXFORDSHIRE CC,COMMUNITY SAFETY,ON ST PARK OXFD SPA,MATERIALS,28/07/2023,9015059760,15.1,AMZNMKTPLACE
OXFORDSHIRE CC,"CHILDRENS, YOUNG PEOPLE AND FAMILIES","	LEAVING CARE CITY 2",OTHER TRANSPORT ARRANGEMENTS,28/07/2023,9015059762,29.6,GWR READING SST
OXFORDSHIRE CC,"CHILDRENS, YOUNG PEOPLE AND FAMILIES",CHILDREN IN CARE NON-STAFFING - CENTRL 1,PAYMENTS TO TRANSPORT OPERATORS,28/07/2023,9015059770,-12.8,TRAINLINE
OXFORDSHIRE CC,SOCIAL AND COMMUNITY SERVICES,CSS - OXFORD,CATERING PROVISIONS,28/07/2023,9015059742,24.8,ALDI STORES 775-142
OXFORDSHIRE CC,"CHILDRENS, YOUNG PEOPLE AND FAMILIES","	LEAVING CARE SOUTH",OTHER TRANSPORT ARRANGEMENTS,28/07/2023,9015060058,6.1,VALE OF WH PARKING FEE
OXFORDSHIRE CC,"CHILDRENS, YOUNG PEOPLE AND FAMILIES",WITNEY,MATERIALS,28/07/2023,9015059728,4.79,AMAZON.CO.UK J77HG2WQ5
OXFORDSHIRE CC,COMMUNITY SAFETY,ON ST PARK OXFD SPA,MATERIALS,28/07/2023,9015059758,35.76,AMZNMKTPLACE
OXFORDSHIRE CC,"CHILDRENS, YOUNG PEOPLE AND FAMILIES",CHILDREN IN CARE NON-STAFFING - SOUTH,PAYMENTS TO TRANSPORT OPERATORS,28/07/2023,9015059766,687.93,EASYJET
OXFORDSHIRE CC,"CHILDRENS, YOUNG PEOPLE AND FAMILIES",CSS WANTAGE,ENTERTAINMENT EXPENSES,28/07/2023,9015059732,9.9,WWW.BETTER.ORG.UK
OXFORDSHIRE CC,"CHILDRENS, YOUNG PEOPLE AND FAMILIES",FSP NON-STAFFING - CENTRAL,OTHER TRANSPORT ARRANGEMENTS,28/07/2023,9015060050,2,OXFORD BUS COMPANY
OXFORDSHIRE CC,"CHILDRENS, YOUNG PEOPLE AND FAMILIES",FSP NON-STAFFING - CENTRAL,OTHER TRANSPORT ARRANGEMENTS,28/07/2023,9015060052,2,STGCOACH/CTYLINK
OXFORDSHIRE CC,ENVIRONMENT AND ECONOMY,MAINTENANCE STAFF,EQUIPMENT,28/07/2023,9015059750,35.94,AMAZON.CO.UK 0Q8NO35X5
OXFORDSHIRE CC,"CHILDRENS, YOUNG PEOPLE AND FAMILIES",KINGFISHER,TELEPHONE - EQUIPMENT,28/07/2023,9015059736,29.99,TESCO ONLINE
OXFORDSHIRE CC,"CHILDRENS, YOUNG PEOPLE AND FAMILIES",EYNSHAM,RESIDENTIAL ACTIVITIES,28/07/2023,9015059726,8.5,SNUG CAFE LTD
OXFORDSHIRE CC,"CHILDRENS, YOUNG PEOPLE AND FAMILIES",QUALITY ASSURANCE CITY TEAM,PAYMENTS TO TRANSPORT OPERATORS,28/07/2023,9015060034,53.28,TRAINLINE
OXFORDSHIRE CC,"CHILDRENS, YOUNG PEOPLE AND FAMILIES",EYNSHAM,CATERING,28/07/2023,9015060044,81.96,DOMINO S PIZZA
OXFORDSHIRE CC,"CHILDRENS, YOUNG PEOPLE AND FAMILIES","	LEAVING CARE NORTH",CATERING PROVISIONS,28/07/2023,9015060024,1.25,NYA LIGHT CINEMAS (HOL
OXFORDSHIRE CC,"CHILDRENS, YOUNG PEOPLE AND FAMILIES",FAMILY SOLUTIONS PLUS NON-STAFF - NORTH,PAYMENT TO GOVERNMENT DEPARTMENTS,28/07/2023,9015060032,11,GEN REGISTER OFFICE
OXFORDSHIRE CC,"CHILDRENS, YOUNG PEOPLE AND FAMILIES",FAMILY SOLUTIONS PLUS NON-STAFF � SOUTH,OTHER TRANSPORT ARRANGEMENTS,28/07/2023,9015060040,476.7,TRAINLINE
OXFORDSHIRE CC,"CHILDRENS, YOUNG PEOPLE AND FAMILIES",QUALITY ASSURANCE CITY TEAM,PAYMENTS TO TRANSPORT OPERATORS,28/07/2023,9015060036,93.33,TRAINLINE.COM
OXFORDSHIRE CC,"CHILDRENS, YOUNG PEOPLE AND FAMILIES","	LOOKED AFTER SOUTH",CATERING,28/07/2023,9015060042,27.2,NANDOS DIDCOT
OXFORDSHIRE CC,"CHILDRENS, YOUNG PEOPLE AND FAMILIES",40 THE MOORS,CATERING PROVISIONS,28/07/2023,9015059916,67.49,SAINSBURY'S S/MKT
OXFORDSHIRE CC,"CHILDRENS, YOUNG PEOPLE AND FAMILIES","	LOOKED AFTER CITY 2",OTHER TRANSPORT ARRANGEMENTS,28/07/2023,9015059900,2,OXFORD BUS COMPANY
OXFORDSHIRE CC,"CHILDRENS, YOUNG PEOPLE AND FAMILIES",THAME E&A HOME,MATERIALS,28/07/2023,9015059908,163.65,THE RANGE
OXFORDSHIRE CC,"CHILDRENS, YOUNG PEOPLE AND FAMILIES",DIDCOT MOVE-ON HOME,DRUGS AND MEDICAL SUPPLIES,28/07/2023,9015059980,12,SUPERDRUG STORES PLC
OXFORDSHIRE CC,"CHILDRENS, YOUNG PEOPLE AND FAMILIES",FAMILY SOLUTIONS PLUS NON-STAFF � SOUTH,PAYMENTS TO TRANSPORT OPERATORS,28/07/2023,9015059988,108,BKG HOTEL AT BOOKING.C
OXFORDSHIRE CC,"CHILDRENS, YOUNG PEOPLE AND FAMILIES",FAMILY SOLUTIONS PLUS NON-STAFF - NORTH,SUBSCRIPTIONS,28/07/2023,9015059974,57.99,PUREGYM LIMITED
OXFORDSHIRE CC,"CHILDRENS, YOUNG PEOPLE AND FAMILIES",DIDCOT MOVE-ON HOME,CATERING PROVISIONS,28/07/2023,9015059982,6.56,SAINSBURYS S/MKTS
OXFORDSHIRE CC,"CHILDRENS, YOUNG PEOPLE AND FAMILIES",FSP NON-STAFFING - CENTRAL,MATERIALS,28/07/2023,9015059990,191.97,AMZNMKTPLACE AMAZON.CO
OXFORDSHIRE CC,CORPORATE CORE,THAME LIBRARY,"NEWSPAPERS, PERIODICALS AND PUBLICATIONS",28/07/2023,9015059930,5.6,SAINSBURYS S/MKTS
OXFORDSHIRE CC,CORPORATE CORE,,STATIONERY,28/07/2023,9015059938,7.03,LYRECO UK LTD
OXFORDSHIRE CC,"CHILDRENS, YOUNG PEOPLE AND FAMILIES",FAMILY SOLUTIONS PLUS NON-STAFF - NORTH,PAYMENTS TO TRANSPORT OPERATORS,28/07/2023,9015059946,43,TRAINLINE
OXFORDSHIRE CC,"CHILDRENS, YOUNG PEOPLE AND FAMILIES","	LEAVING CARE NORTH",CATERING PROVISIONS,28/07/2023,9015060022,1.25,NYA LIGHT CINEMAS (HOL
OXFORDSHIRE CC,"CHILDRENS, YOUNG PEOPLE AND FAMILIES",FAMILY SOLUTIONS PLUS NON-STAFF - NORTH,POSTAGE AND DELIVERY,28/07/2023,9015060030,18,POST OFFICE COUNTER
OXFORDSHIRE CC,"CHILDRENS, YOUNG PEOPLE AND FAMILIES",QUALITY ASSURANCE CITY TEAM,PAYMENTS TO TRANSPORT OPERATORS,28/07/2023,9015060038,-40.7,TRAINLINE
OXFORDSHIRE CC,SOCIAL AND COMMUNITY SERVICES,"	MUSEUMS COLLECTIONS",OTHER SERVICES,28/07/2023,9015059906,19.65,AMZNMKTPLACE AMAZON.CO
OXFORDSHIRE CC,SOCIAL AND COMMUNITY SERVICES,"	MUSEUMS COLLECTIONS",OTHER SERVICES,28/07/2023,9015059904,39.14,AMZNMKTPLACE AMAZON.CO
OXFORDSHIRE CC,SOCIAL AND COMMUNITY SERVICES,CSS WITNEY,CATERING PROVISIONS,28/07/2023,9015059914,35.7,MILK AND MORE (RECUR
OXFORDSHIRE CC,ENVIRONMENT AND ECONOMY,"	OXFORDSHIRE MUSEUM",MATERIALS,28/07/2023,9015059902,35.93,AMAZON.CO.UK 2X6ZK9S65
OXFORDSHIRE CC,"CHILDRENS, YOUNG PEOPLE AND FAMILIES",THAME E&A HOME,CATERING PROVISIONS,28/07/2023,9015059910,31.99,T K MAXX
OXFORDSHIRE CC,"CHILDRENS, YOUNG PEOPLE AND FAMILIES",FSP NON-STAFFING - CENTRAL,OTHER TRANSPORT ARRANGEMENTS,28/07/2023,9015059920,85.5,OXFORD BUS TICKETS
OXFORDSHIRE CC,CORPORATE CORE,MOTOR FLEET,VEHICLES AND PLANT - REPAIRS AND MAIN,28/07/2023,9015059924,"2,427.14",WHOLESALE AUTOPARTS
OXFORDSHIRE CC,"CHILDRENS, YOUNG PEOPLE AND FAMILIES",FSP NON-STAFFING - CENTRAL,OTHER PREMISES RELATED COSTS,28/07/2023,9015059922,-250,LYTER LIVING
OXFORDSHIRE CC,"CHILDRENS, YOUNG PEOPLE AND FAMILIES",FAMILY SOLUTIONS PLUS NON-STAFF - NORTH,"SUPPLIES, STATIONERY AND MATERIALS",28/07/2023,9015059972,16.5,DMN/THEHEYFORD
OXFORDSHIRE CC,"CHILDRENS, YOUNG PEOPLE AND FAMILIES",DIDCOT MOVE-ON HOME,CATERING,28/07/2023,9015059978,22.95,KASPA'S DESSERTS
OXFORDSHIRE CC,CORPORATE CORE,"MARKETING, COMMUNICATIONS & ENGAGEMENT","PUBLICITY, PROMOTIONS AND ADVERTISEMENT",28/07/2023,9015059986,91.14,SNAP INC SNAP SNAP ADS
OXFORDSHIRE CC,"CHILDRENS, YOUNG PEOPLE AND FAMILIES",40 THE MOORS,RESIDENTIAL ACTIVITIES,28/07/2023,9015059994,27,SQ  ESCAPE HUNT OXFORD
OXFORDSHIRE CC,"CHILDRENS, YOUNG PEOPLE AND FAMILIES",FAMILY SOLUTIONS PLUS NON-STAFF - NORTH,PAYMENTS TO TRANSPORT OPERATORS,28/07/2023,9015059976,172.4,TRAINLINE.COM
OXFORDSHIRE CC,"CHILDRENS, YOUNG PEOPLE AND FAMILIES",40 THE MOORS,RESIDENTIAL ACTIVITIES,28/07/2023,9015059992,108,SQ  ESCAPE HUNT OXFORD
OXFORDSHIRE CC,"CHILDRENS, YOUNG PEOPLE AND FAMILIES",EYNSHAM,MATERIALS,28/07/2023,9015059936,25.38,AMZNMKTPLACE
OXFORDSHIRE CC,CORPORATE CORE,,STATIONERY,28/07/2023,9015059944,206.78,LYRECO UK LTD
OXFORDSHIRE CC,"CHILDRENS, YOUNG PEOPLE AND FAMILIES",FSP NON-STAFFING - CENTRAL,PAYMENTS TO TRANSPORT OPERATORS,28/07/2023,9015059928,"1,039.00",BKG HOTEL AT BOOKING.C
OXFORDSHIRE CC,CORPORATE CORE,,STATIONERY,28/07/2023,9015059940,158.16,LYRECO UK LTD
OXFORDSHIRE CC,ENVIRONMENT AND ECONOMY,OXFDSHIRE PUBLIC SPACE INNOVATION NETWK,MATERIALS,28/07/2023,9015059778,13.48,ROBERT DYAS WITNEY
OXFORDSHIRE CC,"CHILDRENS, YOUNG PEOPLE AND FAMILIES",PAUSE PROGRAMME,MATERIALS,28/07/2023,9015059794,3.74,AMZNMKTPLACE
OXFORDSHIRE CC,"CHILDRENS, YOUNG PEOPLE AND FAMILIES","	LEAVING CARE SOUTH",REGISTRATION AND INSPECTION FEES,28/07/2023,9015059834,13.6,OXFORDSHIRE CC WEB1
OXFORDSHIRE CC,"CHILDRENS, YOUNG PEOPLE AND FAMILIES",PAUSE PROGRAMME,CATERING,28/07/2023,9015059842,7.85,COSTA COFFEE 43011546
OXFORDSHIRE CC,CORPORATE CORE,INCOME TEAM,REGISTRATION AND INSPECTION FEES,28/07/2023,9015059844,1.5,FIND A WILL
OXFORDSHIRE CC,"CHILDRENS, YOUNG PEOPLE AND FAMILIES",KINGFISHER,HOSPITALITY EXPENSES,28/07/2023,9015059850,2.8,TANDEM
OXFORDSHIRE CC,SOCIAL AND COMMUNITY SERVICES,CHILDREN IN CARE NON-STAFFING - NORTH,PAYMENTS TO TRANSPORT OPERATORS,28/07/2023,9015059792,22.05,TRAINLINE.COM
OXFORDSHIRE CC,ENVIRONMENT AND ECONOMY,"	SAMUELSON HOUSE",CATERING PROVISIONS,28/07/2023,9015059800,42.84,MILK AND MORE (RECUR
OXFORDSHIRE CC,"CHILDRENS, YOUNG PEOPLE AND FAMILIES",KINGFISHER,HOSPITALITY EXPENSES,28/07/2023,9015059846,24.77,TANDEM
OXFORDSHIRE CC,SOCIAL AND COMMUNITY SERVICES,CSS - OXFORD,MATERIALS,28/07/2023,9015059782,13.47,PETS AT HOME LTD
OXFORDSHIRE CC,SOCIAL AND COMMUNITY SERVICES,CHILDREN IN CARE NON-STAFFING - NORTH,VEHICLE FUEL,28/07/2023,9015059790,20.19,JOBLINGS
OXFORDSHIRE CC,CORPORATE CORE,RESOURCING,MANAGEMENT CONSULTANT FEES,28/07/2023,9015059788,300,BUSINESS FORUMS INTERN
OXFORDSHIRE CC,"CHILDRENS, YOUNG PEOPLE AND FAMILIES",PAUSE PROGRAMME,MATERIALS,28/07/2023,9015059796,14.2,AMZNMKTPLACE
OXFORDSHIRE CC,"CHILDRENS, YOUNG PEOPLE AND FAMILIES","	OCCG GRANT",CLEANING MATERIALS,28/07/2023,9015059798,4.2,TESCO STORES 2413
OXFORDSHIRE CC,"CHILDRENS, YOUNG PEOPLE AND FAMILIES",PAUSE PROGRAMME,CATERING PROVISIONS,28/07/2023,9015059840,3.35,CO-OPERATIVE FOOD
OXFORDSHIRE CC,"CHILDRENS, YOUNG PEOPLE AND FAMILIES",PAUSE PROGRAMME,OTHER TRANSPORT ARRANGEMENTS,27/07/2023,9008659364,3,WARWICKSHIRE PARKING
OXFORDSHIRE CC,SOCIAL AND COMMUNITY SERVICES,CSS - OXFORD,DISABILITY AIDS AND EQUIPMENT,27/07/2023,9008659356,29,AMZNMKTPLACE AMAZON.CO
OXFORDSHIRE CC,SOCIAL AND COMMUNITY SERVICES,"	MUSEUMS COLLECTIONS",OTHER SERVICES,27/07/2023,9008659386,6.92,AMZNMKTPLACE AMAZON.CO
OXFORDSHIRE CC,SOCIAL AND COMMUNITY SERVICES,CSS - OXFORD,DISABILITY AIDS AND EQUIPMENT,27/07/2023,9008659362,29,AMZNMKTPLACE AMAZON.CO
OXFORDSHIRE CC,CORPORATE CORE,HISTORY SERVICE,FURNITURE,27/07/2023,9008659374,197.21,AMZNMKTPLACE
OXFORDSHIRE CC,CORPORATE CORE,,STATIONERY,27/07/2023,9008659454,234.17,LYRECO UK LTD
OXFORDSHIRE CC,CORPORATE CORE,,STATIONERY,27/07/2023,9008659464,64.12,LYRECO UK LTD
OXFORDSHIRE CC,SOCIAL AND COMMUNITY SERVICES,CSS - OXFORD,CATERING PROVISIONS,27/07/2023,9008659354,265.76,TESCO STORES 2994
OXFORDSHIRE CC,SOCIAL AND COMMUNITY SERVICES,CSS WITNEY,IT SOFTWARE,27/07/2023,9008659404,249.99,APPLE.COM/BILL
OXFORDSHIRE CC,"CHILDRENS, YOUNG PEOPLE AND FAMILIES",40 THE MOORS,RESIDENTIAL ACTIVITIES,27/07/2023,9008659408,20.67,VUE ENTERTAINMENT LTD
OXFORDSHIRE CC,"CHILDRENS, YOUNG PEOPLE AND FAMILIES",40 THE MOORS,CATERING,27/07/2023,9008659410,133.04,THE BOSPHORUS KITCHEN
OXFORDSHIRE CC,SOCIAL AND COMMUNITY SERVICES,ABINGDON LIBRARY,EQUIPMENT,27/07/2023,9008659422,12.97,AMZNMKTPLACE
OXFORDSHIRE CC,"CHILDRENS, YOUNG PEOPLE AND FAMILIES",THAME E&A HOME,CATERING PROVISIONS,27/07/2023,9008659392,59.36,SAINSBURYS S/MKTS
OXFORDSHIRE CC,"CHILDRENS, YOUNG PEOPLE AND FAMILIES","	SENSS TRAINING",EDUCATIONAL AND VOCATIONAL TRAINING ,27/07/2023,9008659406,95,PAYPAL  SCHOOLDEVEL
OXFORDSHIRE CC,CORPORATE CORE,,STATIONERY,27/07/2023,9008659448,68.16,LYRECO UK LTD
OXFORDSHIRE CC,CORPORATE CORE,,STATIONERY,27/07/2023,9008659462,139.57,LYRECO UK LTD
OXFORDSHIRE CC,ENTERPRISEVC,,CAR LEASING - PRIVATE RENTALS,27/07/2023,9008659472,281.52,ENTERPRISE RENT-A-CAR
OXFORDSHIRE CC,CORPORATE CORE,,STATIONERY,27/07/2023,9008659456,15.88,LYRECO UK LTD
OXFORDSHIRE CC,CORPORATE CORE,,STATIONERY,27/07/2023,9008659466,465.8,LYRECO UK LTD
OXFORDSHIRE CC,"CHILDRENS, YOUNG PEOPLE AND FAMILIES","	LEAVING CARE SOUTH",OTHER EXPENSES,27/07/2023,9008659426,20,TESCO GIFT CARD
OXFORDSHIRE CC,"CHILDRENS, YOUNG PEOPLE AND FAMILIES","	LEAVING CARE NORTH",CATERING,27/07/2023,9008659674,17.91,MCDONALDS
OXFORDSHIRE CC,SOCIAL AND COMMUNITY SERVICES,CSS - BANBURY,CATERING PROVISIONS,27/07/2023,9008659682,14,TESCO STORES 2064
OXFORDSHIRE CC,CORPORATE CORE,"	MANAGEMENT & ADMIN",POSTAGE AND DELIVERY,27/07/2023,9008659662,3.99,ROYAL MAIL GROUP LTD
OXFORDSHIRE CC,"CHILDRENS, YOUNG PEOPLE AND FAMILIES",40 THE MOORS,OTHER EXPENSES,27/07/2023,9008659670,16.98,SUPERDRUG STORES PLC
OXFORDSHIRE CC,"CHILDRENS, YOUNG PEOPLE AND FAMILIES",NTH EARLY HELP-BNRBY,CATERING PROVISIONS,27/07/2023,9008659678,2.9,TESCO STORES 2064
OXFORDSHIRE CC,ENTERPRISEVC,,CAR LEASING - PRIVATE RENTALS,27/07/2023,9008659574,551.52,ENTERPRISE RENT-A-CAR
OXFORDSHIRE CC,"CHILDRENS, YOUNG PEOPLE AND FAMILIES",FIELDWORK UASC,STATIONERY,27/07/2023,9008659594,9,ME GROUP INTERNATIONAL
OXFORDSHIRE CC,"CHILDRENS, YOUNG PEOPLE AND FAMILIES","	LEAVING CARE NORTH",OTHER TRANSPORT ARRANGEMENTS,27/07/2023,9008659608,2.7,HEADINGTON CAR PARK
OXFORDSHIRE CC,ENVIRONMENT AND ECONOMY,"	COUNTRYSIDE PREMISES",GENERAL REFUSE COLLECTION AND DISPOSAL,27/07/2023,9008659326,426,M & M SKIP HIRE
OXFORDSHIRE CC,ENVIRONMENT AND ECONOMY,"	NAT TRAILS GENERAL",VEHICLES AND PLANT - REPAIRS AND MAIN,27/07/2023,9008659340,76.13,TRAILERTEK
OXFORDSHIRE CC,CORPORATE CORE,BUSINESS INTELLECTUAL PROPERTY CENTRE,CATERING,27/07/2023,9008659350,15,BENITOS HAT
OXFORDSHIRE CC,"CHILDRENS, YOUNG PEOPLE AND FAMILIES",CHILDREN IN CARE NON-STAFFING - CENTRL 2,PAYMENT TO GOVERNMENT DEPARTMENTS,27/07/2023,9008659322,44,OXFORDSHIRE CC WEB1
OXFORDSHIRE CC,ENVIRONMENT AND ECONOMY,"	NAT TRAILS GENERAL",MATERIALS,27/07/2023,9008659336,72.42,SP TRACMASTER.CO.UK
OXFORDSHIRE CC,"CHILDRENS, YOUNG PEOPLE AND FAMILIES",FAMILY SOLUTIONS PLUS NON-STAFF - NORTH,MATERIALS,27/07/2023,9008659344,59.99,WWW.ARGOS.CO.UK
OXFORDSHIRE CC,ENVIRONMENT AND ECONOMY,MAINTENANCE STAFF,EQUIPMENT,27/07/2023,9008659176,8.45,AMZNMKTPLACE
OXFORDSHIRE CC,"CHILDRENS, YOUNG PEOPLE AND FAMILIES",PAUSE PROGRAMME,MATERIALS,27/07/2023,9008659276,8,THE WORKS
OXFORDSHIRE CC,"CHILDRENS, YOUNG PEOPLE AND FAMILIES",QUALITY ASSURANCE CITY TEAM,HIRE OF ACCOMMODATION AND FACILITIES,27/07/2023,9008659684,89.99,PREMIER INN
OXFORDSHIRE CC,"CHILDRENS, YOUNG PEOPLE AND FAMILIES",CHILDREN IN CARE NON-STAFFING - CENTRL 2,SUBSCRIPTIONS,27/07/2023,9008659320,37.5,FLOS OXFORD
OXFORDSHIRE CC,ENVIRONMENT AND ECONOMY,"	KNIGHTS COURT",STATIONERY,27/07/2023,9008659330,14.97,AMZNMKTPLACE AMAZON.CO
OXFORDSHIRE CC,ENVIRONMENT AND ECONOMY,"	NAT TRAILS GENERAL",MATERIALS,27/07/2023,9008659342,14.38,ORBITAL FASTENERS LTD
OXFORDSHIRE CC,ENVIRONMENT AND ECONOMY,"	ROW MAINT",EQUIPMENT,27/07/2023,9008659324,7.99,POST OFFICE COUNTER
OXFORDSHIRE CC,ENTERPRISEVC,,CAR LEASING - PRIVATE RENTALS,27/07/2023,9008659578,"2,160.00",ENTERPRISE RENT-A-CAR
OXFORDSHIRE CC,ENVIRONMENT AND ECONOMY,"	NAT TRAILS GENERAL",CATERING PROVISIONS,27/07/2023,9008659338,2.25,CO OPERATIVE FOOD
OXFORDSHIRE CC,SOCIAL AND COMMUNITY SERVICES,CSS WITNEY,CATERING PROVISIONS,27/07/2023,9008659346,21.54,MARKS&SPENCER PLC
OXFORDSHIRE CC,SOCIAL AND COMMUNITY SERVICES,CSS - OXFORD,CATERING PROVISIONS,27/07/2023,9008659258,31.89,ALDI STORES 775-142
OXFORDSHIRE CC,"CHILDRENS, YOUNG PEOPLE AND FAMILIES",WITNEY,CATERING PROVISIONS,27/07/2023,9008659270,6,CO-OP GROUP 070582
OXFORDSHIRE CC,"CHILDRENS, YOUNG PEOPLE AND FAMILIES","DIDCOT CC, PARK ROAD",CATERING PROVISIONS,27/07/2023,9008659274,7.9,CO-OP GROUP FOOD
OXFORDSHIRE CC,"CHILDRENS, YOUNG PEOPLE AND FAMILIES",KINGFISHER,CATERING,27/07/2023,9008659284,13.18,MCDONALDS
OXFORDSHIRE CC,"CHILDRENS, YOUNG PEOPLE AND FAMILIES",EYNSHAM,CATERING PROVISIONS,27/07/2023,9008659694,4.68,SPAR EYNSHAM
OXFORDSHIRE CC,"CHILDRENS, YOUNG PEOPLE AND FAMILIES",EYNSHAM,CLOTHING AND UNIFORMS,27/07/2023,9008659702,-18,NEXT DIRECTORY
OXFORDSHIRE CC,"CHILDRENS, YOUNG PEOPLE AND FAMILIES",FSP NON-STAFFING - CENTRAL,OTHER TRANSPORT ARRANGEMENTS,27/07/2023,9008659710,40,SUMUP   SUPREME TAXIS
OXFORDSHIRE CC,"CHILDRENS, YOUNG PEOPLE AND FAMILIES",EYNSHAM,CLOTHING AND UNIFORMS,27/07/2023,9008659698,18,NEXT DIRECTORY
OXFORDSHIRE CC,"CHILDRENS, YOUNG PEOPLE AND FAMILIES","	LOOKED AFTER SOUTH",HOSPITALITY EXPENSES,27/07/2023,9008659690,6.29,HARVEY
OXFORDSHIRE CC,"CHILDRENS, YOUNG PEOPLE AND FAMILIES",CSS WALLINGFORD,CATERING PROVISIONS,27/07/2023,9008659116,22.05,WAITROSE 675
OXFORDSHIRE CC,"CHILDRENS, YOUNG PEOPLE AND FAMILIES",PAUSE PROGRAMME,CATERING PROVISIONS,27/07/2023,9008659280,7.9,RUMSEYS HANDMADE CHOCO
OXFORDSHIRE CC,ENTERPRISEVC,,CAR LEASING - PRIVATE RENTALS,27/07/2023,9008659546,281.52,ENTERPRISE RENT-A-CAR
OXFORDSHIRE CC,ENTERPRISEVC,,CAR LEASING - PRIVATE RENTALS,27/07/2023,9008659560,281.52,ENTERPRISE RENT-A-CAR
OXFORDSHIRE CC,ENTERPRISEVC,,CAR LEASING - PRIVATE RENTALS,27/07/2023,9008659540,389.52,ENTERPRISE RENT-A-CAR
OXFORDSHIRE CC,ENTERPRISEVC,,CAR LEASING - PRIVATE RENTALS,27/07/2023,9008659502,389.52,ENTERPRISE RENT-A-CAR
OXFORDSHIRE CC,ENTERPRISEVC,,CAR LEASING - PRIVATE RENTALS,27/07/2023,9008659556,281.52,ENTERPRISE RENT-A-CAR
OXFORDSHIRE CC,ENTERPRISEVC,,CAR LEASING - PRIVATE RENTALS,27/07/2023,9008659564,966.6,ENTERPRISE RENT-A-CAR
OXFORDSHIRE CC,ENTERPRISEVC,,CAR LEASING - PRIVATE RENTALS,27/07/2023,9008659542,281.52,ENTERPRISE RENT-A-CAR
OXFORDSHIRE CC,ENTERPRISEVC,,CAR LEASING - PRIVATE RENTALS,27/07/2023,9008659558,389.52,ENTERPRISE RENT-A-CAR
OXFORDSHIRE CC,ENTERPRISEVC,,CAR LEASING - PRIVATE RENTALS,27/07/2023,9008659568,389.52,ENTERPRISE RENT-A-CAR
OXFORDSHIRE CC,ENTERPRISEVC,,CAR LEASING - PRIVATE RENTALS,27/07/2023,9008659536,389.52,ENTERPRISE RENT-A-CAR
OXFORDSHIRE CC,ENTERPRISEVC,,CAR LEASING - PRIVATE RENTALS,27/07/2023,9008659484,389.52,ENTERPRISE RENT-A-CAR
OXFORDSHIRE CC,ENTERPRISEVC,,CAR LEASING - PRIVATE RENTALS,27/07/2023,9008659492,389.52,ENTERPRISE RENT-A-CAR
OXFORDSHIRE CC,ENTERPRISEVC,,CAR LEASING - PRIVATE RENTALS,27/07/2023,9008659488,389.52,ENTERPRISE RENT-A-CAR
OXFORDSHIRE CC,ENTERPRISEVC,,CAR LEASING - PRIVATE RENTALS,27/07/2023,9008659498,319.32,ENTERPRISE RENT-A-CAR
OXFORDSHIRE CC,ENTERPRISEVC,,CAR LEASING - PRIVATE RENTALS,27/07/2023,9008659476,389.52,ENTERPRISE RENT-A-CAR
OXFORDSHIRE CC,"CHILDRENS, YOUNG PEOPLE AND FAMILIES",UASC POST 18,OTHER TRANSPORT ARRANGEMENTS,27/07/2023,9008659412,3.8,WESTGATE OXFORD CAR PA
OXFORDSHIRE CC,"CHILDRENS, YOUNG PEOPLE AND FAMILIES",EYNSHAM,MATERIALS,27/07/2023,9008659446,12.69,AMZNMKTPLACE
OXFORDSHIRE CC,CORPORATE CORE,,STATIONERY,27/07/2023,9008659460,40.13,LYRECO UK LTD
OXFORDSHIRE CC,ENTERPRISEVC,,CAR LEASING - PRIVATE RENTALS,27/07/2023,9008659470,389.52,ENTERPRISE RENT-A-CAR
OXFORDSHIRE CC,CORPORATE CORE,HISTORY SERVICE,EQUIPMENT,27/07/2023,9008659380,63.26,AMZNMKTPLACE
OXFORDSHIRE CC,SOCIAL AND COMMUNITY SERVICES,CSS - OXFORD,DISABILITY AIDS AND EQUIPMENT,27/07/2023,9008659360,29,AMZNMKTPLACE AMAZON.CO
OXFORDSHIRE CC,"CHILDRENS, YOUNG PEOPLE AND FAMILIES","	LOOKED AFTER CITY 2",OTHER TRANSPORT ARRANGEMENTS,27/07/2023,9008659372,2,OXFORD BUS COMPANY
OXFORDSHIRE CC,SOCIAL AND COMMUNITY SERVICES,"	MUSEUMS COLLECTIONS",OTHER SERVICES,27/07/2023,9008659388,8.99,AMZNMKTPLACE AMAZON.CO
OXFORDSHIRE CC,CORPORATE CORE,"MARKETING, COMMUNICATIONS & ENGAGEMENT","PUBLICITY, PROMOTIONS AND ADVERTISEMENT",27/07/2023,9008659652,500,GOOGLE ADS4896546035
OXFORDSHIRE CC,CORPORATE CORE,"	MANAGEMENT & ADMIN",POSTAGE AND DELIVERY,27/07/2023,9008659660,6.99,ROYAL MAIL GROUP LTD
OXFORDSHIRE CC,SOCIAL AND COMMUNITY SERVICES,OPERATIONS MANAGER INDEPENDENT LIVING,PAYMENTS TO TRANSPORT OPERATORS,27/07/2023,9008659744,118.6,WWW.GWR.COM
OXFORDSHIRE CC,"CHILDRENS, YOUNG PEOPLE AND FAMILIES",40 THE MOORS,CATERING,27/07/2023,9008659668,16.84,TESCO STORES 2788
OXFORDSHIRE CC,"CHILDRENS, YOUNG PEOPLE AND FAMILIES","	LEAVING CARE CITY 2",MATERIALS,27/07/2023,9008659686,103.97,AMZNMKTPLACE
OXFORDSHIRE CC,"CHILDRENS, YOUNG PEOPLE AND FAMILIES",FAMILY SOLUTIONS PLUS NON-STAFF - NORTH,STATIONERY,27/07/2023,9008659626,3.2,SP CATHEDRAL PRODUCTS
OXFORDSHIRE CC,"CHILDRENS, YOUNG PEOPLE AND FAMILIES",CSS - ABINGDON,OTHER TRANSPORT ARRANGEMENTS,27/07/2023,9008659724,2,STGCOACH/CTYLINK
OXFORDSHIRE CC,"CHILDRENS, YOUNG PEOPLE AND FAMILIES","	LEAVING CARE SOUTH",VEHICLE FUEL,27/07/2023,9008659732,46.01,SHELL MARCHAM ROAD
OXFORDSHIRE CC,"CHILDRENS, YOUNG PEOPLE AND FAMILIES",NTH EARLY HELP-BCSTR,CATERING PROVISIONS,27/07/2023,9008659716,2.9,SAINSBURYS S/MKTS
OXFORDSHIRE CC,"CHILDRENS, YOUNG PEOPLE AND FAMILIES",FSP NON-STAFFING - CENTRAL,OTHER TRANSPORT ARRANGEMENTS,27/07/2023,9008659712,2,STGCOACH/CTYLINK
OXFORDSHIRE CC,CORPORATE CORE,"MARKETING, COMMUNICATIONS & ENGAGEMENT","PUBLICITY, PROMOTIONS AND ADVERTISEMENT",27/07/2023,9008659654,90.72,SNAP INC SNAP SNAP ADS
OXFORDSHIRE CC,"CHILDRENS, YOUNG PEOPLE AND FAMILIES","	OCCG GRANT",CATERING,27/07/2023,9008659634,7.96,STARBUCKS COFFEE
OXFORDSHIRE CC,"CHILDRENS, YOUNG PEOPLE AND FAMILIES",CSS - ABINGDON,TECHNICAL AND PROFESSIONAL CONSULTANT F,27/07/2023,9008659726,372.7,KOLLER ENGINEERING LIM
OXFORDSHIRE CC,"CHILDRENS, YOUNG PEOPLE AND FAMILIES",FPT SOUTH/VALE,PAYMENTS TO TRANSPORT OPERATORS,27/07/2023,9008659734,146.94,EASYJET
OXFORDSHIRE CC,ENVIRONMENT AND ECONOMY,HARD FM,PREMISES REPAIRS,27/07/2023,9008659154,26.39,WWW.SCREWFIX.COM
OXFORDSHIRE CC,ENVIRONMENT AND ECONOMY,HARD FM,PREMISES REPAIRS,27/07/2023,9008659164,253.96,HOWDENS - WITNEY D995
OXFORDSHIRE CC,"CHILDRENS, YOUNG PEOPLE AND FAMILIES",FPT SOUTH/VALE,OTHER TRANSPORT ARRANGEMENTS,27/07/2023,9008659736,116.99,NCP LTD
OXFORDSHIRE CC,ENVIRONMENT AND ECONOMY,HARD FM,PREMISES REPAIRS,27/07/2023,9008659150,4.72,B & Q 1176
OXFORDSHIRE CC,ENVIRONMENT AND ECONOMY,HARD FM,PREMISES REPAIRS,27/07/2023,9008659158,32,SNOB & LOCK
OXFORDSHIRE CC,ENVIRONMENT AND ECONOMY,HARD FM,PREMISES REPAIRS,27/07/2023,9008659168,33.88,SCREWFIX DIR LTD
OXFORDSHIRE CC,"CHILDRENS, YOUNG PEOPLE AND FAMILIES",FPT SOUTH/VALE,PAYMENTS TO TRANSPORT OPERATORS,27/07/2023,9008659740,-97.94,EASYJET
OXFORDSHIRE CC,"CHILDRENS, YOUNG PEOPLE AND FAMILIES",FIELDWORK UASC,OTHER TRANSPORT ARRANGEMENTS,27/07/2023,9008659672,4.5,STGCOACH/CTYLINK
OXFORDSHIRE CC,"CHILDRENS, YOUNG PEOPLE AND FAMILIES",FAMILY SOLUTIONS PLUS NON-STAFF - NORTH,MATERIALS,27/07/2023,9008659680,252,BANBURY PLANT AND SKIP
OXFORDSHIRE CC,SOCIAL AND COMMUNITY SERVICES,WALLINGFORD LIBRARY,CATERING PROVISIONS,27/07/2023,9008659596,4.82,LIDL GB WALLINGFORD
OXFORDSHIRE CC,"CHILDRENS, YOUNG PEOPLE AND FAMILIES",HOUSE PROJECT,OTHER TRANSPORT ARRANGEMENTS,27/07/2023,9008659588,5.8,WESTGATE OXFORD CAR PA
OXFORDSHIRE CC,"CHILDRENS, YOUNG PEOPLE AND FAMILIES","	OCCG GRANT",VEHICLE FUEL,27/07/2023,9008659622,60,SAINSBURYS SUPERMA
OXFORDSHIRE CC,"CHILDRENS, YOUNG PEOPLE AND FAMILIES","	OCCG GRANT",CATERING,27/07/2023,9008659636,17.13,DOMINOS BANBURY 28071
OXFORDSHIRE CC,"CHILDRENS, YOUNG PEOPLE AND FAMILIES","	LEAVING CARE SOUTH",CATERING,27/07/2023,9008659728,11,CAFE G S
OXFORDSHIRE CC,CORPORATE CORE,"MARKETING, COMMUNICATIONS & ENGAGEMENT","PUBLICITY, PROMOTIONS AND ADVERTISEMENT",27/07/2023,9008659650,500,FACEBK  62YDPRT9Z2
OXFORDSHIRE CC,"CHILDRENS, YOUNG PEOPLE AND FAMILIES",WITNEY,CATERING PROVISIONS,27/07/2023,9008659624,11.77,LIDL GB WITNEY
OXFORDSHIRE CC,"CHILDRENS, YOUNG PEOPLE AND FAMILIES",FSP NON-STAFFING - CENTRAL,CATERING,27/07/2023,9008659714,3.05,GLORIA'S
OXFORDSHIRE CC,"CHILDRENS, YOUNG PEOPLE AND FAMILIES",CSS - ABINGDON,OTHER TRANSPORT ARRANGEMENTS,27/07/2023,9008659722,2,OXFORD BUS COMPANY
OXFORDSHIRE CC,"CHILDRENS, YOUNG PEOPLE AND FAMILIES","	LEAVING CARE SOUTH",OTHER TRANSPORT ARRANGEMENTS,27/07/2023,9008659730,5.8,M6 TOLL
OXFORDSHIRE CC,ENVIRONMENT AND ECONOMY,HARD FM,GENERAL MAINTENANCE,27/07/2023,9008659692,3.6,WOLSELEY UK
OXFORDSHIRE CC,"CHILDRENS, YOUNG PEOPLE AND FAMILIES",EYNSHAM,CATERING PROVISIONS,27/07/2023,9008659700,16,SAINSBURYS S/MKTS
OXFORDSHIRE CC,"CHILDRENS, YOUNG PEOPLE AND FAMILIES",FSP NON-STAFFING - CENTRAL,OTHER TRANSPORT ARRANGEMENTS,27/07/2023,9008659708,2,ARRIVA THE SHIRES LIMI
OXFORDSHIRE CC,"CHILDRENS, YOUNG PEOPLE AND FAMILIES","	LOOKED AFTER SOUTH",ENTERTAINMENT EXPENSES,27/07/2023,9008659688,53.78,TENPIN.CO.UK
OXFORDSHIRE CC,"CHILDRENS, YOUNG PEOPLE AND FAMILIES",EYNSHAM,CLOTHING AND UNIFORMS,27/07/2023,9008659696,18,NEXT DIRECTORY
OXFORDSHIRE CC,CORPORATE CORE,MUSIC UNALLOCABLE,CATERING,27/07/2023,9008659704,79.77,DOMINO S PIZZA
OXFORDSHIRE CC,ENVIRONMENT AND ECONOMY,HARD FM,PREMISES REPAIRS,27/07/2023,9008659156,75.45,TOOLSTATION LTD
OXFORDSHIRE CC,ENVIRONMENT AND ECONOMY,HARD FM,PREMISES REPAIRS,27/07/2023,9008659166,30.73,B AND Q
OXFORDSHIRE CC,"CHILDRENS, YOUNG PEOPLE AND FAMILIES",FPT SOUTH/VALE,MATERIALS,27/07/2023,9008659738,29.66,AMAZON.CO.UK J01NZ29N5
OXFORDSHIRE CC,SOCIAL AND COMMUNITY SERVICES,CSS - OXFORD,CATERING PROVISIONS,27/07/2023,9008659148,10.91,ALDI STORES 775-142
OXFORDSHIRE CC,ENVIRONMENT AND ECONOMY,HARD FM,PREMISES REPAIRS,27/07/2023,9008659152,7.8,B & Q 1176
OXFORDSHIRE CC,ENVIRONMENT AND ECONOMY,HARD FM,PREMISES REPAIRS,27/07/2023,9008659162,155.22,HOWDENS - OXFORD D879
OXFORDSHIRE CC,CORPORATE CORE,MULTICAV,OTHER TRANSPORT ARRANGEMENTS,27/07/2023,9008659742,4.5,OXFORD BUS COMPANY
OXFORDSHIRE CC,"CHILDRENS, YOUNG PEOPLE AND FAMILIES","	LEAVING CARE NORTH",CATERING,27/07/2023,9008659612,8.05,COSTA COFFEE 43011919
OXFORDSHIRE CC,ENTERPRISEVC,,CAR LEASING - PRIVATE RENTALS,27/07/2023,9008659570,389.52,ENTERPRISE RENT-A-CAR
OXFORDSHIRE CC,"CHILDRENS, YOUNG PEOPLE AND FAMILIES","	OCCG GRANT",OTHER EXPENSES,27/07/2023,9008659592,17.74,MFG BOSCOMBE
OXFORDSHIRE CC,"CHILDRENS, YOUNG PEOPLE AND FAMILIES","	LEAVING CARE NORTH",HIRE OF ACCOMMODATION AND FACILITIES,27/07/2023,9008659606,367.14,TRAVELODGE
OXFORDSHIRE CC,"CHILDRENS, YOUNG PEOPLE AND FAMILIES",UASC 16&17,OTHER TRANSPORT ARRANGEMENTS,27/07/2023,9008659134,7.9,GWR OXFORD SST
OXFORDSHIRE CC,ENTERPRISEVC,,CAR LEASING - PRIVATE RENTALS,27/07/2023,9008659562,389.52,ENTERPRISE RENT-A-CAR
OXFORDSHIRE CC,ENTERPRISEVC,,CAR LEASING - PRIVATE RENTALS,27/07/2023,9008659554,281.52,ENTERPRISE RENT-A-CAR
OXFORDSHIRE CC,"CHILDRENS, YOUNG PEOPLE AND FAMILIES",40 THE MOORS,CATERING,27/07/2023,9008659666,54.52,JUST EAT
OXFORDSHIRE CC,"CHILDRENS, YOUNG PEOPLE AND FAMILIES",THAME E&A HOME,OTHER TRANSPORT ARRANGEMENTS,27/07/2023,9008659254,11.8,BCP_COUNCIL_PARKING_FE
OXFORDSHIRE CC,"CHILDRENS, YOUNG PEOPLE AND FAMILIES",THAME E&A HOME,VEHICLE FUEL,27/07/2023,9008659268,11.95,W M MORRISON PETROL
OXFORDSHIRE CC,"CHILDRENS, YOUNG PEOPLE AND FAMILIES",PAUSE PROGRAMME,CATERING PROVISIONS,27/07/2023,9008659278,2.3,CORNFIELD BAKERY
OXFORDSHIRE CC,"CHILDRENS, YOUNG PEOPLE AND FAMILIES","	LOOKED AFTER NORTH",VEHICLE FUEL,27/07/2023,9008659264,20,BINLEY S.STN FS609
OXFORDSHIRE CC,ENVIRONMENT AND ECONOMY,BANBURY LIBRARY,"NEWSPAPERS, PERIODICALS AND PUBLICATIONS",27/07/2023,9008659282,47.99,GUARDIAN NEWS & MEDIA
OXFORDSHIRE CC,ENTERPRISEVC,,CAR LEASING - PRIVATE RENTALS,27/07/2023,9008659530,399.91,ENTERPRISE RENT-A-CAR
OXFORDSHIRE CC,ENTERPRISEVC,,CAR LEASING - PRIVATE RENTALS,27/07/2023,9008659504,463.1,ENTERPRISE RENT-A-CAR
OXFORDSHIRE CC,ENTERPRISEVC,,CAR LEASING - PRIVATE RENTALS,27/07/2023,9008659518,"2,375.64",ENTERPRISE RENT-A-CAR
OXFORDSHIRE CC,ENTERPRISEVC,,CAR LEASING - PRIVATE RENTALS,27/07/2023,9008659512,281.52,ENTERPRISE RENT-A-CAR
OXFORDSHIRE CC,ENTERPRISEVC,,CAR LEASING - PRIVATE RENTALS,27/07/2023,9008659516,"1,441.44",ENTERPRISE RENT-A-CAR
OXFORDSHIRE CC,ENTERPRISEVC,,CAR LEASING - PRIVATE RENTALS,27/07/2023,9008659480,389.52,ENTERPRISE RENT-A-CAR
OXFORDSHIRE CC,ENTERPRISEVC,,CAR LEASING - PRIVATE RENTALS,27/07/2023,9008659474,389.52,ENTERPRISE RENT-A-CAR
OXFORDSHIRE CC,ENTERPRISEVC,,CAR LEASING - PRIVATE RENTALS,27/07/2023,9008659490,389.52,ENTERPRISE RENT-A-CAR
OXFORDSHIRE CC,"CHILDRENS, YOUNG PEOPLE AND FAMILIES","	LEAVING CARE NORTH",MATERIALS,27/07/2023,9008659604,193.94,WWW.ARGOS.CO.UK
OXFORDSHIRE CC,"CHILDRENS, YOUNG PEOPLE AND FAMILIES","	LEAVING CARE NORTH",MATERIALS,27/07/2023,9008659616,36.85,AMAZON.CO.UK Y87JE0QY5
OXFORDSHIRE CC,"CHILDRENS, YOUNG PEOPLE AND FAMILIES","	SM QUALITY ASSURANCE","SUPPLIES, STATIONERY AND MATERIALS",27/07/2023,9008659590,50,VOUCHER EXPRESS
OXFORDSHIRE CC,ENTERPRISEVC,,CAR LEASING - PRIVATE RENTALS,27/07/2023,9008659534,"1,091.54",ENTERPRISE RENT-A-CAR
OXFORDSHIRE CC,ENTERPRISEVC,,CAR LEASING - PRIVATE RENTALS,27/07/2023,9008659524,281.52,ENTERPRISE RENT-A-CAR
OXFORDSHIRE CC,ENTERPRISEVC,,CAR LEASING - PRIVATE RENTALS,27/07/2023,9008659508,281.52,ENTERPRISE RENT-A-CAR
OXFORDSHIRE CC,ENTERPRISEVC,,CAR LEASING - PRIVATE RENTALS,27/07/2023,9008659522,551.52,ENTERPRISE RENT-A-CAR
OXFORDSHIRE CC,ENTERPRISEVC,,CAR LEASING - PRIVATE RENTALS,27/07/2023,9008659532,"1,091.54",ENTERPRISE RENT-A-CAR
OXFORDSHIRE CC,ENTERPRISEVC,,CAR LEASING - PRIVATE RENTALS,27/07/2023,9008659528,"2,097.96",ENTERPRISE RENT-A-CAR
OXFORDSHIRE CC,ENTERPRISEVC,,CAR LEASING - PRIVATE RENTALS,27/07/2023,9008659486,389.52,ENTERPRISE RENT-A-CAR
OXFORDSHIRE CC,ENTERPRISEVC,,CAR LEASING - PRIVATE RENTALS,27/07/2023,9008659494,281.52,ENTERPRISE RENT-A-CAR
OXFORDSHIRE CC,"CHILDRENS, YOUNG PEOPLE AND FAMILIES",THAME E&A HOME,OTHER TRANSPORT ARRANGEMENTS,27/07/2023,9008659180,2.3,SHOPPERS 2 CAR PARK
OXFORDSHIRE CC,"CHILDRENS, YOUNG PEOPLE AND FAMILIES",CHILDREN IN CARE NON-STAFFING - CENTRL 1,PAYMENTS TO TRANSPORT OPERATORS,27/07/2023,9008659188,24.24,TRAINLINE.COM
OXFORDSHIRE CC,SOCIAL AND COMMUNITY SERVICES,CSS - OXFORD,CATERING PROVISIONS,27/07/2023,9008659196,2.25,ALDI STORES 775-142
OXFORDSHIRE CC,"CHILDRENS, YOUNG PEOPLE AND FAMILIES",KINGFISHER,CATERING,27/07/2023,9008659294,4,COSTA COFFEE 43010714
OXFORDSHIRE CC,"CHILDRENS, YOUNG PEOPLE AND FAMILIES",KINGFISHER,ENTERTAINMENT EXPENSES,27/07/2023,9008659302,10,HOLLYWOOD BOWL
OXFORDSHIRE CC,"CHILDRENS, YOUNG PEOPLE AND FAMILIES","	LEAVING CARE CITY 2",CATERING,27/07/2023,9008659312,4.98,MCDONALDS 953
OXFORDSHIRE CC,"CHILDRENS, YOUNG PEOPLE AND FAMILIES",THAME E&A HOME,CLOTHING AND UNIFORMS,27/07/2023,9008659178,10,CLAIRE'S ACCESSORIES
OXFORDSHIRE CC,"CHILDRENS, YOUNG PEOPLE AND FAMILIES",CHILDREN IN CARE NON-STAFFING - CENTRL 1,PAYMENTS TO TRANSPORT OPERATORS,27/07/2023,9008659186,24.24,TRAINLINE
OXFORDSHIRE CC,ENVIRONMENT AND ECONOMY,WASTE REDUCTION GEN,"SUPPLIES, STATIONERY AND MATERIALS",27/07/2023,9008659194,120.96,EB  FESTIVAL OF CIRCUL
OXFORDSHIRE CC,"CHILDRENS, YOUNG PEOPLE AND FAMILIES","	LEAVING CARE SOUTH",OTHER TRANSPORT ARRANGEMENTS,27/07/2023,9008659206,4.8,WESTGATE OXFORD CAR PA
OXFORDSHIRE CC,"CHILDRENS, YOUNG PEOPLE AND FAMILIES","	OCCG GRANT",DRUGS AND MEDICAL SUPPLIES,27/07/2023,9008659236,8.5,HEADINGTON PHARMACY
OXFORDSHIRE CC,"CHILDRENS, YOUNG PEOPLE AND FAMILIES",FIELDWORK UASC,FURNITURE,27/07/2023,9008659248,43,DUNELM LTD
OXFORDSHIRE CC,SOCIAL AND COMMUNITY SERVICES,CSS - OXFORD,CATERING PROVISIONS,27/07/2023,9008659262,32.75,ALDI STORES 775-142
OXFORDSHIRE CC,"CHILDRENS, YOUNG PEOPLE AND FAMILIES",WITNEY,CATERING PROVISIONS,27/07/2023,9008659272,21.89,LIDL GB WITNEY
OXFORDSHIRE CC,"CHILDRENS, YOUNG PEOPLE AND FAMILIES",KINGFISHER,CATERING,27/07/2023,9008659288,1.59,MCDONALDS
OXFORDSHIRE CC,"CHILDRENS, YOUNG PEOPLE AND FAMILIES",KINGFISHER,CATERING,27/07/2023,9008659298,9.38,NARROWS
OXFORDSHIRE CC,"CHILDRENS, YOUNG PEOPLE AND FAMILIES",THAME E&A HOME,CATERING PROVISIONS,27/07/2023,9008659182,3.39,SANDFORD HOLIDAY P
OXFORDSHIRE CC,"CHILDRENS, YOUNG PEOPLE AND FAMILIES",FAMILY SOLUTIONS PLUS NON-STAFF � SOUTH,HOSPITALITY EXPENSES,27/07/2023,9008659190,60,GREAT WESTERN HOTEL
OXFORDSHIRE CC,"CHILDRENS, YOUNG PEOPLE AND FAMILIES","	LOOKED AFTER NORTH",OTHER TRANSPORT ARRANGEMENTS,27/07/2023,9008659172,319,WWW.ANYVAN.COM
OXFORDSHIRE CC,"CHILDRENS, YOUNG PEOPLE AND FAMILIES","	LEAVING CARE NORTH",CATERING PROVISIONS,27/07/2023,9008659218,1.79,ALDI 112 775
OXFORDSHIRE CC,"CHILDRENS, YOUNG PEOPLE AND FAMILIES","	LOOKED AFTER NORTH",CATERING PROVISIONS,27/07/2023,9008659240,100,ASDA STORES LTD
OXFORDSHIRE CC,ENVIRONMENT AND ECONOMY,HARD FM,GENERAL MAINTENANCE,27/07/2023,9008659250,196.3,CITY ELECTRICAL FA
OXFORDSHIRE CC,SOCIAL AND COMMUNITY SERVICES,CSS BICESTER,IT SOFTWARE,27/07/2023,9008659174,38.7,SP EE-SUPPLIES
OXFORDSHIRE CC,"CHILDRENS, YOUNG PEOPLE AND FAMILIES","	LEAVING CARE CITY 2",OTHER TRANSPORT ARRANGEMENTS,27/07/2023,9008659184,66,WWW.THEKEY.CO.UK
OXFORDSHIRE CC,"CHILDRENS, YOUNG PEOPLE AND FAMILIES",THAME E&A HOME,FURNITURE,27/07/2023,9008659304,38.95,DUNELM SOFTFURNISHINGS
OXFORDSHIRE CC,"CHILDRENS, YOUNG PEOPLE AND FAMILIES","	LEAVING CARE CITY 2",CATERING,27/07/2023,9008659318,7.58,MCDONALDS 953
OXFORDSHIRE CC,"CHILDRENS, YOUNG PEOPLE AND FAMILIES",KINGFISHER,SUBSCRIPTIONS,27/07/2023,9008659292,14,BOX FIT PT
OXFORDSHIRE CC,"CHILDRENS, YOUNG PEOPLE AND FAMILIES",KINGFISHER,ENTERTAINMENT EXPENSES,27/07/2023,9008659300,3.1,HOLLYWOOD BOWL
OXFORDSHIRE CC,"CHILDRENS, YOUNG PEOPLE AND FAMILIES",PAUSE PROGRAMME,CATERING,27/07/2023,9008659310,6.98,BURGER KINGBURGER KING
OXFORDSHIRE CC,"CHILDRENS, YOUNG PEOPLE AND FAMILIES",FSP NON-STAFFING - CENTRAL,CATERING PROVISIONS,27/07/2023,9008659198,9.35,TESCO STORES 4377
OXFORDSHIRE CC,"CHILDRENS, YOUNG PEOPLE AND FAMILIES","	LEAVING CARE NORTH",CATERING PROVISIONS,27/07/2023,9008659224,9.86,SAINSBURYS S/MKTS
OXFORDSHIRE CC,"CHILDRENS, YOUNG PEOPLE AND FAMILIES",0-5 STDS & PROGRESS,MATERIALS,27/07/2023,9008659242,50,AMAZON.CO.UK C74VN4YO5
OXFORDSHIRE CC,"CHILDRENS, YOUNG PEOPLE AND FAMILIES",PAUSE PROGRAMME,CATERING,27/07/2023,9008659308,7.55,COSTA COFFEE 43011357
OXFORDSHIRE CC,"CHILDRENS, YOUNG PEOPLE AND FAMILIES",FIELDWORK UASC,OTHER TRANSPORT ARRANGEMENTS,27/07/2023,9008659246,95,OXFORD BUS CO
OXFORDSHIRE CC,"CHILDRENS, YOUNG PEOPLE AND FAMILIES",40 THE MOORS,OTHER EXPENSES,27/07/2023,9008659204,1.5,SUPERDRUG STORES PLC
OXFORDSHIRE CC,"CHILDRENS, YOUNG PEOPLE AND FAMILIES",PAUSE PROGRAMME,CATERING PROVISIONS,27/07/2023,9008659232,23.91,WM MORRISONS STORE
OXFORDSHIRE CC,"CHILDRENS, YOUNG PEOPLE AND FAMILIES",KINGFISHER,CATERING PROVISIONS,27/07/2023,9008659296,10,SAINSBURY'S S/MKT
OXFORDSHIRE CC,"CHILDRENS, YOUNG PEOPLE AND FAMILIES",CSS - ABINGDON,CATERING PROVISIONS,27/07/2023,9008659644,25.54,TESCO STORES 2008
OXFORDSHIRE CC,ENTERPRISEVC,,CAR LEASING - PRIVATE RENTALS,26/07/2023,9003633902,77.98,ENTERPRISE RENT-A-CAR
OXFORDSHIRE CC,ENTERPRISEVC,,CAR LEASING - PRIVATE RENTALS,26/07/2023,9003633898,90.64,ENTERPRISE RENT-A-CAR
OXFORDSHIRE CC,ENTERPRISEVC,,CAR LEASING - PRIVATE RENTALS,26/07/2023,9003633906,38.06,ENTERPRISE RENT-A-CAR
OXFORDSHIRE CC,ENTERPRISEVC,,CAR LEASING - PRIVATE RENTALS,26/07/2023,9003633896,77.5,ENTERPRISE RENT-A-CAR
OXFORDSHIRE CC,ENTERPRISEVC,,CAR LEASING - PRIVATE RENTALS,26/07/2023,9003633904,38.75,ENTERPRISE RENT-A-CAR
OXFORDSHIRE CC,ENTERPRISEVC,,CAR LEASING - PRIVATE RENTALS,26/07/2023,9003633900,81.1,ENTERPRISE RENT-A-CAR
OXFORDSHIRE CC,ENTERPRISEVC,,CAR LEASING - PRIVATE RENTALS,26/07/2023,9003633926,38.75,ENTERPRISE RENT-A-CAR
OXFORDSHIRE CC,ENTERPRISEVC,,CAR LEASING - PRIVATE RENTALS,26/07/2023,9003633908,82.3,ENTERPRISE RENT-A-CAR
OXFORDSHIRE CC,CORPORATE CORE,,STATIONERY,26/07/2023,9003633892,77.33,LYRECO UK LTD
OXFORDSHIRE CC,CORPORATE CORE,,STATIONERY,26/07/2023,9003633894,47.4,LYRECO UK LTD
OXFORDSHIRE CC,CORPORATE CORE,,STATIONERY,26/07/2023,9003633888,16.66,LYRECO UK LTD
OXFORDSHIRE CC,SHARED SERVICES,CSC SUPP & SERVICES,"SUPPLIES, STATIONERY AND MATERIALS",26/07/2023,9003633712,64.96,AMZNMKTPLACE
OXFORDSHIRE CC,"CHILDRENS, YOUNG PEOPLE AND FAMILIES","	LEAVING CARE NORTH",CATERING PROVISIONS,26/07/2023,9003633720,11.37,SAINSBURYS SUPERMA
OXFORDSHIRE CC,"CHILDRENS, YOUNG PEOPLE AND FAMILIES",FSP NON-STAFFING - CENTRAL,OTHER SALES,26/07/2023,9003633730,50,VOUCHER EXPRESS
OXFORDSHIRE CC,SHARED SERVICES,CSC SUPP & SERVICES,POSTAGE AND DELIVERY,26/07/2023,9003633710,8.45,ROYAL MAIL GROUP LTD
OXFORDSHIRE CC,SOCIAL AND COMMUNITY SERVICES,CHILDREN IN CARE NON-STAFFING - NORTH,VEHICLE FUEL,26/07/2023,9003633714,55.63,TESCO PAY AT PUMP 4267
OXFORDSHIRE CC,"CHILDRENS, YOUNG PEOPLE AND FAMILIES","	SEN/ICT EQUIPMENT",OTHER TRANSPORT ARRANGEMENTS,26/07/2023,9003633722,13.19,UPS LTD
OXFORDSHIRE CC,"CHILDRENS, YOUNG PEOPLE AND FAMILIES",FSP NON-STAFFING - CENTRAL,OTHER SALES,26/07/2023,9003633734,250,VOUCHER EXPRESS
OXFORDSHIRE CC,"CHILDRENS, YOUNG PEOPLE AND FAMILIES",CHILDREN IN CARE NON-STAFFING - CENTRL 2,PAYMENT TO GOVERNMENT DEPARTMENTS,26/07/2023,9003633696,53.5,HM PASSPORT OFFICE
OXFORDSHIRE CC,"CHILDRENS, YOUNG PEOPLE AND FAMILIES","	LEAVING CARE SOUTH",CATERING,26/07/2023,9003633706,2.05,COSTA COFFEE 43010835
OXFORDSHIRE CC,SOCIAL AND COMMUNITY SERVICES,COMMUNITY PARTNERSHIP TEAM,CATERING PROVISIONS,26/07/2023,9003633704,169.59,TESCO STORES 2008
OXFORDSHIRE CC,SHARED SERVICES,CSC SUPP & SERVICES,CATERING,26/07/2023,9003633708,33.4,COSTA COFFEE 43010835
OXFORDSHIRE CC,"CHILDRENS, YOUNG PEOPLE AND FAMILIES",PAUSE PROGRAMME,CATERING PROVISIONS,26/07/2023,9003633724,31.34,TESCO STORES 2008
OXFORDSHIRE CC,ENTERPRISEVC,,CAR LEASING - PRIVATE RENTALS,26/07/2023,9003633916,77.98,ENTERPRISE RENT-A-CAR
OXFORDSHIRE CC,ENTERPRISEVC,,CAR LEASING - PRIVATE RENTALS,26/07/2023,9003633924,137.78,ENTERPRISE RENT-A-CAR
OXFORDSHIRE CC,ENTERPRISEVC,,CAR LEASING - PRIVATE RENTALS,26/07/2023,9003633932,977.09,ENTERPRISE RENT-A-CAR
OXFORDSHIRE CC,ENTERPRISEVC,,CAR LEASING - PRIVATE RENTALS,26/07/2023,9003633934,890.4,ENTERPRISE RENT-A-CAR
OXFORDSHIRE CC,ENTERPRISEVC,,CAR LEASING - PRIVATE RENTALS,26/07/2023,9003633914,77.98,ENTERPRISE RENT-A-CAR
OXFORDSHIRE CC,ENTERPRISEVC,,CAR LEASING - PRIVATE RENTALS,26/07/2023,9003633922,103.67,ENTERPRISE RENT-A-CAR
OXFORDSHIRE CC,ENTERPRISEVC,,CAR LEASING - PRIVATE RENTALS,26/07/2023,9003633910,126.19,ENTERPRISE RENT-A-CAR
OXFORDSHIRE CC,ENTERPRISEVC,,CAR LEASING - PRIVATE RENTALS,26/07/2023,9003633918,126.19,ENTERPRISE RENT-A-CAR
OXFORDSHIRE CC,ENTERPRISEVC,,CAR LEASING - PRIVATE RENTALS,26/07/2023,9003633928,90.19,ENTERPRISE RENT-A-CAR
OXFORDSHIRE CC,ENTERPRISEVC,,CAR LEASING - PRIVATE RENTALS,26/07/2023,9003633912,48.89,ENTERPRISE RENT-A-CAR
OXFORDSHIRE CC,ENTERPRISEVC,,CAR LEASING - PRIVATE RENTALS,26/07/2023,9003633920,157.94,ENTERPRISE RENT-A-CAR
OXFORDSHIRE CC,ENTERPRISEVC,,CAR LEASING - PRIVATE RENTALS,26/07/2023,9003633930,261.23,ENTERPRISE RENT-A-CAR
OXFORDSHIRE CC,CORPORATE CORE,"MARKETING, COMMUNICATIONS & ENGAGEMENT","PUBLICITY, PROMOTIONS AND ADVERTISEMENT",26/07/2023,9003633960,105.27,SNAP INC SNAP SNAP ADS
OXFORDSHIRE CC,"CHILDRENS, YOUNG PEOPLE AND FAMILIES",40 THE MOORS,POCKET MONEY (PAID TO CHILDREN),26/07/2023,9003633968,20,SAINSBURY'S S/MKT
OXFORDSHIRE CC,"CHILDRENS, YOUNG PEOPLE AND FAMILIES",DIDCOT MOVE-ON HOME,CATERING PROVISIONS,26/07/2023,9003633976,15,SAINSBURYS S/MKTS
OXFORDSHIRE CC,"CHILDRENS, YOUNG PEOPLE AND FAMILIES",CSS - ABINGDON,HARDWARE AND CROCKERY,26/07/2023,9003634012,12,OXFORD WOOD RECYCLING
OXFORDSHIRE CC,"CHILDRENS, YOUNG PEOPLE AND FAMILIES","	LAC PUPIL PREMIUM",PURCHASE OF IT EQUIPMENT,26/07/2023,9003633984,850,VOUCHER EXPRESS
OXFORDSHIRE CC,"CHILDRENS, YOUNG PEOPLE AND FAMILIES","	LEAVING CARE CITY 2",FURNITURE,26/07/2023,9003633992,226.89,WITNEY INSIDE SAINSBUR
OXFORDSHIRE CC,ENVIRONMENT AND ECONOMY,HARD FM,GENERAL MAINTENANCE,26/07/2023,9003634000,365.15,WOLSELEY UK
OXFORDSHIRE CC,"CHILDRENS, YOUNG PEOPLE AND FAMILIES",FSP NON-STAFFING - CENTRAL,OTHER TRANSPORT ARRANGEMENTS,26/07/2023,9003634006,2,OXFORD BUS COMPANY
OXFORDSHIRE CC,"CHILDRENS, YOUNG PEOPLE AND FAMILIES","DIDCOT CC, PARK ROAD",MATERIALS,26/07/2023,9003633962,290,WWW.ARGOS.CO.UK
OXFORDSHIRE CC,"CHILDRENS, YOUNG PEOPLE AND FAMILIES",FSP NON-STAFFING - CENTRAL,OTHER TRANSPORT ARRANGEMENTS,26/07/2023,9003634008,2,STGCOACH/CTYLINK
OXFORDSHIRE CC,"CHILDRENS, YOUNG PEOPLE AND FAMILIES",40 THE MOORS,OTHER EXPENSES,26/07/2023,9003633970,6.55,SAINSBURYS S/MKTS
OXFORDSHIRE CC,"CHILDRENS, YOUNG PEOPLE AND FAMILIES",DIDCOT MOVE-ON HOME,CATERING PROVISIONS,26/07/2023,9003633978,36.13,SAINSBURYS S/MKTS
OXFORDSHIRE CC,ENVIRONMENT AND ECONOMY,"	KNIGHTS COURT",MATERIALS,26/07/2023,9003634014,18.98,AMZNMKTPLACE AMAZON.CO
OXFORDSHIRE CC,ENVIRONMENT AND ECONOMY,HARD FM,PREMISES REPAIRS,26/07/2023,9003633666,153.94,WWW.SPEEDYSERVICES.COM
OXFORDSHIRE CC,"CHILDRENS, YOUNG PEOPLE AND FAMILIES","	LEAVING CARE CITY 1",OTHER EXPENSES,26/07/2023,9003633676,733,FPG PAVILION COURT
OXFORDSHIRE CC,"CHILDRENS, YOUNG PEOPLE AND FAMILIES",THAME E&A HOME,RESIDENTIAL ACTIVITIES,26/07/2023,9003633684,15.92,SANDFORD HOLIDAY PARK
OXFORDSHIRE CC,ENVIRONMENT AND ECONOMY,"	COUNTY PRINT FINSHRS",MATERIALS,26/07/2023,9003633668,-27.95,AMZ SAFETY WORKWEAR UK
OXFORDSHIRE CC,ENVIRONMENT AND ECONOMY,HARD FM,PREMISES REPAIRS,26/07/2023,9003633660,137.14,AIR CONDITIONING GROUP
OXFORDSHIRE CC,"CHILDRENS, YOUNG PEOPLE AND FAMILIES","	LEAVING CARE CITY 1",OTHER EXPENSES,26/07/2023,9003633678,730,FPG PAVILION COURT
OXFORDSHIRE CC,ENVIRONMENT AND ECONOMY,HARD FM,PREMISES REPAIRS,26/07/2023,9003633662,12.49,WWW.SCREWFIX.COM
OXFORDSHIRE CC,SOCIAL AND COMMUNITY SERVICES,UASC 16&17,CATERING PROVISIONS,26/07/2023,9003633672,28,TESCO STORES 2994
OXFORDSHIRE CC,"CHILDRENS, YOUNG PEOPLE AND FAMILIES",THAME E&A HOME,CATERING,26/07/2023,9003633680,52,ROCKWATER SANDBANKS
OXFORDSHIRE CC,ENVIRONMENT AND ECONOMY,HARD FM,PREMISES REPAIRS,26/07/2023,9003633664,59.72,SAFETY SIGNS 4 LESS
OXFORDSHIRE CC,"CHILDRENS, YOUNG PEOPLE AND FAMILIES","	LEAVING CARE CITY 1",OTHER EXPENSES,26/07/2023,9003633674,"1,000.00",FPG PAVILION COURT
OXFORDSHIRE CC,"CHILDRENS, YOUNG PEOPLE AND FAMILIES",THAME E&A HOME,OTHER TRANSPORT ARRANGEMENTS,26/07/2023,9003633682,11.8,BCP COUNCIL PARKING FE
OXFORDSHIRE CC,CORPORATE CORE,CATERING MANAGEMENT SOFT FM,MATERIALS,26/07/2023,9003633634,17.84,AMZNMKTPLACE
OXFORDSHIRE CC,"CHILDRENS, YOUNG PEOPLE AND FAMILIES",CSS WANTAGE,CATERING PROVISIONS,26/07/2023,9003633644,9.9,ASDA STORES 5123
OXFORDSHIRE CC,"CHILDRENS, YOUNG PEOPLE AND FAMILIES",UASC 16&17,RESIDENTIAL ACTIVITIES,26/07/2023,9003633652,16.19,CYCLE KING
OXFORDSHIRE CC,"CHILDRENS, YOUNG PEOPLE AND FAMILIES",NTS UASC AGENCY,CATERING PROVISIONS,26/07/2023,9003633726,3.9,CO-OPERATIVE FOOD
OXFORDSHIRE CC,"CHILDRENS, YOUNG PEOPLE AND FAMILIES",PAUSE PROGRAMME,CATERING PROVISIONS,26/07/2023,9003633776,5.75,SAINSBURYS S/MKTS
OXFORDSHIRE CC,"CHILDRENS, YOUNG PEOPLE AND FAMILIES",PAUSE PROGRAMME,MATERIALS,26/07/2023,9003633772,1,CARD FACTORY
OXFORDSHIRE CC,"CHILDRENS, YOUNG PEOPLE AND FAMILIES",KINGFISHER,HOSPITALITY EXPENSES,26/07/2023,9003633784,2.8,TROOPER POTTS
OXFORDSHIRE CC,"CHILDRENS, YOUNG PEOPLE AND FAMILIES",KINGFISHER,SUBSCRIPTIONS,26/07/2023,9003633788,87.48,TEAMSPORT
OXFORDSHIRE CC,"CHILDRENS, YOUNG PEOPLE AND FAMILIES",PAUSE PROGRAMME,PAYMENTS TO VOLUNTARY BODIES,26/07/2023,9003633780,13.5,SUMUP   ORINOCO
OXFORDSHIRE CC,"CHILDRENS, YOUNG PEOPLE AND FAMILIES",DIDCOT MOVE-ON HOME,DOMESTIC SUPPLIES,26/07/2023,9003633740,2,SAINSBURYS S/MKTS
OXFORDSHIRE CC,"CHILDRENS, YOUNG PEOPLE AND FAMILIES",UASC POST 18,"SUPPLIES, STATIONERY AND MATERIALS",26/07/2023,9003633728,2,ASDA STORE 4442
OXFORDSHIRE CC,"CHILDRENS, YOUNG PEOPLE AND FAMILIES",DEPUTY DIRECTOR &MAN,POSTAGE AND DELIVERY,26/07/2023,9003633798,4.49,ROYAL MAIL GROUP LTD
OXFORDSHIRE CC,"CHILDRENS, YOUNG PEOPLE AND FAMILIES",KINGFISHER,SUBSCRIPTIONS,26/07/2023,9003633786,3.95,TEAMSPORT
OXFORDSHIRE CC,"CHILDRENS, YOUNG PEOPLE AND FAMILIES",KINGFISHER,HOSPITALITY EXPENSES,26/07/2023,9003633782,26.57,TROOPER POTTS
OXFORDSHIRE CC,"CHILDRENS, YOUNG PEOPLE AND FAMILIES",KINGFISHER,SUBSCRIPTIONS,26/07/2023,9003633790,40,TEAMSPORT
OXFORDSHIRE CC,"CHILDRENS, YOUNG PEOPLE AND FAMILIES",PAUSE PROGRAMME,CATERING PROVISIONS,26/07/2023,9003633770,25,B&M 514 - DICOT
OXFORDSHIRE CC,"CHILDRENS, YOUNG PEOPLE AND FAMILIES",CSS WANTAGE,MATERIALS,26/07/2023,9003633646,28.14,AMZNMKTPLACE
OXFORDSHIRE CC,"CHILDRENS, YOUNG PEOPLE AND FAMILIES",CHILDREN IN CARE NON-STAFFING - SOUTH,PAYMENT TO GOVERNMENT DEPARTMENTS,26/07/2023,9003633632,131,HM PASSPORT OFFICE
OXFORDSHIRE CC,"CHILDRENS, YOUNG PEOPLE AND FAMILIES",PAUSE PROGRAMME,MATERIALS,26/07/2023,9003633768,9.5,POUNDLAND LTD - 1949
OXFORDSHIRE CC,"CHILDRENS, YOUNG PEOPLE AND FAMILIES",CSS WALLINGFORD,DOMESTIC SUPPLIES,26/07/2023,9003633630,81.84,AMZNMKTPLACE
OXFORDSHIRE CC,"CHILDRENS, YOUNG PEOPLE AND FAMILIES",CSS WANTAGE,CATERING PROVISIONS,26/07/2023,9003633650,-2.7,ASDA GROCERIES ONLINE
OXFORDSHIRE CC,"CHILDRENS, YOUNG PEOPLE AND FAMILIES",CSS WANTAGE,CATERING PROVISIONS,26/07/2023,9003633642,140.35,ASDA GROCERIES ONLINE
OXFORDSHIRE CC,"CHILDRENS, YOUNG PEOPLE AND FAMILIES",WITNEY,CATERING PROVISIONS,26/07/2023,9003633954,7.14,SAINSBURYS S/MKTS
OXFORDSHIRE CC,"CHILDRENS, YOUNG PEOPLE AND FAMILIES",FAMILY SOLUTIONS PLUS NON-STAFF - NORTH,CATERING PROVISIONS,26/07/2023,9003633938,10,WAITROSE 142
OXFORDSHIRE CC,"CHILDRENS, YOUNG PEOPLE AND FAMILIES","	SM QUALITY ASSURANCE",CATERING PROVISIONS,26/07/2023,9003633946,25,TESCO GIFT CARD
OXFORDSHIRE CC,"CHILDRENS, YOUNG PEOPLE AND FAMILIES",HOUSE PROJECT,CATERING PROVISIONS,26/07/2023,9003633940,12.35,SAINSBURYS S/MKTS
OXFORDSHIRE CC,SOCIAL AND COMMUNITY SERVICES,LIBRARY PROJECTS,MATERIALS,26/07/2023,9003633948,398,AMZNMKTPLACE AMAZON.CO
OXFORDSHIRE CC,"CHILDRENS, YOUNG PEOPLE AND FAMILIES",NRPF & HOMELESSNESS,HIRE OF ACCOMMODATION AND FACILITIES,26/07/2023,9003633956,643.54,TRAVELODGE
OXFORDSHIRE CC,SOCIAL AND COMMUNITY SERVICES,LIBRARY PROJECTS,MATERIALS,26/07/2023,9003633950,398,AMZNMKTPLACE AMAZON.CO
OXFORDSHIRE CC,CORPORATE CORE,"MARKETING, COMMUNICATIONS & ENGAGEMENT","PUBLICITY, PROMOTIONS AND ADVERTISEMENT",26/07/2023,9003633958,167.44,ADOBE STOCK
OXFORDSHIRE CC,"CHILDRENS, YOUNG PEOPLE AND FAMILIES","	SM QUALITY ASSURANCE",CATERING,26/07/2023,9003633942,10,COSTA COFFEE 43010890
OXFORDSHIRE CC,CORPORATE CORE,,STATIONERY,26/07/2023,9003633890,20.81,LYRECO UK LTD
OXFORDSHIRE CC,CORPORATE CORE,THAME LIBRARY,CATERING PROVISIONS,26/07/2023,9003633876,5.6,SAINSBURYS S/MKTS
OXFORDSHIRE CC,CORPORATE CORE,,STATIONERY,26/07/2023,9003633884,71.52,LYRECO UK LTD
OXFORDSHIRE CC,"CHILDRENS, YOUNG PEOPLE AND FAMILIES","	LEAVING CARE SOUTH",OTHER TRANSPORT ARRANGEMENTS,26/07/2023,9003633870,2,OXFORD BUS COMPANY
OXFORDSHIRE CC,"CHILDRENS, YOUNG PEOPLE AND FAMILIES",EYNSHAM,DRUGS AND MEDICAL SUPPLIES,26/07/2023,9003633878,9.95,AMZNMKTPLACE AMAZON.CO
OXFORDSHIRE CC,CORPORATE CORE,,STATIONERY,26/07/2023,9003633886,20.81,LYRECO UK LTD
OXFORDSHIRE CC,"CHILDRENS, YOUNG PEOPLE AND FAMILIES",EYNSHAM,CATERING PROVISIONS,26/07/2023,9003633872,144.45,TESCO STORES 2008
OXFORDSHIRE CC,"CHILDRENS, YOUNG PEOPLE AND FAMILIES",EYNSHAM,MATERIALS,26/07/2023,9003633880,14.97,AMZNMKTPLACE AMAZON.CO
OXFORDSHIRE CC,"CHILDRENS, YOUNG PEOPLE AND FAMILIES",EYNSHAM,MATERIALS,26/07/2023,9003633874,7.99,TESCO SUBSCRIPTION
OXFORDSHIRE CC,CORPORATE CORE,,STATIONERY,26/07/2023,9003633882,41.62,LYRECO UK LTD
OXFORDSHIRE CC,"CHILDRENS, YOUNG PEOPLE AND FAMILIES","	LEAVING CARE SOUTH",ENTERTAINMENT EXPENSES,26/07/2023,9003633868,12,OXFORD PLAYHOUSE
OXFORDSHIRE CC,ENVIRONMENT AND ECONOMY,"	NAT TRAILS GENERAL",VEHICLE FUEL,26/07/2023,9003633804,70.58,BP BUCKLAND CONNECT
OXFORDSHIRE CC,CORPORATE CORE,BUSINESS INTELLECTUAL PROPERTY CENTRE,CATERING PROVISIONS,26/07/2023,9003633822,43.6,SAINSBURY'S S/MKT
OXFORDSHIRE CC,"CHILDRENS, YOUNG PEOPLE AND FAMILIES",THAME E&A HOME,CATERING PROVISIONS,26/07/2023,9003633744,36.95,HAVEN FERRY SHOP
OXFORDSHIRE CC,"CHILDRENS, YOUNG PEOPLE AND FAMILIES","	LEAVING CARE SOUTH",PAYMENTS TO TRANSPORT OPERATORS,26/07/2023,9003633754,88.74,TRAINLINE
OXFORDSHIRE CC,ENVIRONMENT AND ECONOMY,LIB ICT SUPPRT&MAINT,PURCHASE OF IT EQUIPMENT,26/07/2023,9003633810,384.93,AMZNMKTPLACE
OXFORDSHIRE CC,SOCIAL AND COMMUNITY SERVICES,CSS WITNEY,CATERING PROVISIONS,26/07/2023,9003633818,14.51,CO-OP GROUP 070582
OXFORDSHIRE CC,"CHILDRENS, YOUNG PEOPLE AND FAMILIES",EET SERVICE,MATERIALS,26/07/2023,9003633842,35.63,AMZNMKTPLACE AMAZON.CO
OXFORDSHIRE CC,"CHILDRENS, YOUNG PEOPLE AND FAMILIES","	RESIDENTIAL STRATEGY",CATERING PROVISIONS,26/07/2023,9003633766,13.95,SAINSBURYS S/MKTS
OXFORDSHIRE CC,"CHILDRENS, YOUNG PEOPLE AND FAMILIES",NRPF & HOMELESSNESS,MATERIALS,26/07/2023,9003633844,12,WWW.ARGOS.CO.UK
OXFORDSHIRE CC,"CHILDRENS, YOUNG PEOPLE AND FAMILIES",WITNEY,VEHICLE FUEL,26/07/2023,9003633852,6.57,SHELL WITNEY
OXFORDSHIRE CC,"CHILDRENS, YOUNG PEOPLE AND FAMILIES",THAME E&A HOME,CATERING,26/07/2023,9003633748,21.9,ROCKWATER BRANKSOME
OXFORDSHIRE CC,"CHILDRENS, YOUNG PEOPLE AND FAMILIES","	LEAVING CARE SOUTH",OTHER TRANSPORT ARRANGEMENTS,26/07/2023,9003633756,45,THE AIRLINE
OXFORDSHIRE CC,"CHILDRENS, YOUNG PEOPLE AND FAMILIES",CHILDREN IN CARE NON-STAFFING - NORTH,OTHER EXPENSES,26/07/2023,9003633752,3.79,TEAMSPORT NOTTINGHAM
OXFORDSHIRE CC,ENVIRONMENT AND ECONOMY,LIB ICT SUPPRT&MAINT,PURCHASE OF IT EQUIPMENT,26/07/2023,9003633806,175.99,AMZNMKTPLACE
OXFORDSHIRE CC,CORPORATE CORE,BUSINESS INTELLECTUAL PROPERTY CENTRE,CATERING PROVISIONS,26/07/2023,9003633824,7.85,SAINSBURYS S/MKTS
OXFORDSHIRE CC,"CHILDRENS, YOUNG PEOPLE AND FAMILIES",40 THE MOORS,CATERING PROVISIONS,26/07/2023,9003633854,13.65,CO-OPERATIVE FOOD
OXFORDSHIRE CC,"CHILDRENS, YOUNG PEOPLE AND FAMILIES",THAME E&A HOME,CATERING,26/07/2023,9003633750,7.1,ROCKWATER BRANKSOME
OXFORDSHIRE CC,"CHILDRENS, YOUNG PEOPLE AND FAMILIES","	FOSTER CARE RECRUIT","SUPPLIES, STATIONERY AND MATERIALS",26/07/2023,9003633812,11.5,CO-OPERATIVE FOOD
OXFORDSHIRE CC,CORPORATE CORE,BUSINESS INTELLECTUAL PROPERTY CENTRE,CATERING,26/07/2023,9003633820,20,BENITOS HAT
OXFORDSHIRE CC,"CHILDRENS, YOUNG PEOPLE AND FAMILIES","	LOOKED AFTER CITY 2",OTHER TRANSPORT ARRANGEMENTS,26/07/2023,9003633834,2,OXFORD BUS COMPANY
OXFORDSHIRE CC,ENVIRONMENT AND ECONOMY,"	COUNTY HALL",CATERING PROVISIONS,26/07/2023,9003633832,120.85,SAINSBURY'S S/MKT
OXFORDSHIRE CC,SOCIAL AND COMMUNITY SERVICES,CSS - BANBURY,ENTERTAINMENT EXPENSES,26/07/2023,9003634002,10.4,SPICEBALL LEISURE CENT
OXFORDSHIRE CC,ENTERPRISEVC,,CAR LEASING - PRIVATE RENTALS,26/07/2023,9003633936,"1,600.03",ENTERPRISE RENT-A-CAR
OXFORDSHIRE CC,"CHILDRENS, YOUNG PEOPLE AND FAMILIES",40 THE MOORS,POCKET MONEY (PAID TO CHILDREN),26/07/2023,9003633972,20,SAINSBURYS S/MKTS
OXFORDSHIRE CC,SOCIAL AND COMMUNITY SERVICES,"	HISTORY SERVICE","BOOKS, DVDS AND CDS",26/07/2023,9003633980,-6.78,AB  ABEBOOKS.UK JVQT5N
OXFORDSHIRE CC,"CHILDRENS, YOUNG PEOPLE AND FAMILIES",NRPF & HOMELESSNESS,NON-STAFF SUBSISTENCE AND EXPENSES,26/07/2023,9003633986,481.36,TRAVELODGE
OXFORDSHIRE CC,CORPORATE CORE,PROPERTY DISPOSALS,TECHNICAL AND PROFESSIONAL CONSULTANT F,26/07/2023,9003633994,"1,800.00",NATHANIEL LICHFIELD
OXFORDSHIRE CC,ENVIRONMENT AND ECONOMY,MUSEUMS COLLECTIONS,ROAD FUND LICENCES AND MOTS,26/07/2023,9003634004,54.85,THE WITNEY MOTOR CO LT
OXFORDSHIRE CC,ENVIRONMENT AND ECONOMY,MUSEUMS COLLECTIONS,ROAD FUND LICENCES AND MOTS,26/07/2023,9003634004,249.28,THE WITNEY MOTOR CO LT
OXFORDSHIRE CC,"CHILDRENS, YOUNG PEOPLE AND FAMILIES","	SM QUALITY ASSURANCE",CATERING,26/07/2023,9003633944,12.17,KFC-BANBURY
OXFORDSHIRE CC,"CHILDRENS, YOUNG PEOPLE AND FAMILIES",WITNEY,MATERIALS,26/07/2023,9003633952,1.29,CARD FACTORY
OXFORDSHIRE CC,"CHILDRENS, YOUNG PEOPLE AND FAMILIES","	OCCG GRANT",OTHER TRANSPORT ARRANGEMENTS,26/07/2023,9003633966,4,STGCOACH/CTYLINK
OXFORDSHIRE CC,"CHILDRENS, YOUNG PEOPLE AND FAMILIES",40 THE MOORS,POCKET MONEY (PAID TO CHILDREN),26/07/2023,9003633974,-20,SAINSBURY'S S/MKT
OXFORDSHIRE CC,"CHILDRENS, YOUNG PEOPLE AND FAMILIES","	LAC PUPIL PREMIUM",EDUCATIONAL AND VOCATIONAL TRAINING ,26/07/2023,9003633982,100,AMAZON.CO.UK ZE3HR33I5
OXFORDSHIRE CC,"CHILDRENS, YOUNG PEOPLE AND FAMILIES",FSP NON-STAFFING - CENTRAL,MATERIALS,26/07/2023,9003634010,20.98,AMZNMKTPLACE AMAZON.CO
OXFORDSHIRE CC,"CHILDRENS, YOUNG PEOPLE AND FAMILIES",NRPF & HOMELESSNESS,NON-STAFF SUBSISTENCE AND EXPENSES,26/07/2023,9003633988,750.63,TRAVELODGE
OXFORDSHIRE CC,CORPORATE CORE,PROPERTY DISPOSALS,TECHNICAL AND PROFESSIONAL CONSULTANT F,26/07/2023,9003633996,"1,800.00",NATHANIEL LICHFIELD
OXFORDSHIRE CC,ENVIRONMENT AND ECONOMY,HOLDING CODE FOR REA,IT SOFTWARE,26/07/2023,9003633990,138.96,SP EASY CONTROL GEAR
OXFORDSHIRE CC,ENVIRONMENT AND ECONOMY,HARD FM,EQUIPMENT,26/07/2023,9003633998,31.76,WILLIAMS & CO
OXFORDSHIRE CC,"CHILDRENS, YOUNG PEOPLE AND FAMILIES",DIDCOT MOVE-ON HOME,CATERING PROVISIONS,25/07/2023,8999490414,1.45,TESCO STORES 2413
OXFORDSHIRE CC,"CHILDRENS, YOUNG PEOPLE AND FAMILIES",EYNSHAM,DAY ACTIVITIES,25/07/2023,8999490372,46.4,FUSION LIFESTYLE
OXFORDSHIRE CC,"CHILDRENS, YOUNG PEOPLE AND FAMILIES",EYNSHAM,MATERIALS,25/07/2023,8999490374,29.99,AMZNMKTPLACE AMAZON.CO
OXFORDSHIRE CC,SOCIAL AND COMMUNITY SERVICES,WALLINGFORD LIBRARY,CATERING PROVISIONS,25/07/2023,8999490380,2.75,WAITROSE 675
OXFORDSHIRE CC,"CHILDRENS, YOUNG PEOPLE AND FAMILIES",FAMILY SOLUTIONS PLUS NON-STAFF � SOUTH,PAYMENT TO GOVERNMENT DEPARTMENTS,25/07/2023,8999490424,14,GEN REGISTER OFFICE
OXFORDSHIRE CC,"CHILDRENS, YOUNG PEOPLE AND FAMILIES",THAME E&A HOME,CATERING PROVISIONS,25/07/2023,8999490226,9.24,SANDFORD HOLIDAY P
OXFORDSHIRE CC,ENVIRONMENT AND ECONOMY,HARD FM,PREMISES REPAIRS,25/07/2023,8999490246,26.27,B AND Q
OXFORDSHIRE CC,"CHILDRENS, YOUNG PEOPLE AND FAMILIES",THAME E&A HOME,CATERING PROVISIONS,25/07/2023,8999490224,247.45,TESCO STORES 3040
OXFORDSHIRE CC,ENVIRONMENT AND ECONOMY,HARD FM,PREMISES REPAIRS,25/07/2023,8999490244,23.7,WICKES OXFORD
OXFORDSHIRE CC,"CHILDRENS, YOUNG PEOPLE AND FAMILIES",NTS UASC AGENCY,ENTERTAINMENT EXPENSES,25/07/2023,8999490270,18,COTSWOLD WILDLIFE PARK
OXFORDSHIRE CC,"CHILDRENS, YOUNG PEOPLE AND FAMILIES","	OCCG GRANT",ENTERTAINMENT EXPENSES,25/07/2023,8999490270,18,COTSWOLD WILDLIFE PARK
OXFORDSHIRE CC,ENVIRONMENT AND ECONOMY,"	NAT TRAILS GENERAL",CATERING PROVISIONS,25/07/2023,8999490278,1,CO OPERATIVE FOOD
OXFORDSHIRE CC,"CHILDRENS, YOUNG PEOPLE AND FAMILIES",CHILDREN IN CARE NON-STAFFING - NORTH,CATERING,25/07/2023,8999490256,4.8,CHERWELL VALLEY COSTA
OXFORDSHIRE CC,ENVIRONMENT AND ECONOMY,"	KNIGHTS COURT",OTHER TRANSPORT ARRANGEMENTS,25/07/2023,8999490274,3,RED LION KIDDLINGTON
OXFORDSHIRE CC,"CHILDRENS, YOUNG PEOPLE AND FAMILIES",40 THE MOORS,CATERING PROVISIONS,25/07/2023,8999490220,24.15,TESCO STORES 2990
OXFORDSHIRE CC,"CHILDRENS, YOUNG PEOPLE AND FAMILIES",UASC POST 18,CATERING,25/07/2023,8999490228,5.2,MNK DELIGHT KEBAB HOUS
OXFORDSHIRE CC,"CHILDRENS, YOUNG PEOPLE AND FAMILIES","	RESIDENTIAL STRATEGY",CATERING PROVISIONS,25/07/2023,8999490240,7.9,CO-OPERATIVE FOOD
OXFORDSHIRE CC,"CHILDRENS, YOUNG PEOPLE AND FAMILIES",CHILDREN IN CARE NON-STAFFING - NORTH,PAYMENT TO GOVERNMENT DEPARTMENTS,25/07/2023,8999490254,34,DVLA DRIVER ONLINE
OXFORDSHIRE CC,ENVIRONMENT AND ECONOMY,"	KNIGHTS COURT",OTHER TRANSPORT ARRANGEMENTS,25/07/2023,8999490272,15.2,UNION STREET CAR PARK
OXFORDSHIRE CC,"CHILDRENS, YOUNG PEOPLE AND FAMILIES",PAUSE PROGRAMME,CATERING PROVISIONS,25/07/2023,8999490248,6.39,GREGGS GREATER LEYS
OXFORDSHIRE CC,"CHILDRENS, YOUNG PEOPLE AND FAMILIES","	OCCG GRANT",CATERING PROVISIONS,25/07/2023,8999490268,10.49,TESCO STORES 2994
OXFORDSHIRE CC,"CHILDRENS, YOUNG PEOPLE AND FAMILIES",NTS UASC AGENCY,CATERING PROVISIONS,25/07/2023,8999490268,10.48,TESCO STORES 2994
OXFORDSHIRE CC,ENVIRONMENT AND ECONOMY,LIB ICT SUPPRT&MAINT,EQUIPMENT,25/07/2023,8999490280,244.79,AMZNMKTPLACE
OXFORDSHIRE CC,"CHILDRENS, YOUNG PEOPLE AND FAMILIES",CNTL EARLY HELP-RHIL,CLOTHING AND UNIFORMS,25/07/2023,8999490206,51.5,ASDA GEORGE COM LEEDS
OXFORDSHIRE CC,"CHILDRENS, YOUNG PEOPLE AND FAMILIES",THAME E&A HOME,CATERING,25/07/2023,8999490222,55.38,JUST EAT
OXFORDSHIRE CC,CORPORATE CORE,"	PERSONNEL",POSTAGE AND DELIVERY,25/07/2023,8999490230,4.15,ROYAL MAIL GROUP LTD
OXFORDSHIRE CC,"CHILDRENS, YOUNG PEOPLE AND FAMILIES","	RESIDENTIAL STRATEGY",CATERING PROVISIONS,25/07/2023,8999490242,11.8,CO-OPERATIVE FOOD
OXFORDSHIRE CC,"CHILDRENS, YOUNG PEOPLE AND FAMILIES",40 THE MOORS,CATERING PROVISIONS,25/07/2023,8999490334,13.5,ASDA GROCERIES ONLINE
OXFORDSHIRE CC,"CHILDRENS, YOUNG PEOPLE AND FAMILIES","	SENSS TRAINING",HIRE OF ACCOMMODATION AND FACILITIES,25/07/2023,8999490320,578.94,PREMIER INN
OXFORDSHIRE CC,"CHILDRENS, YOUNG PEOPLE AND FAMILIES","	EDM",MATERIALS,25/07/2023,8999490300,6.34,AMAZON.CO.UK KG1MD5MB5
OXFORDSHIRE CC,ENVIRONMENT AND ECONOMY,LIB ICT SUPPRT&MAINT,PURCHASE OF IT EQUIPMENT,25/07/2023,8999490282,452.99,AMZNMKTPLACE
OXFORDSHIRE CC,SOCIAL AND COMMUNITY SERVICES,CSS WITNEY,CATERING PROVISIONS,25/07/2023,8999490318,63.27,SAINSBURYS.CO.UK
OXFORDSHIRE CC,"CHILDRENS, YOUNG PEOPLE AND FAMILIES",FSP NON-STAFFING - CENTRAL,PAYMENTS TO TRANSPORT OPERATORS,25/07/2023,8999490346,39.5,WWW.GWR.COM
OXFORDSHIRE CC,"CHILDRENS, YOUNG PEOPLE AND FAMILIES",40 THE MOORS,CATERING PROVISIONS,25/07/2023,8999490338,-4.95,ASDA GROCERIES ONLINE
OXFORDSHIRE CC,ENVIRONMENT AND ECONOMY,MUSEUM CAFE,CATERING PROVISIONS,25/07/2023,8999490310,11.17,PHILIP DENNIS FOODSER
OXFORDSHIRE CC,ENVIRONMENT AND ECONOMY,MUSEUM CAFE,CATERING PROVISIONS,25/07/2023,8999490310,188.01,PHILIP DENNIS FOODSER
OXFORDSHIRE CC,"CHILDRENS, YOUNG PEOPLE AND FAMILIES",FAMILY SOLUTIONS PLUS NON-STAFF - NORTH,PAYMENTS TO TRANSPORT OPERATORS,25/07/2023,8999490400,165.48,TRAINLINE
OXFORDSHIRE CC,"CHILDRENS, YOUNG PEOPLE AND FAMILIES",DIDCOT MOVE-ON HOME,CLEANING MATERIALS,25/07/2023,8999490416,10.9,TESCO STORES 2413
OXFORDSHIRE CC,"CHILDRENS, YOUNG PEOPLE AND FAMILIES",EYNSHAM,CATERING PROVISIONS,25/07/2023,8999490426,1.75,CO-OPERATIVE FOOD
OXFORDSHIRE CC,ENVIRONMENT AND ECONOMY,PMO,POSTAGE AND DELIVERY,25/07/2023,8999490408,15.45,ROYAL MAIL GROUP LTD
OXFORDSHIRE CC,CORPORATE CORE,"MARKETING, COMMUNICATIONS & ENGAGEMENT","PUBLICITY, PROMOTIONS AND ADVERTISEMENT",25/07/2023,8999490418,500,FACEBK  VF73RS39Z2
OXFORDSHIRE CC,"CHILDRENS, YOUNG PEOPLE AND FAMILIES","	BUSINESS DEVELOPMENT",MATERIALS,25/07/2023,8999490428,416.33,AMZNMKTPLACE
OXFORDSHIRE CC,SOCIAL AND COMMUNITY SERVICES,"	MTFC",CATERING PROVISIONS,25/07/2023,8999490398,5.04,CO-OPERATIVE FOOD
OXFORDSHIRE CC,"CHILDRENS, YOUNG PEOPLE AND FAMILIES",EYNSHAM,RESIDENTIAL ACTIVITIES,25/07/2023,8999490370,16.64,AMZNMKTPLACE
OXFORDSHIRE CC,"CHILDRENS, YOUNG PEOPLE AND FAMILIES",NTS UASC AGENCY,CATERING,25/07/2023,8999490378,1.4,CO-OPERATIVE FOOD
OXFORDSHIRE CC,"CHILDRENS, YOUNG PEOPLE AND FAMILIES","	RIVERSIDE CENTRE",MATERIALS,25/07/2023,8999490366,5.99,AMZNMKTPLACE
OXFORDSHIRE CC,"CHILDRENS, YOUNG PEOPLE AND FAMILIES",EYNSHAM,RESIDENTIAL ACTIVITIES,25/07/2023,8999490368,25.9,AMZNMKTPLACE
OXFORDSHIRE CC,CORPORATE CORE,,STATIONERY,25/07/2023,8999490376,25.92,LYRECO UK LTD
OXFORDSHIRE CC,"CHILDRENS, YOUNG PEOPLE AND FAMILIES",CHILDREN IN CARE NON-STAFFING - SOUTH,PAYMENT TO GOVERNMENT DEPARTMENTS,25/07/2023,8999490382,87.5,HM PASSPORT OFFICE
OXFORDSHIRE CC,SOCIAL AND COMMUNITY SERVICES,LIB ICT SUPPRT&MAINT,MATERIALS,25/07/2023,8999490384,398,AMZNMKTPLACE
OXFORDSHIRE CC,"CHILDRENS, YOUNG PEOPLE AND FAMILIES",FSP NON-STAFFING - CENTRAL,PAYMENTS TO TRANSPORT OPERATORS,25/07/2023,8999490348,39.5,WWW.GWR.COM
OXFORDSHIRE CC,"CHILDRENS, YOUNG PEOPLE AND FAMILIES",40 THE MOORS,CATERING PROVISIONS,25/07/2023,8999490332,167.37,ASDA GROCERIES ONLINE
OXFORDSHIRE CC,SOCIAL AND COMMUNITY SERVICES,"	MTFC",CATERING,25/07/2023,8999490392,29.25,BLENHEIM BUTTERY
OXFORDSHIRE CC,ENVIRONMENT AND ECONOMY,PMO,POSTAGE AND DELIVERY,25/07/2023,8999490412,15.45,ROYAL MAIL GROUP LTD
OXFORDSHIRE CC,CORPORATE CORE,"MARKETING, COMMUNICATIONS & ENGAGEMENT","PUBLICITY, PROMOTIONS AND ADVERTISEMENT",25/07/2023,8999490420,107.01,SNAP INC SNAP SNAP ADS
OXFORDSHIRE CC,"CHILDRENS, YOUNG PEOPLE AND FAMILIES",FSP NON-STAFFING - CENTRAL,OTHER TRANSPORT ARRANGEMENTS,25/07/2023,8999490476,2,STGCOACH/CTYLINK
OXFORDSHIRE CC,"CHILDRENS, YOUNG PEOPLE AND FAMILIES",FSP NON-STAFFING - CENTRAL,OTHER TRANSPORT ARRANGEMENTS,25/07/2023,8999490478,2,STGCOACH/CTYLINK
OXFORDSHIRE CC,"CHILDRENS, YOUNG PEOPLE AND FAMILIES",NTH EARLY HELP-BCSTR,OTHER TRANSPORT ARRANGEMENTS,25/07/2023,8999490480,15,TFL BUSINESS BOPS WEB
OXFORDSHIRE CC,"CHILDRENS, YOUNG PEOPLE AND FAMILIES",FSP NON-STAFFING - CENTRAL,OTHER TRANSPORT ARRANGEMENTS,25/07/2023,8999490474,2,ARRIVA THE SHIRES LIMI
OXFORDSHIRE CC,ENVIRONMENT AND ECONOMY,HARD FM,HARDWARE AND CROCKERY,25/07/2023,8999490482,46.99,SCREWFIX OXFORD COWLEY
OXFORDSHIRE CC,"CHILDRENS, YOUNG PEOPLE AND FAMILIES",CSS - ABINGDON,HARDWARE AND CROCKERY,25/07/2023,8999490484,16.43,TOOLSTATION LTD
OXFORDSHIRE CC,"CHILDRENS, YOUNG PEOPLE AND FAMILIES",FSP NON-STAFFING - CENTRAL,OTHER TRANSPORT ARRANGEMENTS,25/07/2023,8999490472,2,ARRIVA THE SHIRES LIMI
OXFORDSHIRE CC,"CHILDRENS, YOUNG PEOPLE AND FAMILIES",CHILDREN IN CARE NON-STAFFING - SOUTH,OTHER TRANSPORT ARRANGEMENTS,25/07/2023,8999489896,36,SUMUP   24 7 PASSENGER
OXFORDSHIRE CC,CORPORATE CORE,CATERING MANAGEMENT SOFT FM,MATERIALS,25/07/2023,8999489916,5.99,AMZNMKTPLACE
OXFORDSHIRE CC,"CHILDRENS, YOUNG PEOPLE AND FAMILIES",CHILDREN IN CARE NON-STAFFING - NORTH,PAYMENT TO GOVERNMENT DEPARTMENTS,25/07/2023,8999489900,14,GEN REGISTER OFFICE
OXFORDSHIRE CC,SOCIAL AND COMMUNITY SERVICES,CSS - ABINGDON,MATERIALS,25/07/2023,8999489932,26.7,ALDI STORES
OXFORDSHIRE CC,CORPORATE CORE,CATERING MANAGEMENT SOFT FM,MATERIALS,25/07/2023,8999489908,61.38,WWW.ARGOS.CO.UK
OXFORDSHIRE CC,SOCIAL AND COMMUNITY SERVICES,CSS BICESTER,MATERIALS,25/07/2023,8999489942,110.97,AMZNMKTPLACE
OXFORDSHIRE CC,"CHILDRENS, YOUNG PEOPLE AND FAMILIES",CHILDREN IN CARE NON-STAFFING - SOUTH,OTHER EXPENSES,25/07/2023,8999489892,457.55,SQ  SILLY SOCKS CHILDC
OXFORDSHIRE CC,CORPORATE CORE,CATERING MANAGEMENT SOFT FM,MATERIALS,25/07/2023,8999489912,28.54,AMZNMKTPLACE
OXFORDSHIRE CC,"CHILDRENS, YOUNG PEOPLE AND FAMILIES",40 THE MOORS,OTHER TRANSPORT ARRANGEMENTS,25/07/2023,8999490216,2.2,UNION STREET CAR PARK
OXFORDSHIRE CC,"CHILDRENS, YOUNG PEOPLE AND FAMILIES",PAUSE PROGRAMME,CATERING PROVISIONS,25/07/2023,8999490188,12.52,B&M 515 - ABINGDON
OXFORDSHIRE CC,"CHILDRENS, YOUNG PEOPLE AND FAMILIES",0-5 STDS & PROGRESS,"BOOKS, DVDS AND CDS",25/07/2023,8999490198,34.34,AMAZON.CO.UK 5S5AB9QI5
OXFORDSHIRE CC,SOCIAL AND COMMUNITY SERVICES,CSS - OXFORD,CATERING PROVISIONS,25/07/2023,8999490158,32.74,ALDI STORES 775-142
OXFORDSHIRE CC,SOCIAL AND COMMUNITY SERVICES,CHILDREN IN CARE NON-STAFFING - NORTH,OTHER TRANSPORT ARRANGEMENTS,25/07/2023,8999490176,8.6,M6 TOLL
OXFORDSHIRE CC,CORPORATE CORE,ICT OPERATIONS & MAI,MATERIALS,25/07/2023,8999490438,31.92,AMZNMKTPLACE
OXFORDSHIRE CC,"CHILDRENS, YOUNG PEOPLE AND FAMILIES",NTH EARLY HELP-BNRBY,CATERING PROVISIONS,25/07/2023,8999490450,2.9,TESCO STORES 2064
OXFORDSHIRE CC,SOCIAL AND COMMUNITY SERVICES,"	HISTORY SERVICE","BOOKS, DVDS AND CDS",25/07/2023,8999490430,-7.98,AB  ABEBOOKS.UK JVQT5N
OXFORDSHIRE CC,SOCIAL AND COMMUNITY SERVICES,CSS - BANBURY,CATERING PROVISIONS,25/07/2023,8999490442,90.09,SAINSBURYS.CO.UK
OXFORDSHIRE CC,SOCIAL AND COMMUNITY SERVICES,CSS - BANBURY,CATERING PROVISIONS,25/07/2023,8999490456,4.69,ALDI 10 775
OXFORDSHIRE CC,SOCIAL AND COMMUNITY SERVICES,ADULTS AT RISK,CLIENT LODGINGS AND ACCOMMODATION,25/07/2023,8999490004,307.53,PREMIER INN
OXFORDSHIRE CC,"CHILDRENS, YOUNG PEOPLE AND FAMILIES",THAME E&A HOME,CATERING,25/07/2023,8999490072,27.03,MCDONALDS 953
OXFORDSHIRE CC,CORPORATE CORE,ICT OPERATIONS & MAI,PURCHASE OF IT EQUIPMENT,25/07/2023,8999490432,"3,546.90",AMZNMKTPLACE AMAZON.CO
OXFORDSHIRE CC,"CHILDRENS, YOUNG PEOPLE AND FAMILIES",FIELDWORK UASC,OTHER TRANSPORT ARRANGEMENTS,25/07/2023,8999490444,4.5,STGCOACH/CTYLINK
OXFORDSHIRE CC,SOCIAL AND COMMUNITY SERVICES,CSS BICESTER,CATERING PROVISIONS,25/07/2023,8999490022,108.12,TESCO STORES 2162
OXFORDSHIRE CC,"CHILDRENS, YOUNG PEOPLE AND FAMILIES",CHILDREN IN CARE NON-STAFFING - CENTRL 1,PAYMENTS TO TRANSPORT OPERATORS,25/07/2023,8999490100,22.92,TRAINLINE
OXFORDSHIRE CC,"CHILDRENS, YOUNG PEOPLE AND FAMILIES","	LEAVING CARE CITY 2",POSTAGE AND DELIVERY,25/07/2023,8999490460,3.1,POST OFFICE COUNTER
OXFORDSHIRE CC,ENVIRONMENT AND ECONOMY,HARD FM,PREMISES REPAIRS,25/07/2023,8999489982,26.39,WWW.SCREWFIX.COM
OXFORDSHIRE CC,SOCIAL AND COMMUNITY SERVICES,UASC 16&17,CATERING PROVISIONS,25/07/2023,8999490036,7.1,TESCO STORES 4480
OXFORDSHIRE CC,"CHILDRENS, YOUNG PEOPLE AND FAMILIES","	LEAVING CARE CITY 2",POSTAGE AND DELIVERY,25/07/2023,8999490462,3.7,POST OFFICE COUNTER
OXFORDSHIRE CC,CORPORATE CORE,ICT OPERATIONS & MAI,PURCHASE OF IT EQUIPMENT,25/07/2023,8999490434,"1,689.00",AMZNMKTPLACE AMAZON.CO
OXFORDSHIRE CC,"CHILDRENS, YOUNG PEOPLE AND FAMILIES",KINGFISHER,OTHER SERVICES,25/07/2023,8999490446,298,THESPRINGS.DARWINESCAP
OXFORDSHIRE CC,SOCIAL AND COMMUNITY SERVICES,CHILDREN IN CARE NON-STAFFING - NORTH,HIRE OF ACCOMMODATION AND FACILITIES,25/07/2023,8999490178,128,"THE CALEDON, COWES"
OXFORDSHIRE CC,"CHILDRENS, YOUNG PEOPLE AND FAMILIES",PAUSE PROGRAMME,HARDWARE AND CROCKERY,25/07/2023,8999490190,5.5,HOMEBASE.CO.UK
OXFORDSHIRE CC,"CHILDRENS, YOUNG PEOPLE AND FAMILIES",EYNSHAM,OTHER TRANSPORT ARRANGEMENTS,25/07/2023,8999490160,6.1,OXPENS CAR PARK
OXFORDSHIRE CC,"CHILDRENS, YOUNG PEOPLE AND FAMILIES",CHILDREN IN CARE NON-STAFFING - CENTRL 2,PAYMENTS TO TRANSPORT OPERATORS,25/07/2023,8999490104,26.69,TRAINLINE.COM
OXFORDSHIRE CC,ENVIRONMENT AND ECONOMY,HARD FM,PREMISES REPAIRS,25/07/2023,8999489994,66.77,WILLIAMS & CO
OXFORDSHIRE CC,"CHILDRENS, YOUNG PEOPLE AND FAMILIES",FAMILY SOLUTIONS PLUS NON-STAFF - NORTH,PAYMENTS TO TRANSPORT OPERATORS,25/07/2023,8999490052,659.6,BKG HOTEL AT BOOKING.C
OXFORDSHIRE CC,"CHILDRENS, YOUNG PEOPLE AND FAMILIES",CHILDREN IN CARE NON-STAFFING - CENTRL 1,PAYMENTS TO TRANSPORT OPERATORS,25/07/2023,8999490110,76.01,TRAINLINE.COM
OXFORDSHIRE CC,"CHILDRENS, YOUNG PEOPLE AND FAMILIES",THAME E&A HOME,CATERING PROVISIONS,25/07/2023,8999490154,131.43,TESCO STORES 2038
OXFORDSHIRE CC,SOCIAL AND COMMUNITY SERVICES,CHILDREN IN CARE NON-STAFFING - NORTH,CATERING,25/07/2023,8999490182,9.25,JOLLIFFES
OXFORDSHIRE CC,"CHILDRENS, YOUNG PEOPLE AND FAMILIES",UASC POST 18,"SUPPLIES, STATIONERY AND MATERIALS",25/07/2023,8999490194,9,ASDA STORE 4442
OXFORDSHIRE CC,"CHILDRENS, YOUNG PEOPLE AND FAMILIES",FIELDWORK UASC,OTHER TRANSPORT ARRANGEMENTS,25/07/2023,8999490204,18,OXFORDBUS.CO.UK
OXFORDSHIRE CC,"CHILDRENS, YOUNG PEOPLE AND FAMILIES",EYNSHAM,OTHER TRANSPORT ARRANGEMENTS,25/07/2023,8999490162,6.1,OXPENS CAR PARK
OXFORDSHIRE CC,"CHILDRENS, YOUNG PEOPLE AND FAMILIES","	LOOKED AFTER NORTH",CATERING,25/07/2023,8999490196,10.99,MCDONALDS 1424
OXFORDSHIRE CC,"CHILDRENS, YOUNG PEOPLE AND FAMILIES",THAME E&A HOME,CATERING PROVISIONS,25/07/2023,8999490212,4.55,WAITROSE 766
OXFORDSHIRE CC,"CHILDRENS, YOUNG PEOPLE AND FAMILIES",PAUSE PROGRAMME,HARDWARE AND CROCKERY,25/07/2023,8999490186,5,HOMEBASE LTD
OXFORDSHIRE CC,SOCIAL AND COMMUNITY SERVICES,CSS - OXFORD,MATERIALS,25/07/2023,8999490156,57.1,ALDI STORES 775-142
OXFORDSHIRE CC,"CHILDRENS, YOUNG PEOPLE AND FAMILIES","	LEAVING CARE SOUTH",PAYMENTS TO VOLUNTARY BODIES,25/07/2023,8999490174,115,ALLPAY  SANCTUARY HOUS
OXFORDSHIRE CC,"CHILDRENS, YOUNG PEOPLE AND FAMILIES",40 THE MOORS,MATERIALS,24/07/2023,8992326948,25,AMZN DIGITAL
OXFORDSHIRE CC,"CHILDRENS, YOUNG PEOPLE AND FAMILIES",40 THE MOORS,CATERING,24/07/2023,8992326944,71.5,JUST EAT
OXFORDSHIRE CC,"CHILDRENS, YOUNG PEOPLE AND FAMILIES",40 THE MOORS,CATERING PROVISIONS,24/07/2023,8992326950,23.19,SAINSBURYS S/MKTS
OXFORDSHIRE CC,"CHILDRENS, YOUNG PEOPLE AND FAMILIES",FSP NON-STAFFING - CENTRAL,PAYMENTS TO TRANSPORT OPERATORS,24/07/2023,8992326998,57.26,BOOTS 0346
OXFORDSHIRE CC,"CHILDRENS, YOUNG PEOPLE AND FAMILIES",FSP NON-STAFFING - CENTRAL,OTHER TRANSPORT ARRANGEMENTS,24/07/2023,8992327182,2,STGCOACH/CTYLINK
OXFORDSHIRE CC,ENVIRONMENT AND ECONOMY,"	NAT TRAILS GENERAL",PAYMENT TO GOVERNMENT DEPARTMENTS,24/07/2023,8992327190,6,LAND REGISTRY ECOM CCC
OXFORDSHIRE CC,"CHILDRENS, YOUNG PEOPLE AND FAMILIES",CSS - ABINGDON,HARDWARE AND CROCKERY,24/07/2023,8992327200,13.96,TOOLSTATION LTD
OXFORDSHIRE CC,"CHILDRENS, YOUNG PEOPLE AND FAMILIES","ABINGDON CC, STRATTON WAY",CATERING PROVISIONS,24/07/2023,8992327156,4.9,POUNDLAND LTD - 1366
OXFORDSHIRE CC,SOCIAL AND COMMUNITY SERVICES,BULLINGDON PRISON,MATERIALS,24/07/2023,8992327164,8.99,AMAZON PRIME 5W6II2165
OXFORDSHIRE CC,"CHILDRENS, YOUNG PEOPLE AND FAMILIES",THAME E&A HOME,CATERING PROVISIONS,24/07/2023,8992326768,121.09,ASDA STORES
OXFORDSHIRE CC,"CHILDRENS, YOUNG PEOPLE AND FAMILIES",THAME E&A HOME,CATERING PROVISIONS,24/07/2023,8992326776,5.35,SANDFORD HOLIDAY P
OXFORDSHIRE CC,"CHILDRENS, YOUNG PEOPLE AND FAMILIES",CHILDREN IN CARE NON-STAFFING - CENTRL 1,OTHER TRANSPORT ARRANGEMENTS,24/07/2023,8992326750,10,SUMUP   ALPHA TAXI
OXFORDSHIRE CC,"CHILDRENS, YOUNG PEOPLE AND FAMILIES",THAME E&A HOME,CATERING,24/07/2023,8992326762,15.65,COSTA COFFEE 43011293
OXFORDSHIRE CC,"CHILDRENS, YOUNG PEOPLE AND FAMILIES","	LOOKED AFTER SOUTH",PAYMENT TO GOVERNMENT DEPARTMENTS,24/07/2023,8992327160,98,HM PASSPORT OFFICE
OXFORDSHIRE CC,"CHILDRENS, YOUNG PEOPLE AND FAMILIES",THAME E&A HOME,DRUGS AND MEDICAL SUPPLIES,24/07/2023,8992326764,7.46,BOOTS 1469
OXFORDSHIRE CC,"CHILDRENS, YOUNG PEOPLE AND FAMILIES",THAME E&A HOME,CATERING PROVISIONS,24/07/2023,8992326772,40.72,SANDFORD HOLIDAY P
OXFORDSHIRE CC,"CHILDRENS, YOUNG PEOPLE AND FAMILIES",FSP NON-STAFFING - CENTRAL,OTHER TRANSPORT ARRANGEMENTS,24/07/2023,8992327178,2,STGCOACH/CTYLINK
OXFORDSHIRE CC,"CHILDRENS, YOUNG PEOPLE AND FAMILIES",DIDCOT MOVE-ON HOME,CATERING PROVISIONS,24/07/2023,8992326746,3.55,SAINSBURYS S/MKTS
OXFORDSHIRE CC,"CHILDRENS, YOUNG PEOPLE AND FAMILIES",CHILDREN IN CARE NON-STAFFING - CENTRL 1,CATERING PROVISIONS,24/07/2023,8992326754,7,SAINSBURYS S/MKTS
OXFORDSHIRE CC,"CHILDRENS, YOUNG PEOPLE AND FAMILIES","	LEAVING CARE SOUTH",MATERIALS,24/07/2023,8992326688,34,ARGOS DIDCOT
OXFORDSHIRE CC,"CHILDRENS, YOUNG PEOPLE AND FAMILIES","	FPT NORTH",MATERIALS,24/07/2023,8992326636,13.49,AMAZON.CO.UK C63HA4DZ5
OXFORDSHIRE CC,CORPORATE CORE,,STATIONERY,24/07/2023,8992327060,223.28,LYRECO UK LTD
OXFORDSHIRE CC,CORPORATE CORE,,STATIONERY,24/07/2023,8992327078,-60.46,LYRECO UK LTD
OXFORDSHIRE CC,CORPORATE CORE,,STATIONERY,24/07/2023,8992327070,217.03,LYRECO UK LTD
OXFORDSHIRE CC,CORPORATE CORE,INCOME TEAM,PAYMENT TO GOVERNMENT DEPARTMENTS,24/07/2023,8992326684,1.5,FIND A WILL
OXFORDSHIRE CC,"CHILDRENS, YOUNG PEOPLE AND FAMILIES","	LEAVING CARE SOUTH",MATERIALS,24/07/2023,8992326692,37.5,THE KATHRYN TURNER TR
OXFORDSHIRE CC,SOCIAL AND COMMUNITY SERVICES,CHILDREN IN CARE NON-STAFFING - NORTH,PAYMENTS TO TRANSPORT OPERATORS,24/07/2023,8992326698,20.1,TRAINLINE.COM
OXFORDSHIRE CC,SOCIAL AND COMMUNITY SERVICES,CSS - OXFORD,CATERING PROVISIONS,24/07/2023,8992326644,6.78,ALDI STORES 775-142
OXFORDSHIRE CC,CORPORATE CORE,,STATIONERY,24/07/2023,8992327064,107.03,LYRECO UK LTD
OXFORDSHIRE CC,SOCIAL AND COMMUNITY SERVICES,COMMUNITY PARTNERSHIP TEAM,MATERIALS,24/07/2023,8992326640,15.84,AMZNMKTPLACE
OXFORDSHIRE CC,CORPORATE CORE,,STATIONERY,24/07/2023,8992327074,331.17,LYRECO UK LTD
OXFORDSHIRE CC,SOCIAL AND COMMUNITY SERVICES,CSS - OXFORD,CATERING PROVISIONS,24/07/2023,8992326646,117.02,ALDI STORES 775-142
OXFORDSHIRE CC,"CHILDRENS, YOUNG PEOPLE AND FAMILIES","	LOOKED AFTER CITY 2",PAYMENTS TO TRANSPORT OPERATORS,24/07/2023,8992326930,705,HOLIDAY PAYMENT AVR
OXFORDSHIRE CC,"CHILDRENS, YOUNG PEOPLE AND FAMILIES","	OCCG GRANT",MATERIALS,24/07/2023,8992327202,4.55,TIMPSON LTD
OXFORDSHIRE CC,"CHILDRENS, YOUNG PEOPLE AND FAMILIES","	LEAVING CARE CITY 2",OTHER TRANSPORT ARRANGEMENTS,24/07/2023,8992326888,4.5,STGCOACH/CTYLINK
OXFORDSHIRE CC,"CHILDRENS, YOUNG PEOPLE AND FAMILIES",UASC 16&17,MATERIALS,24/07/2023,8992326788,39,BROADRIBB CYCLES LIMIT
OXFORDSHIRE CC,"CHILDRENS, YOUNG PEOPLE AND FAMILIES",THAME E&A HOME,CATERING PROVISIONS,24/07/2023,8992326798,17.6,SAINSBURYS SUPERMA
OXFORDSHIRE CC,"CHILDRENS, YOUNG PEOPLE AND FAMILIES","	LEAVING CARE SOUTH",CATERING PROVISIONS,24/07/2023,8992326810,30,PREZZEE/GBF524A051
OXFORDSHIRE CC,CORPORATE CORE,INCOME TEAM,PAYMENT TO GOVERNMENT DEPARTMENTS,24/07/2023,8992326880,115,WWW.MONEYCLAIM.GOV
OXFORDSHIRE CC,"CHILDRENS, YOUNG PEOPLE AND FAMILIES","	LEAVING CARE CITY 2",CATERING PROVISIONS,24/07/2023,8992326892,25,TESCO GIFT CARD
OXFORDSHIRE CC,"CHILDRENS, YOUNG PEOPLE AND FAMILIES",NTS UASC AGENCY,DRUGS AND MEDICAL SUPPLIES,24/07/2023,8992327094,5.49,SAVERS HEALTH & BEAUTY
OXFORDSHIRE CC,"CHILDRENS, YOUNG PEOPLE AND FAMILIES","	LEAVING CARE CITY 2",CATERING,24/07/2023,8992326894,9,ZETTLE_ MOO-MOO S
OXFORDSHIRE CC,"CHILDRENS, YOUNG PEOPLE AND FAMILIES",FSP NON-STAFFING - CENTRAL,PAYMENTS TO TRANSPORT OPERATORS,24/07/2023,8992326994,80,WWW.ARGOS.CO.UK
OXFORDSHIRE CC,"CHILDRENS, YOUNG PEOPLE AND FAMILIES",UASC 16&17,RESIDENTIAL ACTIVITIES,24/07/2023,8992326790,21.99,THE GYM GROUP
OXFORDSHIRE CC,ENVIRONMENT AND ECONOMY,DIDCOT LIBRARY,"NEWSPAPERS, PERIODICALS AND PUBLICATIONS",24/07/2023,8992326800,95.6,PPOINT_ AMIN NEWSAGENT
OXFORDSHIRE CC,"CHILDRENS, YOUNG PEOPLE AND FAMILIES",THAME E&A HOME,OTHER TRANSPORT ARRANGEMENTS,24/07/2023,8992326796,5,WORCESTER STREET CAR P
OXFORDSHIRE CC,SOCIAL AND COMMUNITY SERVICES,HOMELESS PEOPLE,SUBSCRIPTIONS,24/07/2023,8992327204,205,WWW.HOMELESS.ORG.UK
OXFORDSHIRE CC,"CHILDRENS, YOUNG PEOPLE AND FAMILIES","	SM QUALITY ASSURANCE",CATERING,24/07/2023,8992327082,18.9,MCDONALDS
OXFORDSHIRE CC,CORPORATE CORE,SCHOOLS FM CATERING AREA 1,MATERIALS,24/07/2023,8992327100,24.88,AMZNMKTPLACE
OXFORDSHIRE CC,"CHILDRENS, YOUNG PEOPLE AND FAMILIES",DIDCOT MOVE-ON HOME,CATERING PROVISIONS,24/07/2023,8992327104,12.17,ALDI 99 775
OXFORDSHIRE CC,"CHILDRENS, YOUNG PEOPLE AND FAMILIES","	LOOKED AFTER NORTH",ENTERTAINMENT EXPENSES,24/07/2023,8992327086,41.34,VUE ENTERTAINMENT LTD
OXFORDSHIRE CC,"CHILDRENS, YOUNG PEOPLE AND FAMILIES","	OCCG GRANT",MATERIALS,24/07/2023,8992326852,5.25,POUNDLAND LTD - 1586
OXFORDSHIRE CC,SOCIAL AND COMMUNITY SERVICES,"	LOCALITY TEAM - CITY",CATERING,24/07/2023,8992326864,22.5,DOMINO S PIZZA
OXFORDSHIRE CC,"CHILDRENS, YOUNG PEOPLE AND FAMILIES",FSP NON-STAFFING - CENTRAL,PAYMENTS TO TRANSPORT OPERATORS,24/07/2023,8992327006,8.5,CANCER RESEARCH UK
OXFORDSHIRE CC,CORPORATE CORE,THAME LIBRARY,"NEWSPAPERS, PERIODICALS AND PUBLICATIONS",24/07/2023,8992327010,5.6,SAINSBURYS S/MKTS
OXFORDSHIRE CC,ENVIRONMENT AND ECONOMY,HOLIDAY ACTIVITIES & FOOD GRANT,MATERIALS,24/07/2023,8992326992,3.19,AMZNMKTPLACE AMAZON.CO
OXFORDSHIRE CC,"CHILDRENS, YOUNG PEOPLE AND FAMILIES",FSP NON-STAFFING - CENTRAL,PAYMENTS TO TRANSPORT OPERATORS,24/07/2023,8992327002,35.9,SAINSBURY S/MKTS
OXFORDSHIRE CC,SOCIAL AND COMMUNITY SERVICES,HOMELESS PEOPLE,HIRE OF ACCOMMODATION AND FACILITIES,24/07/2023,8992326858,424.28,TRAVELODGE
OXFORDSHIRE CC,"CHILDRENS, YOUNG PEOPLE AND FAMILIES","	LEAVING CARE CITY 2",CATERING PROVISIONS,24/07/2023,8992326842,70.9,HOME BARGAINS
OXFORDSHIRE CC,"CHILDRENS, YOUNG PEOPLE AND FAMILIES",THAME E&A HOME,MATERIALS,24/07/2023,8992326818,18.77,AMZNMKTPLACE
OXFORDSHIRE CC,"CHILDRENS, YOUNG PEOPLE AND FAMILIES",FIELDWORK UASC,CATERING PROVISIONS,24/07/2023,8992326830,5.65,SAINSBURYS S/MKTS
OXFORDSHIRE CC,"CHILDRENS, YOUNG PEOPLE AND FAMILIES","	LEAVING CARE CITY 2",FURNITURE,24/07/2023,8992326840,435,RDFURNITURE.CO.UK
OXFORDSHIRE CC,"CHILDRENS, YOUNG PEOPLE AND FAMILIES",FIELDWORK UASC,MATERIALS,24/07/2023,8992326826,1,POUNDLAND LTD - 1586
OXFORDSHIRE CC,"CHILDRENS, YOUNG PEOPLE AND FAMILIES",DIDCOT MOVE-ON HOME,CATERING PROVISIONS,24/07/2023,8992326834,11.5,CO-OPERATIVE FUEL
OXFORDSHIRE CC,CORPORATE CORE,,STATIONERY,24/07/2023,8992327054,27.26,LYRECO UK LTD
OXFORDSHIRE CC,CORPORATE CORE,,STATIONERY,24/07/2023,8992327042,27.65,LYRECO UK LTD
OXFORDSHIRE CC,CORPORATE CORE,,STATIONERY,24/07/2023,8992327050,65.83,LYRECO UK LTD
OXFORDSHIRE CC,"CHILDRENS, YOUNG PEOPLE AND FAMILIES","	LEAVING CARE SOUTH",OTHER EXPENSES,24/07/2023,8992326980,-254.95,WWW.ARGOS.CO.UK
OXFORDSHIRE CC,CORPORATE CORE,,STATIONERY,24/07/2023,8992327046,21.43,LYRECO UK LTD
OXFORDSHIRE CC,ENVIRONMENT AND ECONOMY,HARD FM,PREMISES REPAIRS,24/07/2023,8992326606,14,JIMMY SHOE REPAIR
OXFORDSHIRE CC,SOCIAL AND COMMUNITY SERVICES,UASC 16&17,MATERIALS,24/07/2023,8992326616,30,SPORTSDIRECT 218
OXFORDSHIRE CC,SOCIAL AND COMMUNITY SERVICES,CSS BICESTER,MATERIALS,24/07/2023,8992326612,7.99,TESCO SUBSCRIPTION
OXFORDSHIRE CC,"CHILDRENS, YOUNG PEOPLE AND FAMILIES",40 THE MOORS,CATERING,24/07/2023,8992326594,11.85,COSTA TEMPLARS
OXFORDSHIRE CC,SOCIAL AND COMMUNITY SERVICES,CSS - OXFORD,DAY ACTIVITIES,24/07/2023,8992326602,80,ZETTLE_ DELTAVIOLIN
OXFORDSHIRE CC,CORPORATE CORE,,STATIONERY,24/07/2023,8992327038,60.46,LYRECO UK LTD
OXFORDSHIRE CC,"CHILDRENS, YOUNG PEOPLE AND FAMILIES",CHILDREN IN CARE NON-STAFFING - CENTRL 1,PAYMENTS TO TRANSPORT OPERATORS,24/07/2023,8992326846,112.18,TRAINLINE.COM
OXFORDSHIRE CC,"CHILDRENS, YOUNG PEOPLE AND FAMILIES","	LEAVING CARE CITY 2",CATERING PROVISIONS,24/07/2023,8992326890,25,TESCO GIFT CARD
OXFORDSHIRE CC,"CHILDRENS, YOUNG PEOPLE AND FAMILIES",WITNEY,CATERING PROVISIONS,24/07/2023,8992326900,15.55,SAINSBURYS S/MKTS
OXFORDSHIRE CC,SOCIAL AND COMMUNITY SERVICES,CHILDREN IN CARE NON-STAFFING - NORTH,PAYMENTS TO TRANSPORT OPERATORS,24/07/2023,8992326694,45.8,TRAINLINE
OXFORDSHIRE CC,"CHILDRENS, YOUNG PEOPLE AND FAMILIES",FSP NON-STAFFING - CENTRAL,OTHER TRANSPORT ARRANGEMENTS,24/07/2023,8992327180,2,STGCOACH/CTYLINK
OXFORDSHIRE CC,SOCIAL AND COMMUNITY SERVICES,BULLINGDON PRISON,MATERIALS,24/07/2023,8992327162,14.49,AMAZON.CO.UK M11RF4Q75
OXFORDSHIRE CC,"CHILDRENS, YOUNG PEOPLE AND FAMILIES",THAME E&A HOME,RESIDENTIAL ACTIVITIES,24/07/2023,8992326766,11.07,SANDFORD HOLIDAY PARK
OXFORDSHIRE CC,"CHILDRENS, YOUNG PEOPLE AND FAMILIES","	OCCG GRANT",CATERING PROVISIONS,24/07/2023,8992326850,3.84,ALDI STORES 775-142
OXFORDSHIRE CC,SOCIAL AND COMMUNITY SERVICES,"	LOCALITY TEAM - CITY",HIRE OF ACCOMMODATION AND FACILITIES,24/07/2023,8992326860,360.62,PREMIER INN
OXFORDSHIRE CC,ENVIRONMENT AND ECONOMY,"	KNIGHTS COURT",OTHER TRANSPORT ARRANGEMENTS,24/07/2023,8992326854,2.7,UNION STREET CAR PARK
OXFORDSHIRE CC,"CHILDRENS, YOUNG PEOPLE AND FAMILIES",FSP NON-STAFFING - CENTRAL,OTHER TRANSPORT ARRANGEMENTS,24/07/2023,8992327176,2,STGCOACH/CTYLINK
OXFORDSHIRE CC,"CHILDRENS, YOUNG PEOPLE AND FAMILIES",FSP NON-STAFFING - CENTRAL,OTHER TRANSPORT ARRANGEMENTS,24/07/2023,8992327184,2,STGCOACH/CTYLINK
OXFORDSHIRE CC,"CHILDRENS, YOUNG PEOPLE AND FAMILIES",DIDCOT MOVE-ON HOME,CATERING PROVISIONS,24/07/2023,8992326756,2.25,SAINSBURYS S/MKTS
OXFORDSHIRE CC,SOCIAL AND COMMUNITY SERVICES,CSS - BANBURY,MATERIALS,24/07/2023,8992327154,8.69,AMAZON.CO.UK H15IB3HK5
OXFORDSHIRE CC,"CHILDRENS, YOUNG PEOPLE AND FAMILIES",THAME E&A HOME,MATERIALS,24/07/2023,8992326760,10.5,POUNDLAND LTD - 1586
OXFORDSHIRE CC,CORPORATE CORE,COUNTY HALL,OTHER PREMISES RELATED COSTS,24/07/2023,8992327158,344,CURRYS ONLINE
OXFORDSHIRE CC,"CHILDRENS, YOUNG PEOPLE AND FAMILIES",THAME E&A HOME,CLOTHING AND UNIFORMS,24/07/2023,8992326774,75.9,PRIMARK
OXFORDSHIRE CC,"CHILDRENS, YOUNG PEOPLE AND FAMILIES",UASC 16&17,PAYMENTS TO TRANSPORT OPERATORS,24/07/2023,8992326786,50.43,TRAINLINE
OXFORDSHIRE CC,"CHILDRENS, YOUNG PEOPLE AND FAMILIES",FIELDWORK UASC,CATERING PROVISIONS,24/07/2023,8992326828,38.84,LIDL GB
OXFORDSHIRE CC,"CHILDRENS, YOUNG PEOPLE AND FAMILIES",DIDCOT MOVE-ON HOME,CATERING PROVISIONS,24/07/2023,8992326838,30.15,SAINSBURY'S DIDCOT
OXFORDSHIRE CC,SOCIAL AND COMMUNITY SERVICES,CSS BICESTER,MANAGEMENT CONSULTANT FEES,24/07/2023,8992326590,159,TVLICENSING.CO.UK
OXFORDSHIRE CC,"CHILDRENS, YOUNG PEOPLE AND FAMILIES",DIDCOT MOVE-ON HOME,CATERING PROVISIONS,24/07/2023,8992326742,3.9,TESCO STORES 2994
OXFORDSHIRE CC,"CHILDRENS, YOUNG PEOPLE AND FAMILIES",THAME E&A HOME,RESIDENTIAL ACTIVITIES,24/07/2023,8992326770,56.35,SANDFORD HOLIDAY PARK
OXFORDSHIRE CC,"CHILDRENS, YOUNG PEOPLE AND FAMILIES",THAME E&A HOME,CATERING,24/07/2023,8992326778,15.9,ROCKWATER SANDBANKS
OXFORDSHIRE CC,"CHILDRENS, YOUNG PEOPLE AND FAMILIES",FIELDWORK UASC,CATERING,24/07/2023,8992326824,10.08,"KFC OXFORD, TEMPLARS S"
OXFORDSHIRE CC,"CHILDRENS, YOUNG PEOPLE AND FAMILIES",CHILDREN IN CARE NON-STAFFING - CENTRL 1,CATERING,24/07/2023,8992326752,2.4,GREGGS PLC
OXFORDSHIRE CC,"CHILDRENS, YOUNG PEOPLE AND FAMILIES",CHILDREN IN CARE NON-STAFFING - CENTRL 1,PAYMENTS TO TRANSPORT OPERATORS,24/07/2023,8992326744,119.8,GWR DIDCOT PKWY TO
OXFORDSHIRE CC,"CHILDRENS, YOUNG PEOPLE AND FAMILIES",DIDCOT MOVE-ON HOME,CATERING PROVISIONS,24/07/2023,8992326748,26,SAINSBURYS S/MKTS
OXFORDSHIRE CC,"CHILDRENS, YOUNG PEOPLE AND FAMILIES","	LEAVING CARE SOUTH",MATERIALS,24/07/2023,8992326690,9,ARGOS DIDCOT
OXFORDSHIRE CC,CORPORATE CORE,,STATIONERY,24/07/2023,8992327020,18.26,LYRECO UK LTD
OXFORDSHIRE CC,CORPORATE CORE,,STATIONERY,24/07/2023,8992327028,442.68,LYRECO UK LTD
OXFORDSHIRE CC,"CHILDRENS, YOUNG PEOPLE AND FAMILIES",TRANSPORT COSTS,TRANSPORT TO SCHOOL,24/07/2023,8992326580,80.2,MULTIFLEET MINICABS
OXFORDSHIRE CC,SOCIAL AND COMMUNITY SERVICES,CHILDREN IN CARE NON-STAFFING - NORTH,PAYMENTS TO TRANSPORT OPERATORS,24/07/2023,8992326696,30,TRAINLINE.COM
OXFORDSHIRE CC,SOCIAL AND COMMUNITY SERVICES,CSS WANTAGE,ENTERTAINMENT EXPENSES,24/07/2023,8992326932,9.9,WWW.BETTER.ORG.UK
OXFORDSHIRE CC,CORPORATE CORE,OPERATIONS,MATERIALS,24/07/2023,8992326922,28.19,AMZNMKTPLACE AMAZON.CO
OXFORDSHIRE CC,CORPORATE CORE,,STATIONERY,24/07/2023,8992327024,73.25,LYRECO UK LTD
OXFORDSHIRE CC,CORPORATE CORE,,STATIONERY,24/07/2023,8992327032,552.11,LYRECO UK LTD
OXFORDSHIRE CC,ENVIRONMENT AND ECONOMY,HARD FM,PREMISES REPAIRS,24/07/2023,8992326608,47.98,WILLIAMS & CO
OXFORDSHIRE CC,CORPORATE CORE,OPERATIONS,MATERIALS,24/07/2023,8992326918,7.88,AMZNMKTPLACE AMAZON.CO
OXFORDSHIRE CC,CORPORATE CORE,OPERATIONS,MATERIALS,24/07/2023,8992326926,8.52,AMZNMKTPLACE AMAZON.CO
OXFORDSHIRE CC,"CHILDRENS, YOUNG PEOPLE AND FAMILIES",WITNEY,CATERING PROVISIONS,24/07/2023,8992326934,93.71,ASDA STORES 4920
OXFORDSHIRE CC,"CHILDRENS, YOUNG PEOPLE AND FAMILIES",FSP NON-STAFFING - CENTRAL,PAYMENTS TO TRANSPORT OPERATORS,24/07/2023,8992326996,13,TESCO STORES 2008
OXFORDSHIRE CC,"CHILDRENS, YOUNG PEOPLE AND FAMILIES",FSP NON-STAFFING - CENTRAL,PAYMENTS TO TRANSPORT OPERATORS,24/07/2023,8992327004,4.1,COSTA COFFEE 43011919
OXFORDSHIRE CC,CORPORATE CORE,,STATIONERY,24/07/2023,8992327036,15.89,LYRECO UK LTD
OXFORDSHIRE CC,"CHILDRENS, YOUNG PEOPLE AND FAMILIES",EYNSHAM,CATERING PROVISIONS,24/07/2023,8992326986,8.75,MAYFIELDEGGS
OXFORDSHIRE CC,"CHILDRENS, YOUNG PEOPLE AND FAMILIES",TRANSPORT COSTS,TRANSPORT TO SCHOOL,24/07/2023,8992326578,73,MULTIFLEET MINICABS
OXFORDSHIRE CC,"CHILDRENS, YOUNG PEOPLE AND FAMILIES",WITNEY,MATERIALS,24/07/2023,8992326586,3,AMZNMKTPLACE
OXFORDSHIRE CC,CORPORATE CORE,,STATIONERY,24/07/2023,8992327044,69.47,LYRECO UK LTD
OXFORDSHIRE CC,CORPORATE CORE,,STATIONERY,24/07/2023,8992327052,69.26,LYRECO UK LTD
OXFORDSHIRE CC,CORPORATE CORE,,STATIONERY,24/07/2023,8992327048,48,LYRECO UK LTD
OXFORDSHIRE CC,CORPORATE CORE,,STATIONERY,24/07/2023,8992327056,48.13,LYRECO UK LTD
OXFORDSHIRE CC,SOCIAL AND COMMUNITY SERVICES,ABINGDON LIBRARY,"NEWSPAPERS, PERIODICALS AND PUBLICATIONS",24/07/2023,8992326974,55.99,GUARDIAN NEWS & MEDIA
OXFORDSHIRE CC,"CHILDRENS, YOUNG PEOPLE AND FAMILIES",EYNSHAM,CATERING PROVISIONS,24/07/2023,8992326982,261.42,TESCO STORES 2008
OXFORDSHIRE CC,SOCIAL AND COMMUNITY SERVICES,CSS WITNEY,MATERIALS,24/07/2023,8992326574,-59.88,AMZ KA$H-DISCOUNT-HOME
OXFORDSHIRE CC,"CHILDRENS, YOUNG PEOPLE AND FAMILIES",WITNEY,CATERING PROVISIONS,24/07/2023,8992326582,17.38,SAINSBURYS S/MKTS
OXFORDSHIRE CC,"CHILDRENS, YOUNG PEOPLE AND FAMILIES",40 THE MOORS,EQUIPMENT,24/07/2023,8992326592,18,CEX OXFORD
OXFORDSHIRE CC,CORPORATE CORE,,STATIONERY,24/07/2023,8992327018,83.44,LYRECO UK LTD
OXFORDSHIRE CC,CORPORATE CORE,,STATIONERY,24/07/2023,8992327026,465.19,LYRECO UK LTD
OXFORDSHIRE CC,CORPORATE CORE,,STATIONERY,24/07/2023,8992327034,84.6,LYRECO UK LTD
OXFORDSHIRE CC,CORPORATE CORE,,STATIONERY,24/07/2023,8992327040,98.75,LYRECO UK LTD
OXFORDSHIRE CC,"CHILDRENS, YOUNG PEOPLE AND FAMILIES","	HOME SUPPORT",MATERIALS,24/07/2023,8992326668,2.98,AMZNMKTPLACE AMAZON.CO
OXFORDSHIRE CC,CORPORATE CORE,,STATIONERY,24/07/2023,8992327022,110.5,LYRECO UK LTD
OXFORDSHIRE CC,CORPORATE CORE,,STATIONERY,24/07/2023,8992327030,59.11,LYRECO UK LTD
OXFORDSHIRE CC,"CHILDRENS, YOUNG PEOPLE AND FAMILIES","	LEAVING CARE SOUTH",OTHER EXPENSES,24/07/2023,8992326978,254.95,WWW.ARGOS.CO.UK
OXFORDSHIRE CC,"CHILDRENS, YOUNG PEOPLE AND FAMILIES",FSP NON-STAFFING - CENTRAL,PAYMENTS TO TRANSPORT OPERATORS,24/07/2023,8992327000,8.85,M & S SIMPLY FOOD
OXFORDSHIRE CC,CORPORATE CORE,THAME LIBRARY,"NEWSPAPERS, PERIODICALS AND PUBLICATIONS",24/07/2023,8992327012,7.3,SAINSBURYS S/MKTS
OXFORDSHIRE CC,"CHILDRENS, YOUNG PEOPLE AND FAMILIES",FSP NON-STAFFING - CENTRAL,PAYMENTS TO TRANSPORT OPERATORS,24/07/2023,8992327008,75.9,WAITROSE 479
OXFORDSHIRE CC,CORPORATE CORE,"MARKETING, COMMUNICATIONS & ENGAGEMENT","PUBLICITY, PROMOTIONS AND ADVERTISEMENT",24/07/2023,8992327110,500,FACEBK  CKWLPSF9Z2
OXFORDSHIRE CC,CORPORATE CORE,"MARKETING, COMMUNICATIONS & ENGAGEMENT","PUBLICITY, PROMOTIONS AND ADVERTISEMENT",24/07/2023,8992327118,132.88,SNAP INC SNAP SNAP ADS
OXFORDSHIRE CC,CORPORATE CORE,"MARKETING, COMMUNICATIONS & ENGAGEMENT","PUBLICITY, PROMOTIONS AND ADVERTISEMENT",24/07/2023,8992327114,500,FACEBK  R4K3RSF9Z2
OXFORDSHIRE CC,"CHILDRENS, YOUNG PEOPLE AND FAMILIES",EYNSHAM,DOMESTIC SUPPLIES,24/07/2023,8992327122,7.42,HOME BARGAINS
OXFORDSHIRE CC,"CHILDRENS, YOUNG PEOPLE AND FAMILIES","	LEAVING CARE CITY 2",CATERING,24/07/2023,8992326844,12.98,MCDONALDS
OXFORDSHIRE CC,"CHILDRENS, YOUNG PEOPLE AND FAMILIES","	OCCG GRANT",CATERING,24/07/2023,8992326848,3.25,COSTA TEMPLARS
OXFORDSHIRE CC,"CHILDRENS, YOUNG PEOPLE AND FAMILIES","	LEAVING CARE SOUTH",OTHER EXPENSES,24/07/2023,8992326976,254.95,WWW.ARGOS.CO.UK
OXFORDSHIRE CC,"CHILDRENS, YOUNG PEOPLE AND FAMILIES",EYNSHAM,VEHICLE FUEL,24/07/2023,8992326984,1.9,TESCO PFS 2488
OXFORDSHIRE CC,CORPORATE CORE,"MARKETING, COMMUNICATIONS & ENGAGEMENT","PUBLICITY, PROMOTIONS AND ADVERTISEMENT",24/07/2023,8992327116,500,GOOGLE ADS4896546035
OXFORDSHIRE CC,"CHILDRENS, YOUNG PEOPLE AND FAMILIES",EYNSHAM,CATERING PROVISIONS,24/07/2023,8992327124,4.99,SPAR EYNSHAM
OXFORDSHIRE CC,CORPORATE CORE,"MARKETING, COMMUNICATIONS & ENGAGEMENT","PUBLICITY, PROMOTIONS AND ADVERTISEMENT",24/07/2023,8992327112,108.61,SNAP INC SNAP SNAP ADS
OXFORDSHIRE CC,CORPORATE CORE,"MARKETING, COMMUNICATIONS & ENGAGEMENT","PUBLICITY, PROMOTIONS AND ADVERTISEMENT",24/07/2023,8992327120,135.92,SNAP INC SNAP SNAP ADS
OXFORDSHIRE CC,"CHILDRENS, YOUNG PEOPLE AND FAMILIES",FSP NON-STAFFING - CENTRAL,PAYMENTS TO TRANSPORT OPERATORS,24/07/2023,8992326620,802,BKG HOTEL AT BOOKING.C
OXFORDSHIRE CC,"CHILDRENS, YOUNG PEOPLE AND FAMILIES","	FPT NORTH",MATERIALS,24/07/2023,8992326638,9.58,AMAZON.CO.UK 1A68147S5
OXFORDSHIRE CC,"CHILDRENS, YOUNG PEOPLE AND FAMILIES",THAME E&A HOME,CATERING PROVISIONS,24/07/2023,8992326642,123.35,TESCO STORES 2038
OXFORDSHIRE CC,CORPORATE CORE,,STATIONERY,24/07/2023,8992327062,245.78,LYRECO UK LTD
OXFORDSHIRE CC,SOCIAL AND COMMUNITY SERVICES,ADULTS AT RISK,MATERIALS,24/07/2023,8992326634,77.99,AMZNMKTPLACE
OXFORDSHIRE CC,CORPORATE CORE,,STATIONERY,24/07/2023,8992327058,53.12,LYRECO UK LTD
OXFORDSHIRE CC,CORPORATE CORE,,STATIONERY,24/07/2023,8992327066,300.95,LYRECO UK LTD
OXFORDSHIRE CC,"CHILDRENS, YOUNG PEOPLE AND FAMILIES",UASC POST 18,RESIDENTIAL ACTIVITIES,24/07/2023,8992327134,33,WWW.ARGOS.CO.UK
OXFORDSHIRE CC,"CHILDRENS, YOUNG PEOPLE AND FAMILIES",FAMILY SOLUTIONS PLUS NON-STAFF � SOUTH,OTHER TRANSPORT ARRANGEMENTS,24/07/2023,8992327142,35,CCS 001 ALPHA CARS
OXFORDSHIRE CC,ENVIRONMENT AND ECONOMY,"	SAMUELSON HOUSE",OTHER PREMISES RELATED COSTS,24/07/2023,8992326730,4.95,WM MORRISONS STORE
OXFORDSHIRE CC,SOCIAL AND COMMUNITY SERVICES,CHILDREN IN CARE NON-STAFFING - NORTH,CATERING PROVISIONS,24/07/2023,8992326702,13.2,M&S SIMPLY FOOD - SSP
OXFORDSHIRE CC,"CHILDRENS, YOUNG PEOPLE AND FAMILIES",40 THE MOORS,CATERING PROVISIONS,24/07/2023,8992327146,-180.09,SAINSBURYS.CO.UK
OXFORDSHIRE CC,"CHILDRENS, YOUNG PEOPLE AND FAMILIES",EYNSHAM,ENTERTAINMENT EXPENSES,24/07/2023,8992327130,21.88,CINEWORLD
OXFORDSHIRE CC,SOCIAL AND COMMUNITY SERVICES,CHILDREN IN CARE NON-STAFFING - NORTH,PAYMENTS TO TRANSPORT OPERATORS,24/07/2023,8992326704,5,NEW SOUTHERN RAILW
OXFORDSHIRE CC,"CHILDRENS, YOUNG PEOPLE AND FAMILIES","	SEN/ICT EQUIPMENT",OTHER TRANSPORT ARRANGEMENTS,24/07/2023,8992326716,2.4,UPS LTD
OXFORDSHIRE CC,"CHILDRENS, YOUNG PEOPLE AND FAMILIES",FAMILY SOLUTIONS PLUS NON-STAFF - NORTH,ENTERTAINMENT EXPENSES,24/07/2023,8992327132,59.8,THE LIGHT CINEMAS
OXFORDSHIRE CC,"CHILDRENS, YOUNG PEOPLE AND FAMILIES",FAMILY SOLUTIONS PLUS NON-STAFF � SOUTH,HIRE OF ACCOMMODATION AND FACILITIES,24/07/2023,8992327140,322.27,TRAVELODGE
OXFORDSHIRE CC,"CHILDRENS, YOUNG PEOPLE AND FAMILIES",PAUSE PROGRAMME,CATERING PROVISIONS,24/07/2023,8992326722,4.89,DELTEYS
OXFORDSHIRE CC,SOCIAL AND COMMUNITY SERVICES,CHILDREN IN CARE NON-STAFFING - NORTH,CATERING,24/07/2023,8992326708,12.1,PEARLS OF ORIENTAL UK
OXFORDSHIRE CC,"CHILDRENS, YOUNG PEOPLE AND FAMILIES",FIELDWORK UASC,MATERIALS,24/07/2023,8992326738,4.98,AMZNMKTPLACE
OXFORDSHIRE CC,"CHILDRENS, YOUNG PEOPLE AND FAMILIES","	OCCG GRANT",MATERIALS,24/07/2023,8992327136,9,TIMPSON LTD
OXFORDSHIRE CC,"CHILDRENS, YOUNG PEOPLE AND FAMILIES",40 THE MOORS,CATERING PROVISIONS,24/07/2023,8992327144,180.09,SAINSBURYS.CO.UK
OXFORDSHIRE CC,CORPORATE CORE,,STATIONERY,24/07/2023,8992327068,62.77,LYRECO UK LTD
OXFORDSHIRE CC,CORPORATE CORE,,STATIONERY,24/07/2023,8992327076,16.72,LYRECO UK LTD
OXFORDSHIRE CC,CORPORATE CORE,,STATIONERY,24/07/2023,8992327072,186.74,LYRECO UK LTD
OXFORDSHIRE CC,"CHILDRENS, YOUNG PEOPLE AND FAMILIES","	SM QUALITY ASSURANCE",CATERING,24/07/2023,8992327084,6.58,MCDONALDS
OXFORDSHIRE CC,"CHILDRENS, YOUNG PEOPLE AND FAMILIES",CHILDREN IN CARE NON-STAFFING - SOUTH,EDUCATIONAL AND VOCATIONAL TRAINING ,24/07/2023,8992327092,179,WWW.LIGHTNINGPASS.COM
OXFORDSHIRE CC,"CHILDRENS, YOUNG PEOPLE AND FAMILIES","	LOOKED AFTER NORTH","SUPPLIES, STATIONERY AND MATERIALS",24/07/2023,8992327088,15,VOUCHER EXPRESS
OXFORDSHIRE CC,CORPORATE CORE,SCHOOLS FM CATERING AREA 1,MATERIALS,24/07/2023,8992327098,54.99,AMZNMKTPLACE
OXFORDSHIRE CC,"CHILDRENS, YOUNG PEOPLE AND FAMILIES","	SM QUALITY ASSURANCE",PAYMENT TO GOVERNMENT DEPARTMENTS,24/07/2023,8992327080,3.2,OXFORD CITY COUNCIL
OXFORDSHIRE CC,"CHILDRENS, YOUNG PEOPLE AND FAMILIES",WITNEY,CATERING PROVISIONS,24/07/2023,8992326936,15.25,ASDA STORES 4920
OXFORDSHIRE CC,"CHILDRENS, YOUNG PEOPLE AND FAMILIES",EYNSHAM,ENTERTAINMENT EXPENSES,24/07/2023,8992326576,12.58,CINEWORLD WIT CP
OXFORDSHIRE CC,"CHILDRENS, YOUNG PEOPLE AND FAMILIES",WITNEY,MATERIALS,24/07/2023,8992326584,15.98,AMZNMKTPLACE
OXFORDSHIRE CC,"CHILDRENS, YOUNG PEOPLE AND FAMILIES",THAME E&A HOME,CATERING PROVISIONS,24/07/2023,8992326596,17.93,SAINSBURYS S/MKTS
OXFORDSHIRE CC,ENVIRONMENT AND ECONOMY,HARD FM,PREMISES REPAIRS,24/07/2023,8992326604,66.72,TOOLSTATION LTD
OXFORDSHIRE CC,SOCIAL AND COMMUNITY SERVICES,UASC 16&17,CATERING PROVISIONS,24/07/2023,8992326614,19.69,TESCO STORES 2994
OXFORDSHIRE CC,SOCIAL AND COMMUNITY SERVICES,UASC 16&17,MATERIALS,24/07/2023,8992326618,288,SPORTSDIRECT 218
OXFORDSHIRE CC,SOCIAL AND COMMUNITY SERVICES,CHILDREN IN CARE NON-STAFFING - NORTH,PAYMENTS TO TRANSPORT OPERATORS,24/07/2023,8992326700,22.9,TRAINLINE
OXFORDSHIRE CC,SOCIAL AND COMMUNITY SERVICES,CSS WITNEY,CATERING PROVISIONS,21/07/2023,11041936763,35.7,MILK AND MORE (RECUR
OXFORDSHIRE CC,"CHILDRENS, YOUNG PEOPLE AND FAMILIES",FSP NON-STAFFING - CENTRAL,PAYMENTS TO TRANSPORT OPERATORS,21/07/2023,11041936837,12.22,TESCO STORES 2990
OXFORDSHIRE CC,SOCIAL AND COMMUNITY SERVICES,CSS WITNEY,MATERIALS,21/07/2023,11041936765,34.99,AMZNMKTPLACE AMAZON.CO
OXFORDSHIRE CC,"CHILDRENS, YOUNG PEOPLE AND FAMILIES","	OCCG GRANT",OTHER EXPENSES,21/07/2023,11041936853,3.38,MEDINA FOODS MARKET
OXFORDSHIRE CC,"CHILDRENS, YOUNG PEOPLE AND FAMILIES",CNTL EARLY HELP-RHIL,MATERIALS,21/07/2023,11041936823,213.95,WWW.ARGOS.CO.UK
OXFORDSHIRE CC,"CHILDRENS, YOUNG PEOPLE AND FAMILIES",NRPF & HOMELESSNESS,MATERIALS,21/07/2023,11041936749,78.2,WWW.ARGOS.CO.UK
OXFORDSHIRE CC,"CHILDRENS, YOUNG PEOPLE AND FAMILIES",FSP NON-STAFFING - CENTRAL,PAYMENTS TO TRANSPORT OPERATORS,21/07/2023,11041936817,39.5,WWW.GWR.COM
OXFORDSHIRE CC,"CHILDRENS, YOUNG PEOPLE AND FAMILIES","	LEAVING CARE SOUTH",OTHER EXPENSES,21/07/2023,11041936825,219.44,AMZNMKTPLACE
OXFORDSHIRE CC,"CHILDRENS, YOUNG PEOPLE AND FAMILIES",NTH EARLY HELP-WITNY,CATERING PROVISIONS,21/07/2023,11041936743,2.85,TESCO STORES 4377
OXFORDSHIRE CC,"CHILDRENS, YOUNG PEOPLE AND FAMILIES",NRPF & HOMELESSNESS,MATERIALS,21/07/2023,11041936751,-12,WWW.ARGOS.CO.UK
OXFORDSHIRE CC,SOCIAL AND COMMUNITY SERVICES,CSS WITNEY,HARDWARE AND CROCKERY,21/07/2023,11041936759,278.4,A K TIMMS & SONS L
OXFORDSHIRE CC,CORPORATE CORE,HISTORY SERVICE,EQUIPMENT,21/07/2023,11041936745,223.98,WWW.PRESERVATIONEQUIPM
OXFORDSHIRE CC,CORPORATE CORE,THAME LIBRARY,CATERING PROVISIONS,21/07/2023,11041936841,5.6,SAINSBURYS S/MKTS
OXFORDSHIRE CC,SOCIAL AND COMMUNITY SERVICES,REVIEWING TEAM,OTHER EMPLOYEE EXPENSES,21/07/2023,11041936813,109,SCONE ARMS
OXFORDSHIRE CC,"CHILDRENS, YOUNG PEOPLE AND FAMILIES",FSP NON-STAFFING - CENTRAL,PAYMENT TO GOVERNMENT DEPARTMENTS,21/07/2023,11041936821,11,OXFORDSHIRE CC WEB1
OXFORDSHIRE CC,"CHILDRENS, YOUNG PEOPLE AND FAMILIES","	DIRECTOR'S OFFICE",MATERIALS,21/07/2023,11041936835,-44,WWW.BLOOMANDWILD.COM
OXFORDSHIRE CC,"CHILDRENS, YOUNG PEOPLE AND FAMILIES","	SM QUALITY ASSURANCE",OTHER TRANSPORT ARRANGEMENTS,21/07/2023,11041936849,2.7,UNION STREET CAR PARK
OXFORDSHIRE CC,"CHILDRENS, YOUNG PEOPLE AND FAMILIES",FSP NON-STAFFING - CENTRAL,PAYMENTS TO TRANSPORT OPERATORS,21/07/2023,11041936819,30.5,WWW.GWR.COM
OXFORDSHIRE CC,"CHILDRENS, YOUNG PEOPLE AND FAMILIES","	OCCG GRANT",OTHER EXPENSES,21/07/2023,11041936851,32.5,ICELAND FOODS
OXFORDSHIRE CC,"CHILDRENS, YOUNG PEOPLE AND FAMILIES",NRPF & HOMELESSNESS,MATERIALS,21/07/2023,11041936747,14,WWW.ARGOS.CO.UK
OXFORDSHIRE CC,SOCIAL AND COMMUNITY SERVICES,CSS WITNEY,MATERIALS,21/07/2023,11041936761,22.19,AMZNMKTPLACE
OXFORDSHIRE CC,"CHILDRENS, YOUNG PEOPLE AND FAMILIES","	LEAVING CARE CITY 2",CATERING,21/07/2023,11041936667,16.55,COSTA COFFEE 43011187
OXFORDSHIRE CC,ENVIRONMENT AND ECONOMY,HOLDING CODE FOR REA,HARDWARE AND CROCKERY,21/07/2023,11041936675,77.99,WWW.SCREWFIX.COM
OXFORDSHIRE CC,CORPORATE CORE,BUSINESS INTELLECTUAL PROPERTY CENTRE,CATERING PROVISIONS,21/07/2023,11041936711,22.8,SAINSBURYS S/MKTS
OXFORDSHIRE CC,SOCIAL AND COMMUNITY SERVICES,"	MUSEUMS COLLECTIONS",CATERING PROVISIONS,21/07/2023,11041936733,4.62,MILK AND MORE (RECUR
OXFORDSHIRE CC,"CHILDRENS, YOUNG PEOPLE AND FAMILIES",FSP STAFFING � CENTRAL,IT SOFTWARE,21/07/2023,11041936467,4.8,QWIKPARK
OXFORDSHIRE CC,"CHILDRENS, YOUNG PEOPLE AND FAMILIES","	LEAVING CARE CITY 2",OTHER EXPENSES,21/07/2023,11041936475,30.99,AMZNMKTPLACE AMAZON.CO
OXFORDSHIRE CC,"CHILDRENS, YOUNG PEOPLE AND FAMILIES","	LEAVING CARE CITY 1",CATERING PROVISIONS,21/07/2023,11041936525,1.94,BRIDGE STREET FOOD AN
OXFORDSHIRE CC,"CHILDRENS, YOUNG PEOPLE AND FAMILIES","	LEAVING CARE NORTH",PAYMENTS TO VOLUNTARY BODIES,21/07/2023,11041936669,161.13,ALLPAY  SANCTUARY HOUS
OXFORDSHIRE CC,"CHILDRENS, YOUNG PEOPLE AND FAMILIES",FIELDWORK UASC,CATERING PROVISIONS,21/07/2023,11041936861,2.99,SPAR SUPER STORE
OXFORDSHIRE CC,"CHILDRENS, YOUNG PEOPLE AND FAMILIES",CHILDREN IN CARE NON-STAFFING - SOUTH,OTHER TRANSPORT ARRANGEMENTS,21/07/2023,11041936877,2.2,CARLISLE CAR PARK
OXFORDSHIRE CC,ENVIRONMENT AND ECONOMY,HARD FM,PREMISES REPAIRS,21/07/2023,11041936489,22.98,WWW.SCREWFIX.COM
OXFORDSHIRE CC,"CHILDRENS, YOUNG PEOPLE AND FAMILIES","	LEAVING CARE CITY 1",OTHER EXPENSES,21/07/2023,11041936497,"1,000.00",FPG PAVILION COURT
OXFORDSHIRE CC,SOCIAL AND COMMUNITY SERVICES,"	MTFC",CATERING PROVISIONS,21/07/2023,11041936883,22.65,TESCO STORES 2064
OXFORDSHIRE CC,"CHILDRENS, YOUNG PEOPLE AND FAMILIES",FAMILY SOLUTIONS PLUS NON-STAFF - NORTH,CHILDCARE MANAGEMENT FEES,21/07/2023,11041936501,61,PAYPAL  JUSTCAMPSLI
OXFORDSHIRE CC,"CHILDRENS, YOUNG PEOPLE AND FAMILIES","	DISABILITIES TEAM-C",PAYMENTS TO TRANSPORT OPERATORS,21/07/2023,11041936509,166.09,TRAINLINE.COM
OXFORDSHIRE CC,SOCIAL AND COMMUNITY SERVICES,CSS - OXFORD,FURNITURE,21/07/2023,11041936517,14,HOMEBASE LTD 091
OXFORDSHIRE CC,CORPORATE CORE,SCHOOLS FM CATERING AREA 1,MATERIALS,21/07/2023,11041936891,33.74,AMZNMKTPLACE
OXFORDSHIRE CC,"CHILDRENS, YOUNG PEOPLE AND FAMILIES",NRPF & HOMELESSNESS,OTHER TRANSPORT ARRANGEMENTS,21/07/2023,11041936899,60,THE OXFORDSHIRE TAXI C
OXFORDSHIRE CC,"CHILDRENS, YOUNG PEOPLE AND FAMILIES",PAUSE PROGRAMME,MATERIALS,21/07/2023,11041936575,8.87,CARD FACTORY
OXFORDSHIRE CC,"CHILDRENS, YOUNG PEOPLE AND FAMILIES","	OCCG GRANT",MATERIALS,21/07/2023,11041936583,18.65,TIMPSON LTD
OXFORDSHIRE CC,ENVIRONMENT AND ECONOMY,"	ROW MAINT",EQUIPMENT,21/07/2023,11041936679,587.1,OXON FASTENING SYSTEMS
OXFORDSHIRE CC,"CHILDRENS, YOUNG PEOPLE AND FAMILIES",TRANSPORT COSTS,TRANSPORT TO SCHOOL,21/07/2023,11041936473,72.7,MULTIFLEET MINICABS
OXFORDSHIRE CC,"CHILDRENS, YOUNG PEOPLE AND FAMILIES",FIELDWORK UASC,CATERING,21/07/2023,11041936859,11.6,FRIENDS
OXFORDSHIRE CC,"CHILDRENS, YOUNG PEOPLE AND FAMILIES",THAME E&A HOME,CLOTHING AND UNIFORMS,21/07/2023,11041936537,69.5,PRIMARK 440
OXFORDSHIRE CC,CORPORATE CORE,"MARKETING, COMMUNICATIONS & ENGAGEMENT","PUBLICITY, PROMOTIONS AND ADVERTISEMENT",21/07/2023,11041936901,53.9,SNAP INC SNAP SNAP ADS
OXFORDSHIRE CC,"CHILDRENS, YOUNG PEOPLE AND FAMILIES",FIELDWORK UASC,EQUIPMENT,21/07/2023,11041936591,63.35,HEADINGTON HEATING AND
OXFORDSHIRE CC,SOCIAL AND COMMUNITY SERVICES,FLEET OPERATIONS,CATERING PROVISIONS,21/07/2023,11041936595,18.4,MILK AND MORE (RECUR
OXFORDSHIRE CC,"CHILDRENS, YOUNG PEOPLE AND FAMILIES",UASC 16&17,RESIDENTIAL ACTIVITIES,21/07/2023,11041936619,21.99,THE GYM GROUP
OXFORDSHIRE CC,SOCIAL AND COMMUNITY SERVICES,CSS WITNEY,HARDWARE AND CROCKERY,21/07/2023,11041936699,11.75,B & Q 1176
OXFORDSHIRE CC,"CHILDRENS, YOUNG PEOPLE AND FAMILIES","	LEAVING CARE CITY 2",OTHER TRANSPORT ARRANGEMENTS,21/07/2023,11041936707,4.5,STGCOACH/CTYLINK
OXFORDSHIRE CC,"CHILDRENS, YOUNG PEOPLE AND FAMILIES",CHILDREN IN CARE NON-STAFFING - SOUTH,ENTERTAINMENT EXPENSES,21/07/2023,11041936867,20.5,WWW.BETTER.ORG.UK
OXFORDSHIRE CC,"CHILDRENS, YOUNG PEOPLE AND FAMILIES",CHILDREN IN CARE NON-STAFFING - SOUTH,CATERING,21/07/2023,11041936875,10.58,MCDONALDS 326
OXFORDSHIRE CC,"CHILDRENS, YOUNG PEOPLE AND FAMILIES",UASC POST 18,RESIDENTIAL ACTIVITIES,21/07/2023,11041936483,55.8,TICKETS 94469868
OXFORDSHIRE CC,SOCIAL AND COMMUNITY SERVICES,LIB ICT SUPPRT&MAINT,MATERIALS,21/07/2023,11041936879,339.98,AMZNMKTPLACE AMAZON.CO
OXFORDSHIRE CC,"CHILDRENS, YOUNG PEOPLE AND FAMILIES",FAMILY SOLUTIONS PLUS NON-STAFF - NORTH,PAYMENTS TO TRANSPORT OPERATORS,21/07/2023,11041936887,245.77,TRAINLINE
OXFORDSHIRE CC,"CHILDRENS, YOUNG PEOPLE AND FAMILIES",FAMILY SOLUTIONS PLUS NON-STAFF - NORTH,CATERING PROVISIONS,21/07/2023,11041936929,100,TESCO GIFT CARD
OXFORDSHIRE CC,"CHILDRENS, YOUNG PEOPLE AND FAMILIES","	LOOKED AFTER NORTH",OTHER TRANSPORT ARRANGEMENTS,21/07/2023,11041936621,3,OXFORD BUS COMPANY
OXFORDSHIRE CC,ENVIRONMENT AND ECONOMY,"	CAMBRIDGE TERRACE",MATERIALS,21/07/2023,11041936847,25,AO RETAIL LIMITED
OXFORDSHIRE CC,"CHILDRENS, YOUNG PEOPLE AND FAMILIES",FAMILY SOLUTIONS PLUS NON-STAFF � SOUTH,HIRE OF ACCOMMODATION AND FACILITIES,21/07/2023,11041936921,91.78,TRAVELODGE
OXFORDSHIRE CC,"CHILDRENS, YOUNG PEOPLE AND FAMILIES",PAUSE PROGRAMME,CATERING,21/07/2023,11041936649,8.35,COSTA COFFEE 43010890
OXFORDSHIRE CC,ENVIRONMENT AND ECONOMY,"	ROW MAINT",EQUIPMENT,21/07/2023,11041936657,832.8,HELPFUL HIRINGS
OXFORDSHIRE CC,"CHILDRENS, YOUNG PEOPLE AND FAMILIES","	LEAVING CARE CITY 2",MATERIALS,21/07/2023,11041936665,248.95,WWW.ARGOS.CO.UK
OXFORDSHIRE CC,ENVIRONMENT AND ECONOMY,"	NAT TRAILS GENERAL",CATERING PROVISIONS,21/07/2023,11041936687,3,CO OPERATIVE FOOD
OXFORDSHIRE CC,"CHILDRENS, YOUNG PEOPLE AND FAMILIES",CHILDREN IN CARE NON-STAFFING - CENTRL 1,OTHER EXPENSES,21/07/2023,11041936923,82.5,HM PASSPORT OFFICE
OXFORDSHIRE CC,"CHILDRENS, YOUNG PEOPLE AND FAMILIES",PAUSE PROGRAMME,MATERIALS,21/07/2023,11041936573,5.99,AMZNMKTPLACE
OXFORDSHIRE CC,"CHILDRENS, YOUNG PEOPLE AND FAMILIES",PAUSE PROGRAMME,MATERIALS,21/07/2023,11041936581,-5.99,CARD FACTORY
OXFORDSHIRE CC,SOCIAL AND COMMUNITY SERVICES,CSS - OXFORD,CATERING PROVISIONS,21/07/2023,11041936617,34.27,ALDI STORES 775-142
OXFORDSHIRE CC,"CHILDRENS, YOUNG PEOPLE AND FAMILIES","	LOOKED AFTER NORTH",OTHER TRANSPORT ARRANGEMENTS,21/07/2023,11041936625,5,PEARTREE PARK AND RIDE
OXFORDSHIRE CC,"CHILDRENS, YOUNG PEOPLE AND FAMILIES",NRPF & HOMELESSNESS,HIRE OF ACCOMMODATION AND FACILITIES,21/07/2023,11041936643,"1,066.00",PREMIER INN
OXFORDSHIRE CC,"CHILDRENS, YOUNG PEOPLE AND FAMILIES",KINGFISHER,CATERING,21/07/2023,11041936651,1.59,MCDONALDS
OXFORDSHIRE CC,"CHILDRENS, YOUNG PEOPLE AND FAMILIES","	LEAVING CARE CITY 2",CLOTHING AND UNIFORMS,21/07/2023,11041936705,295,JD SPORTS FASHION PLC
OXFORDSHIRE CC,SOCIAL AND COMMUNITY SERVICES,CSS - OXFORD,FURNITURE,21/07/2023,11041936515,10,HOMEBASE LTD 091
OXFORDSHIRE CC,"CHILDRENS, YOUNG PEOPLE AND FAMILIES","	LEAVING CARE CITY 1",OTHER TRANSPORT ARRANGEMENTS,21/07/2023,11041936523,1.6,CHERWELL
OXFORDSHIRE CC,"CHILDRENS, YOUNG PEOPLE AND FAMILIES",TRANSPORT COSTS,TRANSPORT TO SCHOOL,21/07/2023,11041936471,73,MULTIFLEET MINICABS
OXFORDSHIRE CC,SOCIAL AND COMMUNITY SERVICES,LOOKED AFTER NORTH,OTHER TRANSPORT ARRANGEMENTS,21/07/2023,11041936553,4,PEARTREE PARK AND RIDE
OXFORDSHIRE CC,"CHILDRENS, YOUNG PEOPLE AND FAMILIES",QUALITY ASSURANCE SOUTH TEAM,PAYMENTS TO TRANSPORT OPERATORS,21/07/2023,11041936933,166.46,EASYJET
OXFORDSHIRE CC,"CHILDRENS, YOUNG PEOPLE AND FAMILIES","	LEAVING CARE SOUTH",REGISTRATION AND INSPECTION FEES,21/07/2023,11041936633,30,CITIZENCARD
OXFORDSHIRE CC,"CHILDRENS, YOUNG PEOPLE AND FAMILIES","	OCCG GRANT",CATERING PROVISIONS,21/07/2023,11041936857,-3,ICELAND FOODS
OXFORDSHIRE CC,SOCIAL AND COMMUNITY SERVICES,WALLINGFORD LIBRARY,CATERING PROVISIONS,21/07/2023,11041936865,1.55,WAITROSE 675
OXFORDSHIRE CC,"CHILDRENS, YOUNG PEOPLE AND FAMILIES","	LOOKED AFTER NORTH",CATERING,21/07/2023,11041936873,7.15,COSTA COFFEE 43011690
OXFORDSHIRE CC,"CHILDRENS, YOUNG PEOPLE AND FAMILIES",NTS UASC AGENCY,MATERIALS,21/07/2023,11041936963,89.99,WWW.ARGOS.CO.UK
OXFORDSHIRE CC,"CHILDRENS, YOUNG PEOPLE AND FAMILIES",NRPF & HOMELESSNESS,HIRE OF ACCOMMODATION AND FACILITIES,21/07/2023,11041936645,876,PREMIER INN
OXFORDSHIRE CC,"CHILDRENS, YOUNG PEOPLE AND FAMILIES",KINGFISHER,CATERING,21/07/2023,11041936653,10.27,MCDONALDS
OXFORDSHIRE CC,"CHILDRENS, YOUNG PEOPLE AND FAMILIES",FAMILY SOLUTIONS PLUS NON-STAFF - NORTH,"SUPPLIES, STATIONERY AND MATERIALS",21/07/2023,11041936503,57,ACT BRGHTSPRKSEVENTS
OXFORDSHIRE CC,"CHILDRENS, YOUNG PEOPLE AND FAMILIES",CHILDREN IN CARE NON-STAFFING - CENTRL 2,ENTERTAINMENT EXPENSES,21/07/2023,11041936511,47.15,EA DIGITICKETS CORAL R
OXFORDSHIRE CC,"CHILDRENS, YOUNG PEOPLE AND FAMILIES","	LEAVING CARE CITY 1",CLOTHING AND UNIFORMS,21/07/2023,11041936519,71.16,BLUE INC
OXFORDSHIRE CC,SOCIAL AND COMMUNITY SERVICES,CSS - OXFORD,DAY ACTIVITIES,21/07/2023,11041936487,5.95,WWW.BETTER.ORG.UK
OXFORDSHIRE CC,SOCIAL AND COMMUNITY SERVICES,CSS - OXFORD,CATERING PROVISIONS,21/07/2023,11041936495,0.72,ALDI STORES 775-142
OXFORDSHIRE CC,"CHILDRENS, YOUNG PEOPLE AND FAMILIES",FAMILY SOLUTIONS PLUS NON-STAFF - NORTH,HIRE OF ACCOMMODATION AND FACILITIES,21/07/2023,11041936889,97.39,TRAVELODGE
OXFORDSHIRE CC,"CHILDRENS, YOUNG PEOPLE AND FAMILIES",WITNEY,CATERING PROVISIONS,21/07/2023,11041936897,7.6,CO-OP GROUP 070582
OXFORDSHIRE CC,SOCIAL AND COMMUNITY SERVICES,CHILDREN IN CARE NON-STAFFING - NORTH,CATERING,21/07/2023,11041936555,9.2,MCDONALDS 917
OXFORDSHIRE CC,"CHILDRENS, YOUNG PEOPLE AND FAMILIES",DISABILITIES TEAM S,FURNITURE,21/07/2023,11041936527,578.95,WWW.ARGOS.CO.UK
OXFORDSHIRE CC,"CHILDRENS, YOUNG PEOPLE AND FAMILIES",FSP NON-STAFFING - CENTRAL,MATERIALS,21/07/2023,11041936903,195.97,AMZNMKTPLACE AMAZON.CO
OXFORDSHIRE CC,SOCIAL AND COMMUNITY SERVICES,"	HISTORY SERVICE",POSTAGE AND DELIVERY,21/07/2023,11041936911,2.4,ROYAL MAIL GROUP LTD
OXFORDSHIRE CC,"CHILDRENS, YOUNG PEOPLE AND FAMILIES",PAUSE PROGRAMME,MATERIALS,21/07/2023,11041936571,10.99,HEART TO HEART/THORNTO
OXFORDSHIRE CC,"CHILDRENS, YOUNG PEOPLE AND FAMILIES",PAUSE PROGRAMME,CATERING PROVISIONS,21/07/2023,11041936579,11.25,SAINSBURYS S/MKTS
OXFORDSHIRE CC,CORPORATE CORE,SCHOOLS FM CATERING AREA 4,VEHICLE FUEL,21/07/2023,11041936629,30.3,BUDGENS PEACHCROFT
OXFORDSHIRE CC,"CHILDRENS, YOUNG PEOPLE AND FAMILIES",NRPF & HOMELESSNESS,HIRE OF ACCOMMODATION AND FACILITIES,21/07/2023,11041936647,"1,009.50",PREMIER INN
OXFORDSHIRE CC,"CHILDRENS, YOUNG PEOPLE AND FAMILIES",THAME E&A HOME,MATERIALS,21/07/2023,11041936655,22.17,AMAZON.CO.UK DB69I1ZJ5
OXFORDSHIRE CC,"CHILDRENS, YOUNG PEOPLE AND FAMILIES","	LEAVING CARE CITY 2",MATERIALS,21/07/2023,11041936663,182.95,ARGOS HEYFORD HILL
OXFORDSHIRE CC,ENVIRONMENT AND ECONOMY,"	ROW MAINT",EQUIPMENT,21/07/2023,11041936677,62.9,SLINGSANDSTRAPS.CO.UK
OXFORDSHIRE CC,ENVIRONMENT AND ECONOMY,"	NAT TRAILS GENERAL",VEHICLE FUEL,21/07/2023,11041936685,31.21,BP BENSON CONNECT
OXFORDSHIRE CC,ENVIRONMENT AND ECONOMY,HARD FM,PREMISES REPAIRS,21/07/2023,11041936491,4.78,SCREWFIX OXFORD COWLEY
OXFORDSHIRE CC,SOCIAL AND COMMUNITY SERVICES,CSS - BANBURY,CATERING PROVISIONS,21/07/2023,11041936931,43.4,SAINSBURYS S/MKTS
OXFORDSHIRE CC,ENVIRONMENT AND ECONOMY,"	SAMUELSON HOUSE",CATERING PROVISIONS,21/07/2023,11041936587,42.84,MILK AND MORE (RECUR
OXFORDSHIRE CC,"CHILDRENS, YOUNG PEOPLE AND FAMILIES","	LOOKED AFTER NORTH",PAYMENTS TO TRANSPORT OPERATORS,21/07/2023,11041936623,15,BANBURY SSTP
OXFORDSHIRE CC,"CHILDRENS, YOUNG PEOPLE AND FAMILIES","	LEAVING CARE SOUTH",CATERING PROVISIONS,21/07/2023,11041936631,188.95,PAYPAL  ARGOSDIRECT
OXFORDSHIRE CC,"CHILDRENS, YOUNG PEOPLE AND FAMILIES",FSP STAFFING � CENTRAL,CATERING,21/07/2023,11041936469,3.4,CAFE LOCO
OXFORDSHIRE CC,"CHILDRENS, YOUNG PEOPLE AND FAMILIES","	LEAVING CARE CITY 1",OTHER EXPENSES,21/07/2023,11041936499,289.46,FPG PAVILION COURT
OXFORDSHIRE CC,"CHILDRENS, YOUNG PEOPLE AND FAMILIES",FAMILY SOLUTIONS PLUS NON-STAFF - NORTH,PAYMENTS TO TRANSPORT OPERATORS,21/07/2023,11041936885,87.22,TRAINLINE
OXFORDSHIRE CC,CORPORATE CORE,SCHOOLS FM CATERING AREA 1,MATERIALS,21/07/2023,11041936893,49.99,AMZNMKTPLACE
OXFORDSHIRE CC,"CHILDRENS, YOUNG PEOPLE AND FAMILIES","	LEAVING CARE SOUTH",CATERING PROVISIONS,21/07/2023,11041936551,30,ALDI 99 775
OXFORDSHIRE CC,SOCIAL AND COMMUNITY SERVICES,CSS - OXFORD,CATERING PROVISIONS,21/07/2023,11041936493,13.25,ALDI STORES 775-142
OXFORDSHIRE CC,"CHILDRENS, YOUNG PEOPLE AND FAMILIES",PAUSE PROGRAMME,CATERING PROVISIONS,21/07/2023,11041936577,17.96,ALDI 99 775
OXFORDSHIRE CC,"CHILDRENS, YOUNG PEOPLE AND FAMILIES","	OCCG GRANT",CATERING PROVISIONS,21/07/2023,11041936585,3,ASDA STORE 4442
OXFORDSHIRE CC,"CHILDRENS, YOUNG PEOPLE AND FAMILIES",UASC 16&17,CATERING,21/07/2023,11041936593,11.88,PAPA JOHNS ABINGDON
OXFORDSHIRE CC,CORPORATE CORE,OPERATIONS,MATERIALS,21/07/2023,11041936715,5.99,AMZNMKTPLACE AMAZON.CO
OXFORDSHIRE CC,"CHILDRENS, YOUNG PEOPLE AND FAMILIES",PAUSE PROGRAMME,CATERING PROVISIONS,21/07/2023,11041936723,4.34,SAINSBURYS S/MKTS
OXFORDSHIRE CC,CORPORATE CORE,SCHOOLS FM CATERING AREA 1,MATERIALS,21/07/2023,11041936895,-67.96,AMZ 7COLOR UK LIMITED
OXFORDSHIRE CC,"CHILDRENS, YOUNG PEOPLE AND FAMILIES",PAUSE PROGRAMME,CATERING PROVISIONS,21/07/2023,11041936605,7.6,NASHS BAKERY
OXFORDSHIRE CC,"CHILDRENS, YOUNG PEOPLE AND FAMILIES",FAMILY SOLUTIONS PLUS NON-STAFF - NORTH,CATERING PROVISIONS,21/07/2023,11041936613,-100,TESCO GIFT CARD
OXFORDSHIRE CC,ENVIRONMENT AND ECONOMY,"	COUNTY PRINT FINSHRS",CLOTHING AND UNIFORMS,21/07/2023,11041936673,171.44,WORKWEAR EXPRESS
OXFORDSHIRE CC,SOCIAL AND COMMUNITY SERVICES,CSS WITNEY,CATERING PROVISIONS,21/07/2023,11041936701,35.4,MARKS&SPENCER PLC
OXFORDSHIRE CC,"CHILDRENS, YOUNG PEOPLE AND FAMILIES",FAMILY SOLUTIONS PLUS NON-STAFF - NORTH,IT SOFTWARE,21/07/2023,11041936505,31.2,CHERWELL DISTRICT
OXFORDSHIRE CC,SOCIAL AND COMMUNITY SERVICES,HOLTON SITE,CATERING PROVISIONS,21/07/2023,11041936513,12.65,MILK AND MORE (RECUR
OXFORDSHIRE CC,"CHILDRENS, YOUNG PEOPLE AND FAMILIES","	LEAVING CARE CITY 1",CLOTHING AND UNIFORMS,21/07/2023,11041936521,34.99,TRESPASS-BANBURY
OXFORDSHIRE CC,CORPORATE CORE,CATERING MANAGEMENT SOFT FM,CATERING PROVISIONS,21/07/2023,11041936477,92.66,ASDA SUPERSTORE
OXFORDSHIRE CC,"CHILDRENS, YOUNG PEOPLE AND FAMILIES",KINGFISHER,"SUPPLIES, STATIONERY AND MATERIALS",21/07/2023,11041936925,100,CS MORRISONS GIFT CARD
OXFORDSHIRE CC,"CHILDRENS, YOUNG PEOPLE AND FAMILIES","	OCCG GRANT",OTHER EXPENSES,21/07/2023,11041936855,3.26,TESCO STORES 6880
OXFORDSHIRE CC,"CHILDRENS, YOUNG PEOPLE AND FAMILIES",FIELDWORK UASC,CATERING PROVISIONS,21/07/2023,11041936863,15.9,SPAR SUPER STORE
OXFORDSHIRE CC,ENVIRONMENT AND ECONOMY,"	COUNTY PRINT FINSHRS",STATIONERY,20/07/2023,11031904027,"1,218.05",INK N TONER UK
OXFORDSHIRE CC,"CHILDRENS, YOUNG PEOPLE AND FAMILIES",PAUSE PROGRAMME,OTHER TRANSPORT ARRANGEMENTS,20/07/2023,11031903833,4.5,OXFORDBUS.CO.UK
OXFORDSHIRE CC,SOCIAL AND COMMUNITY SERVICES,SCHOOLS FM CATERING AREA 2,CATERING PROVISIONS,20/07/2023,11031904031,20.9,SAINSBURYS S/MKTS
OXFORDSHIRE CC,"CHILDRENS, YOUNG PEOPLE AND FAMILIES","	LEAVING CARE SOUTH",OTHER EXPENSES,20/07/2023,11031903951,304.45,WWW.ARGOS.CO.UK
OXFORDSHIRE CC,ENVIRONMENT AND ECONOMY,HARD FM,HARDWARE AND CROCKERY,20/07/2023,11031904553,30,HOMEBASE LTD 091
OXFORDSHIRE CC,"CHILDRENS, YOUNG PEOPLE AND FAMILIES","	LOOKED AFTER NORTH",CLOTHING AND UNIFORMS,20/07/2023,11031903855,115,PRIMARK 693
OXFORDSHIRE CC,"CHILDRENS, YOUNG PEOPLE AND FAMILIES","	RIVERSIDE CENTRE",MATERIALS,20/07/2023,11031903873,17.1,AMZNMKTPLACE AMAZON.CO
OXFORDSHIRE CC,"CHILDRENS, YOUNG PEOPLE AND FAMILIES",WITNEY,CATERING PROVISIONS,20/07/2023,11031903957,50.91,SAINSBURY'S S/MKT
OXFORDSHIRE CC,ENVIRONMENT AND ECONOMY,"	KNIGHTS COURT",STATIONERY,20/07/2023,11031904037,5.45,AMAZON.CO.UK HF3WK9C65
OXFORDSHIRE CC,ENVIRONMENT AND ECONOMY,"	ABBEY HOUSE",MATERIALS,20/07/2023,11031904057,14.44,AMZNMKTPLACE AMAZON.CO
OXFORDSHIRE CC,"CHILDRENS, YOUNG PEOPLE AND FAMILIES","	OCCG GRANT",CATERING PROVISIONS,20/07/2023,11031903843,14.7,CO-OP GROUP 350035
OXFORDSHIRE CC,"CHILDRENS, YOUNG PEOPLE AND FAMILIES","	OCCG GRANT",CATERING,20/07/2023,11031904555,18.76,DOMINOS BANBURY 28071
OXFORDSHIRE CC,"CHILDRENS, YOUNG PEOPLE AND FAMILIES",DEPUTY DIRECTOR &MAN,CATERING PROVISIONS,20/07/2023,11031904023,1.45,SAINSBURY'S S/MKT
OXFORDSHIRE CC,"CHILDRENS, YOUNG PEOPLE AND FAMILIES","	LEAVING CARE CITY 2",CATERING,20/07/2023,11031904041,14.08,MCDONALDS
OXFORDSHIRE CC,"CHILDRENS, YOUNG PEOPLE AND FAMILIES",MANAGEMENT RECHARGES,PAYMENTS TO VOLUNTARY BODIES,20/07/2023,11031903919,89,CVAA UK LTD
OXFORDSHIRE CC,CORPORATE CORE,LIBRARY COLLECTIONS,"BOOKS, DVDS AND CDS",20/07/2023,11031903869,744.07,OVERDRIVE DIST
OXFORDSHIRE CC,"CHILDRENS, YOUNG PEOPLE AND FAMILIES",SOUTHWARK - SECT 17,MATERIALS,20/07/2023,11031903923,17.62,AMZNMKTPLACE AMAZON.CO
OXFORDSHIRE CC,"CHILDRENS, YOUNG PEOPLE AND FAMILIES",UASC 16&17,OTHER EXPENSES,20/07/2023,11031903937,90,CELL PHONE REPAIRS LIM
OXFORDSHIRE CC,CORPORATE CORE,SCHOOLS FM CATERING AREA 4,CATERING PROVISIONS,20/07/2023,11031903941,70.3,SAINSBURYS S/MKTS
OXFORDSHIRE CC,"CHILDRENS, YOUNG PEOPLE AND FAMILIES",FAMILY SOLUTIONS PLUS NON-STAFF - NORTH,MATERIALS,20/07/2023,11031904111,10,WWW.ARGOS.CO.UK
OXFORDSHIRE CC,ENVIRONMENT AND ECONOMY,HARD FM,PREMISES REPAIRS,20/07/2023,11031903671,71.98,WWW.SCREWFIX.COM
OXFORDSHIRE CC,"CHILDRENS, YOUNG PEOPLE AND FAMILIES","	LOOKED AFTER NORTH",VEHICLE FUEL,20/07/2023,11031904477,50.64,FERRYBRIDGE MWSA
OXFORDSHIRE CC,"CHILDRENS, YOUNG PEOPLE AND FAMILIES",MARKETING,OTHER SERVICES,20/07/2023,11031903617,13.68,AMZNMKTPLACE AMAZON.CO
OXFORDSHIRE CC,CORPORATE CORE,OPERATIONS,MATERIALS,20/07/2023,11031904197,23.75,AMZNMKTPLACE AMAZON.CO
OXFORDSHIRE CC,"CHILDRENS, YOUNG PEOPLE AND FAMILIES","	LEAVING CARE CITY 1",CATERING PROVISIONS,20/07/2023,11031903713,10.16,LIDL GB OXFORD
OXFORDSHIRE CC,"CHILDRENS, YOUNG PEOPLE AND FAMILIES",CSS WANTAGE,MATERIALS,20/07/2023,11031903657,6.95,AMZNMKTPLACE AMAZON.CO
OXFORDSHIRE CC,"CHILDRENS, YOUNG PEOPLE AND FAMILIES",DIDCOT MOVE-ON HOME,CATERING PROVISIONS,20/07/2023,11031904493,46.9,SAINSBURYS SMKT
OXFORDSHIRE CC,"CHILDRENS, YOUNG PEOPLE AND FAMILIES","	LEAVING CARE SOUTH",CATERING PROVISIONS,20/07/2023,11031903803,7.5,SAINSBURYS S/MKTS
OXFORDSHIRE CC,"CHILDRENS, YOUNG PEOPLE AND FAMILIES","	LEAVING CARE SOUTH",OTHER TRANSPORT ARRANGEMENTS,20/07/2023,11031903969,8.6,M6 TOLL
OXFORDSHIRE CC,"CHILDRENS, YOUNG PEOPLE AND FAMILIES",PAUSE PROGRAMME,CATERING PROVISIONS,20/07/2023,11031904003,12.35,SAINSBURYS S/MKTS
OXFORDSHIRE CC,"CHILDRENS, YOUNG PEOPLE AND FAMILIES",CHILDREN IN CARE NON-STAFFING - SOUTH,MATERIALS,20/07/2023,11031904479,12,POUNDLAND LTD - 1880
OXFORDSHIRE CC,SOCIAL AND COMMUNITY SERVICES,LIB ICT SUPPRT&MAINT,MATERIALS,20/07/2023,11031904487,339.98,AMZNMKTPLACE
OXFORDSHIRE CC,"CHILDRENS, YOUNG PEOPLE AND FAMILIES",DIDCOT MOVE-ON HOME,CATERING PROVISIONS,20/07/2023,11031904495,54.75,SAINSBURYS SMKT
OXFORDSHIRE CC,"CHILDRENS, YOUNG PEOPLE AND FAMILIES","	LEAVING CARE SOUTH",VEHICLE FUEL,20/07/2023,11031903973,54.62,WELCOME BREAK
OXFORDSHIRE CC,ENVIRONMENT AND ECONOMY,HARD FM,PREMISES REPAIRS,20/07/2023,11031903991,16.8,B AND Q
OXFORDSHIRE CC,CORPORATE CORE,OPERATIONS,MATERIALS,20/07/2023,11031904201,20.28,AMZNMKTPLACE AMAZON.CO
OXFORDSHIRE CC,"CHILDRENS, YOUNG PEOPLE AND FAMILIES",CHILDREN IN CARE NON-STAFFING - SOUTH,PAYMENT TO GOVERNMENT DEPARTMENTS,20/07/2023,11031904473,34,DRIVING LICENCE WEB
OXFORDSHIRE CC,"CHILDRENS, YOUNG PEOPLE AND FAMILIES",CHILDREN IN CARE NON-STAFFING - SOUTH,CATERING PROVISIONS,20/07/2023,11031904481,8.3,WELCOME BREAK/WAITROSE
OXFORDSHIRE CC,SOCIAL AND COMMUNITY SERVICES,"	MTFC",CATERING PROVISIONS,20/07/2023,11031904489,12.4,CO-OP GROUP 310626
OXFORDSHIRE CC,"CHILDRENS, YOUNG PEOPLE AND FAMILIES","	LEAVING CARE SOUTH",VEHICLE FUEL,20/07/2023,11031903807,38.34,SAINSBURYS PETROL
OXFORDSHIRE CC,"CHILDRENS, YOUNG PEOPLE AND FAMILIES","	LEAVING CARE CITY 2",OTHER TRANSPORT ARRANGEMENTS,20/07/2023,11031904129,4.5,STGCOACH/CTYLINK
OXFORDSHIRE CC,CORPORATE CORE,OPERATIONS,MATERIALS,20/07/2023,11031904165,2.59,AMZNMKTPLACE AMAZON.CO
OXFORDSHIRE CC,"CHILDRENS, YOUNG PEOPLE AND FAMILIES","	LEAVING CARE CITY 1",OTHER EXPENSES,20/07/2023,11031903703,500,CURRYS DIDCOT
OXFORDSHIRE CC,"CHILDRENS, YOUNG PEOPLE AND FAMILIES","	LEAVING CARE SOUTH",OTHER EXPENSES,20/07/2023,11031904403,108.99,AMZNMKTPLACE
OXFORDSHIRE CC,"CHILDRENS, YOUNG PEOPLE AND FAMILIES",THAME E&A HOME,CATERING,20/07/2023,11031904417,57.3,SMARTS FISH & CHIP SHO
OXFORDSHIRE CC,SOCIAL AND COMMUNITY SERVICES,CSS - OXFORD,MATERIALS,20/07/2023,11031903761,14.63,PETS AT HOME LTD
OXFORDSHIRE CC,"CHILDRENS, YOUNG PEOPLE AND FAMILIES",40 THE MOORS,OTHER EXPENSES,20/07/2023,11031903797,44.99,JD SPORTS FASHION PLC
OXFORDSHIRE CC,CORPORATE CORE,,STATIONERY,20/07/2023,11031904461,10.93,LYRECO UK LTD
OXFORDSHIRE CC,"CHILDRENS, YOUNG PEOPLE AND FAMILIES",UASC 16&17,OTHER EXPENSES,20/07/2023,11031904469,28,WWW.THEKEY.CO.UK
OXFORDSHIRE CC,ENVIRONMENT AND ECONOMY,HARD FM,PREMISES REPAIRS,20/07/2023,11031903995,23.18,SCREWFIX OXFORD COWLEY
OXFORDSHIRE CC,"CHILDRENS, YOUNG PEOPLE AND FAMILIES",CSS WANTAGE,MATERIALS,20/07/2023,11031903653,6.95,AMZNMKTPLACE AMAZON.CO
OXFORDSHIRE CC,"CHILDRENS, YOUNG PEOPLE AND FAMILIES",FAMILY SOLUTIONS PLUS NON-STAFF - NORTH,MATERIALS,20/07/2023,11031904463,34.99,WWW.ARGOS.CO.UK
OXFORDSHIRE CC,"CHILDRENS, YOUNG PEOPLE AND FAMILIES",CHILDREN IN CARE NON-STAFFING - SOUTH,PAYMENT TO GOVERNMENT DEPARTMENTS,20/07/2023,11031904471,34,DRIVING LICENCE WEB
OXFORDSHIRE CC,"CHILDRENS, YOUNG PEOPLE AND FAMILIES",FAMILY SOLUTIONS PLUS NON-STAFF - NORTH,MATERIALS,20/07/2023,11031904115,14.99,WWW.ARGOS.CO.UK
OXFORDSHIRE CC,"CHILDRENS, YOUNG PEOPLE AND FAMILIES","	LEAVING CARE CITY 2",CLOTHING AND UNIFORMS,20/07/2023,11031904533,137.61,SHEIN.COM
OXFORDSHIRE CC,"CHILDRENS, YOUNG PEOPLE AND FAMILIES","	LEAVING CARE CITY 2",CATERING,20/07/2023,11031904537,6.75,COSTA COFFEE 43011357
OXFORDSHIRE CC,"CHILDRENS, YOUNG PEOPLE AND FAMILIES","	LEAVING CARE CITY 2",CATERING,20/07/2023,11031904539,5,COSTA COFFEE 43011357
OXFORDSHIRE CC,"CHILDRENS, YOUNG PEOPLE AND FAMILIES","BICESTER CC, LAUNTON RD",CATERING PROVISIONS,20/07/2023,11031904547,1.45,ICELAND
OXFORDSHIRE CC,"CHILDRENS, YOUNG PEOPLE AND FAMILIES","	LEAVING CARE SOUTH",OTHER TRANSPORT ARRANGEMENTS,20/07/2023,11031903961,8.6,M6 TOLL
OXFORDSHIRE CC,CORPORATE CORE,MUSIC UNALLOCABLE,VEHICLE FUEL,20/07/2023,11031904541,30.01,ASDA PETROL/UPT
OXFORDSHIRE CC,"CHILDRENS, YOUNG PEOPLE AND FAMILIES","	LEAVING CARE SOUTH",OTHER EXPENSES,20/07/2023,11031903947,327.95,WWW.ARGOS.CO.UK
OXFORDSHIRE CC,"CHILDRENS, YOUNG PEOPLE AND FAMILIES",CSS WALLINGFORD,CATERING PROVISIONS,20/07/2023,11031903585,6.25,WAITROSE 675
OXFORDSHIRE CC,CORPORATE CORE,OPERATIONS,MATERIALS,20/07/2023,11031904177,4.88,AMZNMKTPLACE AMAZON.CO
OXFORDSHIRE CC,CORPORATE CORE,OPERATIONS,MATERIALS,20/07/2023,11031904191,8.45,AMZNMKTPLACE AMAZON.CO
OXFORDSHIRE CC,SOCIAL AND COMMUNITY SERVICES,CSS WANTAGE,MATERIALS,20/07/2023,11031903573,21.99,AMZNMKTPLACE
OXFORDSHIRE CC,CORPORATE CORE,"MARKETING, COMMUNICATIONS & ENGAGEMENT","PUBLICITY, PROMOTIONS AND ADVERTISEMENT",20/07/2023,11031904499,500,FACEBK  L8TKNT79Z2
OXFORDSHIRE CC,CORPORATE CORE,"	LEGAL SERVICES",LEGAL COSTS,20/07/2023,11031904507,11,OXFORDSHIRE CC WEB1
OXFORDSHIRE CC,"CHILDRENS, YOUNG PEOPLE AND FAMILIES","	LEAVING CARE NORTH",FURNITURE,20/07/2023,11031904515,249,PYN BEDS CO UK
OXFORDSHIRE CC,"CHILDRENS, YOUNG PEOPLE AND FAMILIES",TRANSPORT COSTS,TRANSPORT TO SCHOOL,20/07/2023,11031903603,73,MULTIFLEET MINICABS
OXFORDSHIRE CC,"CHILDRENS, YOUNG PEOPLE AND FAMILIES",EYNSHAM,CATERING,20/07/2023,11031903621,8.13,SPAR EYNSHAM
OXFORDSHIRE CC,CORPORATE CORE,"MARKETING, COMMUNICATIONS & ENGAGEMENT","PUBLICITY, PROMOTIONS AND ADVERTISEMENT",20/07/2023,11031904501,15.42,SNAP INC SNAP SNAP ADS
OXFORDSHIRE CC,"CHILDRENS, YOUNG PEOPLE AND FAMILIES",DISABILITIES TEAM S,FURNITURE,20/07/2023,11031903717,164,IKEA LTD SHOP ONLINE
OXFORDSHIRE CC,"CHILDRENS, YOUNG PEOPLE AND FAMILIES",CHILDREN IN CARE NON-STAFFING - NORTH,CLOTHING AND UNIFORMS,20/07/2023,11031903757,134.97,SPORTSDIRECT.COM
OXFORDSHIRE CC,SOCIAL AND COMMUNITY SERVICES,CSS WALLINGFORD,CATERING PROVISIONS,20/07/2023,11031903627,6.2,WAITROSE 675
OXFORDSHIRE CC,SOCIAL AND COMMUNITY SERVICES,CSS - ABINGDON,CATERING PROVISIONS,20/07/2023,11031903645,7.8,TESCO STORES 6519
OXFORDSHIRE CC,SOCIAL AND COMMUNITY SERVICES,"	MUSEUMS COLLECTIONS",OTHER SERVICES,20/07/2023,11031904281,16.47,AMZNMKTPLACE
OXFORDSHIRE CC,"CHILDRENS, YOUNG PEOPLE AND FAMILIES","	LEAVING CARE CITY 1",OTHER EXPENSES,20/07/2023,11031903707,500,CURRYS DIDCOT
OXFORDSHIRE CC,"CHILDRENS, YOUNG PEOPLE AND FAMILIES",MARKETING,OTHER SERVICES,20/07/2023,11031903613,18.72,AMZNMKTPLACE AMAZON.CO
OXFORDSHIRE CC,"CHILDRENS, YOUNG PEOPLE AND FAMILIES","	LEAVING CARE CITY 1",MATERIALS,20/07/2023,11031903709,17,CURRYS DIDCOT
OXFORDSHIRE CC,"CHILDRENS, YOUNG PEOPLE AND FAMILIES",CHILDREN IN CARE NON-STAFFING - SOUTH,CATERING PROVISIONS,20/07/2023,11031904483,9.35,CANDY WORLD
OXFORDSHIRE CC,"CHILDRENS, YOUNG PEOPLE AND FAMILIES","	LEAVING CARE SOUTH",OTHER TRANSPORT ARRANGEMENTS,20/07/2023,11031903965,5.8,M6 TOLL
OXFORDSHIRE CC,ENVIRONMENT AND ECONOMY,HARD FM,PREMISES REPAIRS,20/07/2023,11031903999,10.79,WWW.SCREWFIX.COM
OXFORDSHIRE CC,"CHILDRENS, YOUNG PEOPLE AND FAMILIES",FSP NON-STAFFING - CENTRAL,PAYMENT TO GOVERNMENT DEPARTMENTS,20/07/2023,11031904393,22,OXFORDSHIRE CC WEB1
OXFORDSHIRE CC,"CHILDRENS, YOUNG PEOPLE AND FAMILIES","	LEAVING CARE CITY 2",CATERING,20/07/2023,11031904133,14.99,KFC
OXFORDSHIRE CC,CORPORATE CORE,OPERATIONS,MATERIALS,20/07/2023,11031904181,7.94,AMZNMKTPLACE AMAZON.CO
OXFORDSHIRE CC,CORPORATE CORE,MOTOR FLEET,MOTOR IF FEES,20/07/2023,11031904407,48.3,SIDNEY H HOOPER & COMP
OXFORDSHIRE CC,SOCIAL AND COMMUNITY SERVICES,CSS WITNEY,CATERING PROVISIONS,20/07/2023,11031904119,19.77,MARKS&SPENCER PLC
OXFORDSHIRE CC,"CHILDRENS, YOUNG PEOPLE AND FAMILIES",SI EQUIPMENT,DISABILITY AIDS AND EQUIPMENT,20/07/2023,11031904159,17.98,AMZNMKTPLACE
OXFORDSHIRE CC,CORPORATE CORE,OPERATIONS,MATERIALS,20/07/2023,11031904195,17.31,AMZNMKTPLACE AMAZON.CO
OXFORDSHIRE CC,"CHILDRENS, YOUNG PEOPLE AND FAMILIES",CSS WALLINGFORD,MATERIALS,20/07/2023,11031903577,7.3,AMZNMKTPLACE
OXFORDSHIRE CC,"CHILDRENS, YOUNG PEOPLE AND FAMILIES","	LEAVING CARE SOUTH",OTHER EXPENSES,20/07/2023,11031904397,109.95,AMZNMKTPLACE
OXFORDSHIRE CC,CORPORATE CORE,MOTOR FLEET,MOTOR IF FEES,20/07/2023,11031904409,48.3,SIDNEY H HOOPER & COMP
OXFORDSHIRE CC,CORPORATE CORE,TRANSITION TEAM,PAYMENT TO GOVERNMENT DEPARTMENTS,20/07/2023,11031903771,"2,199.00",C2E860101013I UKVI
OXFORDSHIRE CC,"CHILDRENS, YOUNG PEOPLE AND FAMILIES","	LEAVING CARE CITY 2",MATERIALS,20/07/2023,11031904125,1.99,CASTLE NEWS
OXFORDSHIRE CC,CORPORATE CORE,OPERATIONS,MATERIALS,20/07/2023,11031904169,11.99,AMZNMKTPLACE AMAZON.CO
OXFORDSHIRE CC,CORPORATE CORE,OPERATIONS,MATERIALS,20/07/2023,11031904185,5.9,AMZNMKTPLACE AMAZON.CO
OXFORDSHIRE CC,"CHILDRENS, YOUNG PEOPLE AND FAMILIES",CSS WALLINGFORD,MATERIALS,20/07/2023,11031903581,15,AMZNMKTPLACE
OXFORDSHIRE CC,"CHILDRENS, YOUNG PEOPLE AND FAMILIES",FSP STAFFING � CENTRAL,CATERING PROVISIONS,20/07/2023,11031903599,9.28,TESCO STORES 2990
OXFORDSHIRE CC,"CHILDRENS, YOUNG PEOPLE AND FAMILIES","	OCCG GRANT",MATERIALS,20/07/2023,11031903699,-11.99,AMZ FINCHLEY ENTERPRIS
OXFORDSHIRE CC,"CHILDRENS, YOUNG PEOPLE AND FAMILIES","	LEAVING CARE SOUTH",MATERIALS,20/07/2023,11031904399,39.99,AMZNMKTPLACE
OXFORDSHIRE CC,"CHILDRENS, YOUNG PEOPLE AND FAMILIES",TRANSPORT COSTS,TRANSPORT TO SCHOOL,20/07/2023,11031903607,72.7,MULTIFLEET MINICABS
OXFORDSHIRE CC,ENVIRONMENT AND ECONOMY,DEPARTMENTAL MANAGE,IT SOFTWARE,20/07/2023,11031904503,34.8,PADDLE.NET PIKTOCHART
OXFORDSHIRE CC,CORPORATE CORE,OPERATIONS,MATERIALS,20/07/2023,11031904163,4.89,AMZNMKTPLACE AMAZON.CO
OXFORDSHIRE CC,CORPORATE CORE,OPERATIONS,MATERIALS,20/07/2023,11031904173,4.99,AMZNMKTPLACE AMAZON.CO
OXFORDSHIRE CC,CORPORATE CORE,OPERATIONS,MATERIALS,20/07/2023,11031904187,6.65,AMZNMKTPLACE AMAZON.CO
OXFORDSHIRE CC,CORPORATE CORE,"MARKETING, COMMUNICATIONS & ENGAGEMENT",MATERIALS,20/07/2023,11031904331,24.98,LINKEDIN PRE 924911378
OXFORDSHIRE CC,CORPORATE CORE,MOTOR FLEET,MOTOR IF FEES,20/07/2023,11031904413,48.3,SIDNEY H HOOPER & COMP
OXFORDSHIRE CC,"CHILDRENS, YOUNG PEOPLE AND FAMILIES",NRPF & HOMELESSNESS,HIRE OF ACCOMMODATION AND FACILITIES,20/07/2023,11031904497,90.76,TRAVELODGE
OXFORDSHIRE CC,"CHILDRENS, YOUNG PEOPLE AND FAMILIES",EYNSHAM,CLOTHING AND UNIFORMS,20/07/2023,11031904505,10,PRIMARK 440
OXFORDSHIRE CC,"CHILDRENS, YOUNG PEOPLE AND FAMILIES",FAMILY SOLUTIONS PLUS NON-STAFF � SOUTH,HIRE OF ACCOMMODATION AND FACILITIES,20/07/2023,11031904513,124.42,TRAVELODGE
OXFORDSHIRE CC,SOCIAL AND COMMUNITY SERVICES,"	MUSEUMS COLLECTIONS",MATERIALS,20/07/2023,11031904267,6.97,AMZNMKTPLACE
OXFORDSHIRE CC,SOCIAL AND COMMUNITY SERVICES,"	MUSEUMS COLLECTIONS",OTHER SERVICES,20/07/2023,11031904287,3.99,AMZNMKTPLACE
OXFORDSHIRE CC,SOCIAL AND COMMUNITY SERVICES,COMMUNITY PARTNERSHIP TEAM,CATERING PROVISIONS,19/07/2023,11026639995,5.6,TESCO STORES 2413
OXFORDSHIRE CC,"CHILDRENS, YOUNG PEOPLE AND FAMILIES",EYNSHAM,CATERING PROVISIONS,19/07/2023,11026641347,163.69,TESCO STORES 2008
OXFORDSHIRE CC,"CHILDRENS, YOUNG PEOPLE AND FAMILIES",PAUSE PROGRAMME,CATERING PROVISIONS,19/07/2023,11026640273,3.55,ASDA STORES 5123
OXFORDSHIRE CC,"CHILDRENS, YOUNG PEOPLE AND FAMILIES","	RIVERSIDE CENTRE",VEHICLE EQUIPMENT AND EXPENSES - OTHER,19/07/2023,11026641401,448.41,TURNEY GROUP
OXFORDSHIRE CC,ENTERPRISEVC,,CAR LEASING - PRIVATE RENTALS,19/07/2023,11026641421,160.49,ENTERPRISE RENT-A-CAR
OXFORDSHIRE CC,"CHILDRENS, YOUNG PEOPLE AND FAMILIES",FAMILY SOLUTIONS PLUS NON-STAFF - NORTH,PAYMENTS TO TRANSPORT OPERATORS,19/07/2023,11026640459,7.8,WWW.GWR.COM
OXFORDSHIRE CC,"CHILDRENS, YOUNG PEOPLE AND FAMILIES","	LEAVING CARE SOUTH",OTHER TRANSPORT ARRANGEMENTS,19/07/2023,11026640119,20,BCP COUNCIL
OXFORDSHIRE CC,"CHILDRENS, YOUNG PEOPLE AND FAMILIES","	LOOKED AFTER NORTH",OTHER TRANSPORT ARRANGEMENTS,19/07/2023,11026641565,2,TT2 LTD
OXFORDSHIRE CC,SOCIAL AND COMMUNITY SERVICES,"	MTFC",CATERING PROVISIONS,19/07/2023,11026641605,2.39,GG ORIENTAL SNACK SHAC
OXFORDSHIRE CC,"CHILDRENS, YOUNG PEOPLE AND FAMILIES",NRPF & HOMELESSNESS,HIRE OF ACCOMMODATION AND FACILITIES,19/07/2023,11026641645,179.5,TRAVELODGE
OXFORDSHIRE CC,CORPORATE CORE,THAME LIBRARY,CATERING PROVISIONS,19/07/2023,11026641385,5.6,SAINSBURYS S/MKTS
OXFORDSHIRE CC,ENTERPRISEVC,,CAR LEASING - PRIVATE RENTALS,19/07/2023,11026641407,38.52,ENTERPRISE RENT-A-CAR
OXFORDSHIRE CC,"CHILDRENS, YOUNG PEOPLE AND FAMILIES","	RESIDENTIAL STRATEGY",EDUCATIONAL AND VOCATIONAL TRAINING ,19/07/2023,11026640383,60,PROTRAININGS
OXFORDSHIRE CC,ENTERPRISEVC,,CAR LEASING - PRIVATE RENTALS,19/07/2023,11026641451,227.18,ENTERPRISE RENT-A-CAR
OXFORDSHIRE CC,ENTERPRISEVC,,CAR LEASING - PRIVATE RENTALS,19/07/2023,11026641455,83.69,ENTERPRISE RENT-A-CAR
OXFORDSHIRE CC,SOCIAL AND COMMUNITY SERVICES,"	SHARED LIVES",CATERING PROVISIONS,19/07/2023,11026641355,1.3,TESCO STORES 6519
OXFORDSHIRE CC,"CHILDRENS, YOUNG PEOPLE AND FAMILIES","	LOOKED AFTER NORTH",VEHICLE FUEL,19/07/2023,11026641569,15.63,MORRISON PETROL
OXFORDSHIRE CC,"CHILDRENS, YOUNG PEOPLE AND FAMILIES",SOUTHWARK - SECT 17,MATERIALS,19/07/2023,11026640443,17.62,AMZNMKTPLACE
OXFORDSHIRE CC,"CHILDRENS, YOUNG PEOPLE AND FAMILIES","	LOOKED AFTER NORTH",CLOTHING AND UNIFORMS,19/07/2023,11026640319,19.99,NEW LOOK
OXFORDSHIRE CC,"CHILDRENS, YOUNG PEOPLE AND FAMILIES","	LEAVING CARE CITY 1",PAYMENTS TO TRANSPORT OPERATORS,19/07/2023,11026640375,30.19,TRAINLINE
OXFORDSHIRE CC,ENTERPRISEVC,,CAR LEASING - PRIVATE RENTALS,19/07/2023,11026641411,38.75,ENTERPRISE RENT-A-CAR
OXFORDSHIRE CC,ENTERPRISEVC,,CAR LEASING - PRIVATE RENTALS,19/07/2023,11026641429,77.98,ENTERPRISE RENT-A-CAR
OXFORDSHIRE CC,ENTERPRISEVC,,CAR LEASING - PRIVATE RENTALS,19/07/2023,11026641435,41.98,ENTERPRISE RENT-A-CAR
OXFORDSHIRE CC,"CHILDRENS, YOUNG PEOPLE AND FAMILIES",FAMILY SOLUTIONS PLUS NON-STAFF - NORTH,PAYMENTS TO TRANSPORT OPERATORS,19/07/2023,11026640465,47.2,WWW.GWR.COM
OXFORDSHIRE CC,SOCIAL AND COMMUNITY SERVICES,CSS - OXFORD,CATERING PROVISIONS,19/07/2023,11026640527,27.71,ALDI STORES 775-142
OXFORDSHIRE CC,SOCIAL AND COMMUNITY SERVICES,HOLTON SITE,MATERIALS,19/07/2023,11026639893,80.49,AMZNMKTPLACE AMAZON.CO
OXFORDSHIRE CC,"CHILDRENS, YOUNG PEOPLE AND FAMILIES","	LEAVING CARE CITY 1",RESIDENTIAL ACTIVITIES,19/07/2023,11026639793,3.68,BOURNEMOUTH
OXFORDSHIRE CC,SOCIAL AND COMMUNITY SERVICES,CSS WANTAGE,ENTERTAINMENT EXPENSES,19/07/2023,11026641115,14.48,HOLLYWOOD BOWL
OXFORDSHIRE CC,SOCIAL AND COMMUNITY SERVICES,CSS WANTAGE,MATERIALS,19/07/2023,11026641131,7.83,AMZNMKTPLACE
OXFORDSHIRE CC,"CHILDRENS, YOUNG PEOPLE AND FAMILIES","	LEAVING CARE SOUTH",OTHER EXPENSES,19/07/2023,11026641343,73.94,AMZNMKTPLACE
OXFORDSHIRE CC,ENVIRONMENT AND ECONOMY,"	SAMUELSON HOUSE",CATERING PROVISIONS,19/07/2023,11026640333,-21.42,MILK AND MORE
OXFORDSHIRE CC,CORPORATE CORE,"MARKETING, COMMUNICATIONS & ENGAGEMENT","PUBLICITY, PROMOTIONS AND ADVERTISEMENT",19/07/2023,11026641657,492,TIKTOK ADS
OXFORDSHIRE CC,SOCIAL AND COMMUNITY SERVICES,CHILDREN IN CARE NON-STAFFING - NORTH,OTHER TRANSPORT ARRANGEMENTS,19/07/2023,11026640183,2.2,CHERWELL
OXFORDSHIRE CC,"CHILDRENS, YOUNG PEOPLE AND FAMILIES",CHILDREN IN CARE NON-STAFFING - SOUTH,PAYMENT TO GOVERNMENT DEPARTMENTS,19/07/2023,11026641581,53.5,HM PASSPORT OFFICE
OXFORDSHIRE CC,CORPORATE CORE,"MARKETING, COMMUNICATIONS & ENGAGEMENT","PUBLICITY, PROMOTIONS AND ADVERTISEMENT",19/07/2023,11026641661,15.16,SNAP INC SNAP SNAP ADS
OXFORDSHIRE CC,ENVIRONMENT AND ECONOMY,"	COUNTY PRINT FINSHRS",CATERING PROVISIONS,19/07/2023,11026639755,160.69,WAITROSE.COM
OXFORDSHIRE CC,"CHILDRENS, YOUNG PEOPLE AND FAMILIES","	LEAVING CARE CITY 1",RESIDENTIAL ACTIVITIES,19/07/2023,11026639803,16,BH LIVE
OXFORDSHIRE CC,"CHILDRENS, YOUNG PEOPLE AND FAMILIES",FAMILY SOLUTIONS PLUS NON-STAFF � SOUTH,POSTAGE AND DELIVERY,19/07/2023,11026640617,6.85,POST OFFICE COUNTER
OXFORDSHIRE CC,"CHILDRENS, YOUNG PEOPLE AND FAMILIES",FIELDWORK UASC,OTHER TRANSPORT ARRANGEMENTS,19/07/2023,11026641783,4.5,STGCOACH/CTYLINK
OXFORDSHIRE CC,ENVIRONMENT AND ECONOMY,HARD FM,PREMISES REPAIRS,19/07/2023,11026639637,70.01,WICKES OXFORD
OXFORDSHIRE CC,"CHILDRENS, YOUNG PEOPLE AND FAMILIES","	LOOKED AFTER NORTH",CLOTHING AND UNIFORMS,19/07/2023,11026640311,55.18,NEW LOOK
OXFORDSHIRE CC,ENTERPRISEVC,,CAR LEASING - PRIVATE RENTALS,19/07/2023,11026641447,38.52,ENTERPRISE RENT-A-CAR
OXFORDSHIRE CC,"CHILDRENS, YOUNG PEOPLE AND FAMILIES",FAMILY SOLUTIONS PLUS NON-STAFF - NORTH,MATERIALS,19/07/2023,11026641467,138.95,WWW.ARGOS.CO.UK
OXFORDSHIRE CC,"CHILDRENS, YOUNG PEOPLE AND FAMILIES",40 THE MOORS,OTHER EXPENSES,19/07/2023,11026641701,2,SAINSBURYS S/MKTS
OXFORDSHIRE CC,"CHILDRENS, YOUNG PEOPLE AND FAMILIES",EYNSHAM,OTHER TRANSPORT ARRANGEMENTS,19/07/2023,11026641719,8.2,WESTGATE OXFORD CAR PA
OXFORDSHIRE CC,"CHILDRENS, YOUNG PEOPLE AND FAMILIES",EYNSHAM,CATERING,19/07/2023,11026641759,10.4,KASPA'S DESSERTS
OXFORDSHIRE CC,ENVIRONMENT AND ECONOMY,HARD FM,PREMISES REPAIRS,19/07/2023,11026639653,16.15,B & Q 1176
OXFORDSHIRE CC,SOCIAL AND COMMUNITY SERVICES,CSS WANTAGE,CATERING PROVISIONS,19/07/2023,11026641119,174.49,ASDA GROCERIES ONLINE
OXFORDSHIRE CC,SOCIAL AND COMMUNITY SERVICES,CSS WANTAGE,CATERING PROVISIONS,19/07/2023,11026641137,-10.09,ASDA GROCERIES ONLINE
OXFORDSHIRE CC,CORPORATE CORE,"	PERSONNEL",PAYMENT TO GOVERNMENT DEPARTMENTS,19/07/2023,11026640019,"1,199.00",C2E860000337A UKVI
OXFORDSHIRE CC,"CHILDRENS, YOUNG PEOPLE AND FAMILIES",40 THE MOORS,CATERING PROVISIONS,19/07/2023,11026640051,274.96,SAINSBURYS.CO.UK
OXFORDSHIRE CC,"CHILDRENS, YOUNG PEOPLE AND FAMILIES",0-5 STDS & PROGRESS,SUBSCRIPTIONS,19/07/2023,11026640325,149,MAGSUBCRIPTIONS COM
OXFORDSHIRE CC,ENTERPRISEVC,,CAR LEASING - PRIVATE RENTALS,19/07/2023,11026641415,122.08,ENTERPRISE RENT-A-CAR
OXFORDSHIRE CC,"CHILDRENS, YOUNG PEOPLE AND FAMILIES",EYNSHAM,ENTERTAINMENT EXPENSES,19/07/2023,11026641723,6,MILLERS ENTERTAINMENT
OXFORDSHIRE CC,CORPORATE CORE,ICT OPERATIONS & MAI,MATERIALS,19/07/2023,11026641739,23.99,AMZNMKTPLACE AMAZON.CO
OXFORDSHIRE CC,"CHILDRENS, YOUNG PEOPLE AND FAMILIES",EYNSHAM,VEHICLE FUEL,19/07/2023,11026641763,1.75,SAINSBURYS PETROL
OXFORDSHIRE CC,"CHILDRENS, YOUNG PEOPLE AND FAMILIES","	LEAVING CARE NORTH",CATERING PROVISIONS,19/07/2023,11026640195,9.78,SAINSBURY'S S/MKT
OXFORDSHIRE CC,SOCIAL AND COMMUNITY SERVICES,CSS - OXFORD,CATERING PROVISIONS,19/07/2023,11026640533,6.72,ALDI STORES 775-142
OXFORDSHIRE CC,CORPORATE CORE,SCHOOLS FM CATERING AREA 4,MATERIALS,19/07/2023,11026640563,23.89,AMZNMKTPLACE
OXFORDSHIRE CC,ENVIRONMENT AND ECONOMY,"	COUNTY PRINT FINSHRS",MATERIALS,19/07/2023,11026639763,281,CURRYS ONLINE
OXFORDSHIRE CC,"CHILDRENS, YOUNG PEOPLE AND FAMILIES","	LEAVING CARE CITY 1",RESIDENTIAL ACTIVITIES,19/07/2023,11026639813,6.65,SAINSBURYS S/MKTS
OXFORDSHIRE CC,SOCIAL AND COMMUNITY SERVICES,CSS WANTAGE,ENTERTAINMENT EXPENSES,19/07/2023,11026641107,14.48,HOLLYWOOD BOWL
OXFORDSHIRE CC,"CHILDRENS, YOUNG PEOPLE AND FAMILIES","	LOOKED AFTER NORTH",CATERING,19/07/2023,11026640305,4.1,GREGGS PLC
OXFORDSHIRE CC,SOCIAL AND COMMUNITY SERVICES,"	EMERGENCY DUTY TEAM",HIRE OF ACCOMMODATION AND FACILITIES,19/07/2023,11026641169,465.55,HILTON GARDEN INN ABIN
OXFORDSHIRE CC,"CHILDRENS, YOUNG PEOPLE AND FAMILIES","	LEAVING CARE CITY 1",RESIDENTIAL ACTIVITIES,19/07/2023,11026639783,42.82,BOURNEMOUTH
OXFORDSHIRE CC,"CHILDRENS, YOUNG PEOPLE AND FAMILIES",FAMILY SOLUTIONS PLUS NON-STAFF - NORTH,"SUPPLIES, STATIONERY AND MATERIALS",19/07/2023,11026639827,44.76,EB  FOOTBALL SUMMER CA
OXFORDSHIRE CC,SOCIAL AND COMMUNITY SERVICES,CSS WANTAGE,CATERING PROVISIONS,19/07/2023,11026641127,11.91,SAINSBURYS S/MKTS
OXFORDSHIRE CC,"CHILDRENS, YOUNG PEOPLE AND FAMILIES",40 THE MOORS,CATERING,19/07/2023,11026641705,4.75,SAINSBURYS S/MKTS
OXFORDSHIRE CC,"CHILDRENS, YOUNG PEOPLE AND FAMILIES",FAMILY SOLUTIONS PLUS NON-STAFF � SOUTH,HIRE OF ACCOMMODATION AND FACILITIES,19/07/2023,11026641753,552.76,TRAVELODGE
OXFORDSHIRE CC,"CHILDRENS, YOUNG PEOPLE AND FAMILIES",EYNSHAM,ENTERTAINMENT EXPENSES,19/07/2023,11026641773,23.9,HOLLYWOOD BOWL
OXFORDSHIRE CC,"CHILDRENS, YOUNG PEOPLE AND FAMILIES","	LEAVING CARE SOUTH",HOSPITALITY EXPENSES,19/07/2023,11026640169,12.75,PCS PASTY
OXFORDSHIRE CC,"CHILDRENS, YOUNG PEOPLE AND FAMILIES","	LEAVING CARE SOUTH",PAYMENT TO GOVERNMENT DEPARTMENTS,19/07/2023,11026640147,9,SEAFRONT CATERING
OXFORDSHIRE CC,"CHILDRENS, YOUNG PEOPLE AND FAMILIES","	LEAVING CARE SOUTH",CATERING PROVISIONS,19/07/2023,11026640155,5.75,TESCO STORES 2994
OXFORDSHIRE CC,ENTERPRISEVC,,CAR LEASING - PRIVATE RENTALS,19/07/2023,11026641427,149.12,ENTERPRISE RENT-A-CAR
OXFORDSHIRE CC,ENVIRONMENT AND ECONOMY,HARD FM,PREMISES REPAIRS,19/07/2023,11026639663,-69.57,B & Q 1176
OXFORDSHIRE CC,"CHILDRENS, YOUNG PEOPLE AND FAMILIES","	LEAVING CARE SOUTH",PAYMENT TO GOVERNMENT DEPARTMENTS,19/07/2023,11026640129,15.55,SEAFRONT CATERING
OXFORDSHIRE CC,"CHILDRENS, YOUNG PEOPLE AND FAMILIES","	LEAVING CARE SOUTH",PAYMENT TO GOVERNMENT DEPARTMENTS,19/07/2023,11026640137,8.9,SEAFRONT CATERING
OXFORDSHIRE CC,"CHILDRENS, YOUNG PEOPLE AND FAMILIES","	LEAVING CARE CITY 1",CATERING,19/07/2023,11026640379,28.99,MCDONALDS
OXFORDSHIRE CC,"CHILDRENS, YOUNG PEOPLE AND FAMILIES",EYNSHAM,CATERING,19/07/2023,11026641769,21.29,MCDONALDS
OXFORDSHIRE CC,"CHILDRENS, YOUNG PEOPLE AND FAMILIES",PAUSE PROGRAMME,CATERING PROVISIONS,19/07/2023,11026640633,2.28,ASDA STORES 5123
OXFORDSHIRE CC,"CHILDRENS, YOUNG PEOPLE AND FAMILIES","	LEAVING CARE NORTH",CATERING,19/07/2023,11026641795,67,ZETTLE_ DIKACHI HOLDIN
OXFORDSHIRE CC,ENVIRONMENT AND ECONOMY,HARD FM,PREMISES REPAIRS,19/07/2023,11026639621,106.49,WICKES OXFORD
OXFORDSHIRE CC,ENVIRONMENT AND ECONOMY,HARD FM,PREMISES REPAIRS,19/07/2023,11026639677,37.05,B & Q 1062
OXFORDSHIRE CC,SOCIAL AND COMMUNITY SERVICES,CSS WANTAGE,ENTERTAINMENT EXPENSES,19/07/2023,11026641103,6.52,HOLLYWOOD BOWL
OXFORDSHIRE CC,SOCIAL AND COMMUNITY SERVICES,CSS WANTAGE,CATERING PROVISIONS,19/07/2023,11026641123,11.65,ASDA GROCERIES ONLINE
OXFORDSHIRE CC,"CHILDRENS, YOUNG PEOPLE AND FAMILIES","	LEAVING CARE SOUTH",CATERING,19/07/2023,11026640177,19.47,MCDONALDS
OXFORDSHIRE CC,ENTERPRISEVC,,CAR LEASING - PRIVATE RENTALS,19/07/2023,11026641441,38.06,ENTERPRISE RENT-A-CAR
OXFORDSHIRE CC,ENTERPRISEVC,,CAR LEASING - PRIVATE RENTALS,19/07/2023,11026641459,141.01,ENTERPRISE RENT-A-CAR
OXFORDSHIRE CC,"CHILDRENS, YOUNG PEOPLE AND FAMILIES",40 THE MOORS,MATERIALS,19/07/2023,11026641697,33,ARGOS KIDLINGTON INSID
OXFORDSHIRE CC,"CHILDRENS, YOUNG PEOPLE AND FAMILIES",EYNSHAM,MATERIALS,19/07/2023,11026641715,5,LUSH UK
OXFORDSHIRE CC,ENVIRONMENT AND ECONOMY,HARD FM,PREMISES REPAIRS,19/07/2023,11026640607,38,WICKES OXFORD
OXFORDSHIRE CC,CORPORATE CORE,INCOME TEAM,PAYMENT TO GOVERNMENT DEPARTMENTS,19/07/2023,11026640643,11,NORTH NORTHAMPTONSHIRE
OXFORDSHIRE CC,"CHILDRENS, YOUNG PEOPLE AND FAMILIES","	MUSIC UNALLOCABLE",CATERING PROVISIONS,19/07/2023,11026641777,367.25,BUNNYS BAKERY
OXFORDSHIRE CC,"CHILDRENS, YOUNG PEOPLE AND FAMILIES","	LEAVING CARE NORTH",CATERING PROVISIONS,19/07/2023,11026641799,10.85,WM MORRISONS STORE
OXFORDSHIRE CC,SOCIAL AND COMMUNITY SERVICES,CSS - BANBURY,MATERIALS,19/07/2023,11026641861,8,AMZNMKTPLACE
OXFORDSHIRE CC,"CHILDRENS, YOUNG PEOPLE AND FAMILIES","	LEAVING CARE SOUTH",OTHER TRANSPORT ARRANGEMENTS,19/07/2023,11026640163,16,BH LIVE
OXFORDSHIRE CC,"CHILDRENS, YOUNG PEOPLE AND FAMILIES","	LEAVING CARE SOUTH",MATERIALS,19/07/2023,11026641339,225.95,AMZNMKTPLACE
OXFORDSHIRE CC,CORPORATE CORE,LIBRARY COLLECTIONS,"BOOKS, DVDS AND CDS",19/07/2023,11026640349,412.64,OVERDRIVE DIST
OXFORDSHIRE CC,"CHILDRENS, YOUNG PEOPLE AND FAMILIES",CSS WALLINGFORD,CATERING PROVISIONS,19/07/2023,11026639249,11.8,WAITROSE 675
OXFORDSHIRE CC,"CHILDRENS, YOUNG PEOPLE AND FAMILIES",FSP NON-STAFFING - CENTRAL,OTHER TRANSPORT ARRANGEMENTS,19/07/2023,11026641917,55,SUMUP   ANKUSH PASSI -
OXFORDSHIRE CC,"CHILDRENS, YOUNG PEOPLE AND FAMILIES","	OCCG GRANT",OTHER EXPENSES,19/07/2023,11026641935,204.96,WWW.GAME.CO.UK
OXFORDSHIRE CC,SOCIAL AND COMMUNITY SERVICES,"	MUSEUMS COLLECTIONS",OTHER SERVICES,19/07/2023,11026641013,115,AMZNMKTPLACE
OXFORDSHIRE CC,"CHILDRENS, YOUNG PEOPLE AND FAMILIES","DIDCOT CC, PARK ROAD",CATERING PROVISIONS,19/07/2023,11026640625,2,CO-OPERATIVE FUEL
OXFORDSHIRE CC,"CHILDRENS, YOUNG PEOPLE AND FAMILIES","	LEAVING CARE NORTH",OTHER TRANSPORT ARRANGEMENTS,19/07/2023,11026641789,16,BH LIVE
OXFORDSHIRE CC,"CHILDRENS, YOUNG PEOPLE AND FAMILIES","	LEAVING CARE CITY 2",CATERING PROVISIONS,19/07/2023,11026640741,6,TESCO STORES 2994
OXFORDSHIRE CC,SOCIAL AND COMMUNITY SERVICES,HOMELESS PEOPLE,CATERING,19/07/2023,11026640753,23.98,DELIVEROO
OXFORDSHIRE CC,"CHILDRENS, YOUNG PEOPLE AND FAMILIES",DIDCOT MOVE-ON HOME,CATERING,19/07/2023,11026640679,6.3,MCDONALDS
OXFORDSHIRE CC,"CHILDRENS, YOUNG PEOPLE AND FAMILIES","	LEAVING CARE CITY 2",PAYMENT TO GOVERNMENT DEPARTMENTS,19/07/2023,11026640697,14,SEAFRONT CATERING
OXFORDSHIRE CC,ENVIRONMENT AND ECONOMY,"	ROW MAINT",EQUIPMENT,19/07/2023,11026640729,15.2,AMAZON.CO.UK K89XF8FI5
OXFORDSHIRE CC,SOCIAL AND COMMUNITY SERVICES,CSS - OXFORD,VEHICLES AND PLANT - REPAIRS AND MAIN,19/07/2023,11026640935,32.39,LSW
OXFORDSHIRE CC,"CHILDRENS, YOUNG PEOPLE AND FAMILIES",CSS - ABINGDON,CATERING PROVISIONS,19/07/2023,11026641953,25,TESCO STORES 2008
OXFORDSHIRE CC,SOCIAL AND COMMUNITY SERVICES,CSS WITNEY,HARDWARE AND CROCKERY,19/07/2023,11026639205,45,B&Q LTD
OXFORDSHIRE CC,"CHILDRENS, YOUNG PEOPLE AND FAMILIES",FSP NON-STAFFING - CENTRAL,OTHER TRANSPORT ARRANGEMENTS,19/07/2023,11026641921,55,SUMUP   MALIK TAXIS
OXFORDSHIRE CC,SOCIAL AND COMMUNITY SERVICES,"	MUSEUMS COLLECTIONS",OTHER SERVICES,19/07/2023,11026641007,700.8,HSD ONLINE
OXFORDSHIRE CC,"CHILDRENS, YOUNG PEOPLE AND FAMILIES",CSS WALLINGFORD,MATERIALS,19/07/2023,11026639241,10.97,AMZNMKTPLACE
OXFORDSHIRE CC,"CHILDRENS, YOUNG PEOPLE AND FAMILIES",CHILDREN IN CARE NON-STAFFING - SOUTH,HIRED AND CONTRACTED SERVICES,19/07/2023,11026639333,-21.1,WWW.BIGYELLOW.CO.UK
OXFORDSHIRE CC,"CHILDRENS, YOUNG PEOPLE AND FAMILIES",EYNSHAM,CATERING,19/07/2023,11026639379,11.45,CO-OPERATIVE FOOD
OXFORDSHIRE CC,SOCIAL AND COMMUNITY SERVICES,"	MUSEUMS COLLECTIONS",OTHER SERVICES,19/07/2023,11026641001,31.64,AMZNMKTPLACE
OXFORDSHIRE CC,SOCIAL AND COMMUNITY SERVICES,CSS WITNEY,MATERIALS,19/07/2023,11026641085,21.99,AMZNMKTPLACE
OXFORDSHIRE CC,SOCIAL AND COMMUNITY SERVICES,CSS - ABINGDON,CATERING PROVISIONS,19/07/2023,11026639443,24.7,TESCO STORES 2008
OXFORDSHIRE CC,"CHILDRENS, YOUNG PEOPLE AND FAMILIES","	LEAVING CARE CITY 2",CATERING,19/07/2023,11026640685,41.43,BOURNEMOUTH
OXFORDSHIRE CC,"CHILDRENS, YOUNG PEOPLE AND FAMILIES","	LEAVING CARE CITY 2",OTHER TRANSPORT ARRANGEMENTS,19/07/2023,11026640699,16,BH LIVE
OXFORDSHIRE CC,ENVIRONMENT AND ECONOMY,"	ROW MAINT",EQUIPMENT,19/07/2023,11026640735,238.5,WINCHESTER GARDEN MACH
OXFORDSHIRE CC,"CHILDRENS, YOUNG PEOPLE AND FAMILIES",TRANSPORT COSTS,TRANSPORT TO SCHOOL,19/07/2023,11026639309,73,MULTIFLEET MINICABS
OXFORDSHIRE CC,"CHILDRENS, YOUNG PEOPLE AND FAMILIES",MARKETING,OTHER SERVICES,19/07/2023,11026639349,59.48,AMZNMKTPLACE AMAZON.CO
OXFORDSHIRE CC,"CHILDRENS, YOUNG PEOPLE AND FAMILIES",EYNSHAM,CLOTHING AND UNIFORMS,19/07/2023,11026639387,17.5,TESCO STORES 2008
OXFORDSHIRE CC,"CHILDRENS, YOUNG PEOPLE AND FAMILIES",CSS WALLINGFORD,MATERIALS,19/07/2023,11026639227,11.75,AMZNMKTPLACE
OXFORDSHIRE CC,"CHILDRENS, YOUNG PEOPLE AND FAMILIES",UASC 16&17,REGISTRATION AND INSPECTION FEES,19/07/2023,11026639515,27.4,POST OFFICE COUNTER
OXFORDSHIRE CC,"CHILDRENS, YOUNG PEOPLE AND FAMILIES",CHILDREN IN CARE NON-STAFFING - SOUTH,OTHER TRANSPORT ARRANGEMENTS,19/07/2023,11026639315,40,WWW.001ROYALCABS.CO.UK
OXFORDSHIRE CC,"CHILDRENS, YOUNG PEOPLE AND FAMILIES",CHILDREN IN CARE NON-STAFFING - SOUTH,PAYMENT TO GOVERNMENT DEPARTMENTS,19/07/2023,11026639323,76,GEN REGISTER OFFICE
OXFORDSHIRE CC,"CHILDRENS, YOUNG PEOPLE AND FAMILIES",MARKETING,OTHER SERVICES,19/07/2023,11026639367,14.49,AMZNMKTPLACE AMAZON.CO
OXFORDSHIRE CC,SOCIAL AND COMMUNITY SERVICES,CSS WITNEY,MATERIALS,19/07/2023,11026641077,3.49,AMAZON.CO.UK 569N81AB5
OXFORDSHIRE CC,SOCIAL AND COMMUNITY SERVICES,CSS WANTAGE,MATERIALS,19/07/2023,11026641101,25.99,AMZNMKTPLACE
OXFORDSHIRE CC,"CHILDRENS, YOUNG PEOPLE AND FAMILIES",WITNEY,CATERING PROVISIONS,19/07/2023,11026639411,44.57,POUNDSTRETCHER 700
OXFORDSHIRE CC,SOCIAL AND COMMUNITY SERVICES,CSS WITNEY,MATERIALS,19/07/2023,11026641081,15.95,AMZNMKTPLACE
OXFORDSHIRE CC,"CHILDRENS, YOUNG PEOPLE AND FAMILIES",FSP STAFFING � CENTRAL,CATERING PROVISIONS,19/07/2023,11026639297,3.9,TESCO STORES 2990
OXFORDSHIRE CC,ENVIRONMENT AND ECONOMY,"	NAT TRAILS GENERAL",CATERING PROVISIONS,19/07/2023,11026640779,1,CO OPERATIVE FOOD
OXFORDSHIRE CC,ENVIRONMENT AND ECONOMY,"	NAT TRAILS GENERAL",VEHICLE FUEL,19/07/2023,11026640787,54.11,BELLINGERS S.STN
OXFORDSHIRE CC,CORPORATE CORE,OPERATIONS,EQUIPMENT,19/07/2023,11026640927,50.77,AMZNMKTPLACE
OXFORDSHIRE CC,SOCIAL AND COMMUNITY SERVICES,CSS WITNEY,OTHER TRANSPORT ARRANGEMENTS,19/07/2023,11026641071,40,SQ  EASYLIFE VALETING
OXFORDSHIRE CC,SOCIAL AND COMMUNITY SERVICES,CSS WANTAGE,MATERIALS,19/07/2023,11026641097,9.73,AMZNMKTPLACE
OXFORDSHIRE CC,"CHILDRENS, YOUNG PEOPLE AND FAMILIES","	LEAVING CARE CITY 2",PAYMENT TO GOVERNMENT DEPARTMENTS,19/07/2023,11026640695,28.9,SEAFRONT CATERING
OXFORDSHIRE CC,SOCIAL AND COMMUNITY SERVICES,SCHOOLS FM CATERING AREA 2,CATERING PROVISIONS,19/07/2023,11026640713,15.59,BOOKER LTD - 38584104
OXFORDSHIRE CC,"CHILDRENS, YOUNG PEOPLE AND FAMILIES",CSS WALLINGFORD,MATERIALS,19/07/2023,11026639251,30.28,AMZNMKTPLACE
OXFORDSHIRE CC,"CHILDRENS, YOUNG PEOPLE AND FAMILIES",FSP STAFFING � CENTRAL,CATERING PROVISIONS,19/07/2023,11026639291,12.1,TESCO STORES 2990
OXFORDSHIRE CC,"CHILDRENS, YOUNG PEOPLE AND FAMILIES",TRANSPORT COSTS,TRANSPORT TO SCHOOL,19/07/2023,11026639319,72.7,MULTIFLEET MINICABS
OXFORDSHIRE CC,"CHILDRENS, YOUNG PEOPLE AND FAMILIES",MARKETING,OTHER SERVICES,19/07/2023,11026639357,69.99,AMZNMKTPLACE AMAZON.CO
OXFORDSHIRE CC,"CHILDRENS, YOUNG PEOPLE AND FAMILIES",EYNSHAM,DOMESTIC SUPPLIES,19/07/2023,11026639397,1,SUPERDRUG STORES PLC
OXFORDSHIRE CC,SOCIAL AND COMMUNITY SERVICES,CSS WANTAGE,MATERIALS,19/07/2023,11026639213,9.79,AMZNMKTPLACE
OXFORDSHIRE CC,"CHILDRENS, YOUNG PEOPLE AND FAMILIES",CSS WALLINGFORD,MATERIALS,19/07/2023,11026639235,3.51,AMZNMKTPLACE
OXFORDSHIRE CC,"CHILDRENS, YOUNG PEOPLE AND FAMILIES",CARE LEAVERS STAFFING,PAYMENTS TO OTHER ESTABLISHMENTS,19/07/2023,11026641959,30,CITIZENCARD
OXFORDSHIRE CC,SOCIAL AND COMMUNITY SERVICES,CSS - BANBURY,ENTERTAINMENT EXPENSES,19/07/2023,11026641913,7.8,SPICEBALL LEISURE CENT
OXFORDSHIRE CC,"CHILDRENS, YOUNG PEOPLE AND FAMILIES","	HEARING IMPAIRMENT",POSTAGE AND DELIVERY,19/07/2023,11026640917,37.5,POST OFFICE COUNTER
OXFORDSHIRE CC,SOCIAL AND COMMUNITY SERVICES,"	MUSEUMS COLLECTIONS",OTHER SERVICES,19/07/2023,11026641009,35.88,AMZNMKTPLACE
OXFORDSHIRE CC,ENTERPRISEVC,HOLDING CODE FOR REA,PREMISES REPAIRS,19/07/2023,11026641801,33.59,BREWERS BICESTER
OXFORDSHIRE CC,"CHILDRENS, YOUNG PEOPLE AND FAMILIES",NTH EARLY HELP-BNRBY,CATERING PROVISIONS,19/07/2023,11026641847,4.65,WAITROSE 874
OXFORDSHIRE CC,CORPORATE CORE,PROPERTY DISPOSALS,MATERIALS,19/07/2023,11026641873,213.23,AMZNMKTPLACE
OXFORDSHIRE CC,"CHILDRENS, YOUNG PEOPLE AND FAMILIES","	LEAVING CARE CITY 2",CATERING,19/07/2023,11026640691,32.17,BOURNEMOUTH
OXFORDSHIRE CC,"CHILDRENS, YOUNG PEOPLE AND FAMILIES","	LEAVING CARE CITY 2",CATERING,19/07/2023,11026640701,6.77,MCDONALDS
OXFORDSHIRE CC,ENVIRONMENT AND ECONOMY,"	COUNTY HALL",OTHER PREMISES RELATED COSTS,18/07/2023,11022330035,135.98,AMZNMKTPLACE AMAZON.CO
OXFORDSHIRE CC,CORPORATE CORE,"MARKETING, COMMUNICATIONS & ENGAGEMENT","PUBLICITY, PROMOTIONS AND ADVERTISEMENT",18/07/2023,11022331017,500,GOOGLE ADS4896546035
OXFORDSHIRE CC,SOCIAL AND COMMUNITY SERVICES,"	MUSEUMS COLLECTIONS",MATERIALS,18/07/2023,11022330583,74,SP SPINK BOOKS
OXFORDSHIRE CC,"CHILDRENS, YOUNG PEOPLE AND FAMILIES","	SEN/ICT EQUIPMENT",PURCHASE OF IT EQUIPMENT,18/07/2023,11022330679,602.43,AMAZON.CO.UK N71UD0395
OXFORDSHIRE CC,ENVIRONMENT AND ECONOMY,HARD FM,PREMISES REPAIRS,18/07/2023,11022329933,21.92,AIR CONDITIONING GROUP
OXFORDSHIRE CC,"CHILDRENS, YOUNG PEOPLE AND FAMILIES",EYNSHAM,POSTAGE AND DELIVERY,18/07/2023,11022329883,4.19,POST OFFICE COUNTER
OXFORDSHIRE CC,CORPORATE CORE,"MARKETING, COMMUNICATIONS & ENGAGEMENT","PUBLICITY, PROMOTIONS AND ADVERTISEMENT",18/07/2023,11022331021,15.9,SNAP INC SNAP SNAP ADS
OXFORDSHIRE CC,"CHILDRENS, YOUNG PEOPLE AND FAMILIES",CNTL EARLY HELP-BRTN,"SUPPLIES, STATIONERY AND MATERIALS",18/07/2023,11022330825,5.4,CO OPERATIVE FOOD
OXFORDSHIRE CC,SOCIAL AND COMMUNITY SERVICES,"	MTFC",MATERIALS,18/07/2023,11022330945,19.48,DECATHLON
OXFORDSHIRE CC,"CHILDRENS, YOUNG PEOPLE AND FAMILIES",FAMILY SOLUTIONS PLUS NON-STAFF - NORTH,MATERIALS,18/07/2023,11022331149,200,ARGOS BANBURY INSI
OXFORDSHIRE CC,"CHILDRENS, YOUNG PEOPLE AND FAMILIES",THAME E&A HOME,DOMESTIC SUPPLIES,18/07/2023,11022329959,32.7,WWW.JOHNLEWIS.COM
OXFORDSHIRE CC,"CHILDRENS, YOUNG PEOPLE AND FAMILIES",FAMILY SOLUTIONS PLUS NON-STAFF - NORTH,CHILDCARE MANAGEMENT FEES,18/07/2023,11022330885,288,OXFORD ACTIVE LTD.
OXFORDSHIRE CC,"CHILDRENS, YOUNG PEOPLE AND FAMILIES","	SM QUALITY ASSURANCE",HIRE OF ACCOMMODATION AND FACILITIES,18/07/2023,11022330901,444.15,TRAVELODGE
OXFORDSHIRE CC,"CHILDRENS, YOUNG PEOPLE AND FAMILIES","	MASH PROJECT",CATERING,18/07/2023,11022330819,32.02,DELIVEROO
OXFORDSHIRE CC,CORPORATE CORE,THAME LIBRARY,"NEWSPAPERS, PERIODICALS AND PUBLICATIONS",18/07/2023,11022330845,5.6,SAINSBURYS S/MKTS
OXFORDSHIRE CC,"CHILDRENS, YOUNG PEOPLE AND FAMILIES",THAME E&A HOME,CATERING PROVISIONS,18/07/2023,11022330085,197.78,TESCO STORES 2038
OXFORDSHIRE CC,"CHILDRENS, YOUNG PEOPLE AND FAMILIES","	RIVERSIDE CENTRE",MATERIALS,18/07/2023,11022330099,20.4,AMZNMKTPLACE
OXFORDSHIRE CC,"CHILDRENS, YOUNG PEOPLE AND FAMILIES","	LEAVING CARE CITY 2",MATERIALS,18/07/2023,11022330485,75,WWW.ARGOS.CO.UK
OXFORDSHIRE CC,"CHILDRENS, YOUNG PEOPLE AND FAMILIES","	FOSTER CARE RECRUIT","SUPPLIES, STATIONERY AND MATERIALS",18/07/2023,11022330587,"1,298.40",CARBON COLOUR CO
OXFORDSHIRE CC,"CHILDRENS, YOUNG PEOPLE AND FAMILIES","	RESIDENTIAL STRATEGY",EQUIPMENT,18/07/2023,11022330605,94.59,PROTRAINING
OXFORDSHIRE CC,"CHILDRENS, YOUNG PEOPLE AND FAMILIES",TRANSPORT COSTS,TRANSPORT TO SCHOOL,18/07/2023,11022329899,72.7,MULTIFLEET MINICABS
OXFORDSHIRE CC,"CHILDRENS, YOUNG PEOPLE AND FAMILIES","	OCCG GRANT",OTHER EXPENSES,18/07/2023,11022330919,11.94,AMZNMKTPLACE AMAZON.CO
OXFORDSHIRE CC,SOCIAL AND COMMUNITY SERVICES,CSS - OXFORD,DAY ACTIVITIES,18/07/2023,11022329951,28.52,ALDI STORES 775-142
OXFORDSHIRE CC,"CHILDRENS, YOUNG PEOPLE AND FAMILIES",FAMILY SOLUTIONS PLUS NON-STAFF - NORTH,PAYMENTS TO TRANSPORT OPERATORS,18/07/2023,11022330963,54.1,TRAINLINE
OXFORDSHIRE CC,"CHILDRENS, YOUNG PEOPLE AND FAMILIES","DIDCOT CC, PARK ROAD",CATERING PROVISIONS,18/07/2023,11022330375,3.5,CO-OPERATIVE FUEL
OXFORDSHIRE CC,"CHILDRENS, YOUNG PEOPLE AND FAMILIES","	LEAVING CARE CITY 2",OTHER TRANSPORT ARRANGEMENTS,18/07/2023,11022330483,32,OXFORDBUS.CO.UK
OXFORDSHIRE CC,"CHILDRENS, YOUNG PEOPLE AND FAMILIES","	AAC EQUIPMENT",PURCHASE OF IT EQUIPMENT,18/07/2023,11022330675,23.74,AMZNMKTPLACE AMAZON.CO
OXFORDSHIRE CC,"CHILDRENS, YOUNG PEOPLE AND FAMILIES",WITNEY,CATERING PROVISIONS,18/07/2023,11022330713,20,SAINSBURYS S/MKTS
OXFORDSHIRE CC,"CHILDRENS, YOUNG PEOPLE AND FAMILIES",WITNEY,CATERING PROVISIONS,18/07/2023,11022329907,6.15,SAINSBURYS S/MKTS
OXFORDSHIRE CC,"CHILDRENS, YOUNG PEOPLE AND FAMILIES",NTH EARLY HELP-BNRBY,EQUIPMENT,18/07/2023,11022331147,254.92,BUY IT DIRECT
OXFORDSHIRE CC,SOCIAL AND COMMUNITY SERVICES,CSS WANTAGE,CATERING PROVISIONS,18/07/2023,11022330669,7.55,SAINSBURYS S/MKTS
OXFORDSHIRE CC,"CHILDRENS, YOUNG PEOPLE AND FAMILIES",WITNEY,CATERING PROVISIONS,18/07/2023,11022330707,8,POUNDSTRETCHER 700
OXFORDSHIRE CC,"CHILDRENS, YOUNG PEOPLE AND FAMILIES","	LOOKED AFTER CITY 2",PAYMENTS TO TRANSPORT OPERATORS,18/07/2023,11022330173,15.27,TRAINLINE.COM
OXFORDSHIRE CC,"CHILDRENS, YOUNG PEOPLE AND FAMILIES",0-5 STDS & PROGRESS,MATERIALS,18/07/2023,11022330215,30,AMAZON.CO.UK OH7FZ7BW5
OXFORDSHIRE CC,"CHILDRENS, YOUNG PEOPLE AND FAMILIES",FAMILY SOLUTIONS PLUS NON-STAFF - NORTH,OTHER TRANSPORT ARRANGEMENTS,18/07/2023,11022331229,60,SQ  WITHAM CABS 247
OXFORDSHIRE CC,CORPORATE CORE,OPERATIONS,MATERIALS,18/07/2023,11022330547,10.69,AMZNMKTPLACE
OXFORDSHIRE CC,SOCIAL AND COMMUNITY SERVICES,CSS BICESTER,CATERING PROVISIONS,18/07/2023,11022329955,119.4,TESCO STORES 2162
OXFORDSHIRE CC,"CHILDRENS, YOUNG PEOPLE AND FAMILIES",TRANSPORT COSTS,TRANSPORT TO SCHOOL,18/07/2023,11022329895,73,MULTIFLEET MINICABS
OXFORDSHIRE CC,"CHILDRENS, YOUNG PEOPLE AND FAMILIES","	SM QUALITY ASSURANCE",HIRE OF ACCOMMODATION AND FACILITIES,18/07/2023,11022330905,263.11,TRAVELODGE
OXFORDSHIRE CC,"CHILDRENS, YOUNG PEOPLE AND FAMILIES","	SM QUALITY ASSURANCE",PAYMENTS TO TRANSPORT OPERATORS,18/07/2023,11022330027,49.82,TRAINLINE
OXFORDSHIRE CC,"CHILDRENS, YOUNG PEOPLE AND FAMILIES",BROADBAND PROJECT,IT SOFTWARE,18/07/2023,11022330057,37.27,IOMART.IO
OXFORDSHIRE CC,"CHILDRENS, YOUNG PEOPLE AND FAMILIES","	LEAVING CARE SOUTH",MATERIALS,18/07/2023,11022330145,120,WWW.ARGOS.CO.UK
OXFORDSHIRE CC,SOCIAL AND COMMUNITY SERVICES,SCHOOLS FM CATERING AREA 2,CATERING PROVISIONS,18/07/2023,11022330431,12.55,SAINSBURYS S/MKTS
OXFORDSHIRE CC,"CHILDRENS, YOUNG PEOPLE AND FAMILIES",CHILDREN IN CARE NON-STAFFING - CENTRL 2,PAYMENT TO GOVERNMENT DEPARTMENTS,18/07/2023,11022330017,33,OXFORDSHIRE CC WEB1
OXFORDSHIRE CC,"CHILDRENS, YOUNG PEOPLE AND FAMILIES","	MASH PROJECT",HIRE OF ACCOMMODATION AND FACILITIES,18/07/2023,11022330817,98.41,TRAVELODGE
OXFORDSHIRE CC,"CHILDRENS, YOUNG PEOPLE AND FAMILIES",PAUSE PROGRAMME,MATERIALS,18/07/2023,11022330563,26.49,ASDA SUPERSTORE
OXFORDSHIRE CC,"CHILDRENS, YOUNG PEOPLE AND FAMILIES","	OCCG GRANT",MATERIALS,18/07/2023,11022330619,6.99,AMZNMKTPLACE
OXFORDSHIRE CC,"CHILDRENS, YOUNG PEOPLE AND FAMILIES",KINGFISHER,CATERING,18/07/2023,11022330891,5.36,"KFC OXFORD, TEMPLARS S"
OXFORDSHIRE CC,ENTERPRISEVC,,CAR LEASING - PRIVATE RENTALS,18/07/2023,11022330877,"1,981.51",ENTERPRISE RENT-A-CAR
OXFORDSHIRE CC,"CHILDRENS, YOUNG PEOPLE AND FAMILIES",KINGFISHER,ENTERTAINMENT EXPENSES,18/07/2023,11022330893,15,HOLLYWOOD BOWL
OXFORDSHIRE CC,"CHILDRENS, YOUNG PEOPLE AND FAMILIES","	SM QUALITY ASSURANCE",HIRE OF ACCOMMODATION AND FACILITIES,18/07/2023,11022330909,176.99,PREMIER INN
OXFORDSHIRE CC,"CHILDRENS, YOUNG PEOPLE AND FAMILIES","	LEAVING CARE SOUTH",MATERIALS,18/07/2023,11022330139,133.95,WWW.ARGOS.CO.UK
OXFORDSHIRE CC,"CHILDRENS, YOUNG PEOPLE AND FAMILIES","	LEAVING CARE CITY 1",PAYMENT TO GOVERNMENT DEPARTMENTS,18/07/2023,11022330253,100,FCDO
OXFORDSHIRE CC,SOCIAL AND COMMUNITY SERVICES,COWLEY LIBRARY,"SUPPLIES, STATIONERY AND MATERIALS",18/07/2023,11022331177,3.25,WILKO RETAIL LIMITED
OXFORDSHIRE CC,"CHILDRENS, YOUNG PEOPLE AND FAMILIES",FAMILY SOLUTIONS PLUS NON-STAFF - NORTH,OTHER TRANSPORT ARRANGEMENTS,18/07/2023,11022331227,30,SQ  WITHAM CABS 247
OXFORDSHIRE CC,"CHILDRENS, YOUNG PEOPLE AND FAMILIES",UASC 16&17,BIRTHDAY ALLOWANCE,18/07/2023,11022330335,6,KHAIRO?S STREET FOOD
OXFORDSHIRE CC,CORPORATE CORE,SCHOOLS FM CATERING AREA 4,MATERIALS,18/07/2023,11022330351,74.2,WWW.NISBETS.COM
OXFORDSHIRE CC,"CHILDRENS, YOUNG PEOPLE AND FAMILIES","	OCCG GRANT",MATERIALS,18/07/2023,11022330623,31.45,AMZNMKTPLACE AMAZON.CO
OXFORDSHIRE CC,"CHILDRENS, YOUNG PEOPLE AND FAMILIES",FAMILY SOLUTIONS PLUS NON-STAFF - NORTH,PAYMENTS TO TRANSPORT OPERATORS,18/07/2023,11022329975,647.62,BKG HOTEL AT BOOKING.C
OXFORDSHIRE CC,"CHILDRENS, YOUNG PEOPLE AND FAMILIES",PAUSE PROGRAMME,CATERING PROVISIONS,18/07/2023,11022330199,2.58,DELTEYS
OXFORDSHIRE CC,SOCIAL AND COMMUNITY SERVICES,"	MTFC",CATERING,18/07/2023,11022330949,36.6,PURPLE MANGO
OXFORDSHIRE CC,CORPORATE CORE,SCHOOLS FM CATERING AREA 1,MATERIALS,18/07/2023,11022330969,67.96,AMZNMKTPLACE
OXFORDSHIRE CC,"CHILDRENS, YOUNG PEOPLE AND FAMILIES",DIDCOT MOVE-ON HOME,CATERING PROVISIONS,18/07/2023,11022330087,52,B&M 515 - ABINGDON
OXFORDSHIRE CC,"CHILDRENS, YOUNG PEOPLE AND FAMILIES","	OCCG GRANT",MATERIALS,18/07/2023,11022330621,15.98,AMZNMKTPLACE AMAZON.CO
OXFORDSHIRE CC,"CHILDRENS, YOUNG PEOPLE AND FAMILIES",FAMILY SOLUTIONS PLUS NON-STAFF - NORTH,CHILDCARE MANAGEMENT FEES,18/07/2023,11022330881,288,OXFORD ACTIVE LTD.
OXFORDSHIRE CC,"CHILDRENS, YOUNG PEOPLE AND FAMILIES",KINGFISHER,ENTERTAINMENT EXPENSES,18/07/2023,11022330897,15,HOLLYWOOD BOWL
OXFORDSHIRE CC,"CHILDRENS, YOUNG PEOPLE AND FAMILIES","	LEAVING CARE CITY 1",OTHER TRANSPORT ARRANGEMENTS,18/07/2023,11022330259,4.6,MOREBUS
OXFORDSHIRE CC,"CHILDRENS, YOUNG PEOPLE AND FAMILIES",40 THE MOORS,CATERING PROVISIONS,18/07/2023,11022330299,7.2,SAINSBURYS S/MKTS
OXFORDSHIRE CC,"CHILDRENS, YOUNG PEOPLE AND FAMILIES",40 THE MOORS,CATERING PROVISIONS,18/07/2023,11022331087,14.03,SAINSBURY'S S/MKT
OXFORDSHIRE CC,"CHILDRENS, YOUNG PEOPLE AND FAMILIES","	LEAVING CARE NORTH",OTHER TRANSPORT ARRANGEMENTS,18/07/2023,11022331107,6.1,OXPENS CAR PARK
OXFORDSHIRE CC,SOCIAL AND COMMUNITY SERVICES,CSS - BANBURY,MATERIALS,18/07/2023,11022331157,6.59,AMZNMKTPLACE
OXFORDSHIRE CC,"CHILDRENS, YOUNG PEOPLE AND FAMILIES",KINGFISHER,CATERING,18/07/2023,11022330389,6.4,MCDONALDS
OXFORDSHIRE CC,"CHILDRENS, YOUNG PEOPLE AND FAMILIES",KINGFISHER,RESIDENTIAL ACTIVITIES,18/07/2023,11022329917,349,PARKDEAN RESORTS H
OXFORDSHIRE CC,"CHILDRENS, YOUNG PEOPLE AND FAMILIES",40 THE MOORS,MATERIALS,18/07/2023,11022330133,40,WWW.ARGOS.CO.UK
OXFORDSHIRE CC,ENVIRONMENT AND ECONOMY,HOLDING CODE FOR REA,OTHER TRANSPORT ARRANGEMENTS,18/07/2023,11022331113,5.95,NCP BANBURY MARLBOROUG
OXFORDSHIRE CC,"CHILDRENS, YOUNG PEOPLE AND FAMILIES",DIDCOT MOVE-ON HOME,CATERING PROVISIONS,18/07/2023,11022330279,8.99,SAINSBURYS S/MKTS
OXFORDSHIRE CC,"CHILDRENS, YOUNG PEOPLE AND FAMILIES",40 THE MOORS,CATERING PROVISIONS,18/07/2023,11022330293,23.62,TESCO STORES 2788
OXFORDSHIRE CC,"CHILDRENS, YOUNG PEOPLE AND FAMILIES",WITNEY,MATERIALS,18/07/2023,11022330711,12,WITNEY INSIDE SAINSBUR
OXFORDSHIRE CC,SOCIAL AND COMMUNITY SERVICES,SCHOOLS FM CATERING AREA 4,CATERING PROVISIONS,18/07/2023,11022329995,23.6,SAINSBURY'S S/MKT
OXFORDSHIRE CC,ENVIRONMENT AND ECONOMY,HARD FM,PREMISES REPAIRS,18/07/2023,11022329929,17.49,EURO CAR PARTS
OXFORDSHIRE CC,SOCIAL AND COMMUNITY SERVICES,"	MTFC",CATERING,18/07/2023,11022330955,50.92,PRET A MANGER
OXFORDSHIRE CC,CORPORATE CORE,SCHOOLS FM CATERING AREA 1,CATERING PROVISIONS,18/07/2023,11022330977,19.2,TESCO-STORES 2305
OXFORDSHIRE CC,ENTERPRISEVC,HOLDING CODE FOR REA,PREMISES REPAIRS,18/07/2023,11022331123,29.32,BREWERS BICESTER
OXFORDSHIRE CC,SOCIAL AND COMMUNITY SERVICES,CSS - BANBURY,MATERIALS,18/07/2023,11022331153,15.12,AMZNMKTPLACE
OXFORDSHIRE CC,"CHILDRENS, YOUNG PEOPLE AND FAMILIES","	LEAVING CARE CITY 2",MATERIALS,18/07/2023,11022330489,160,J D SPORTS
OXFORDSHIRE CC,SOCIAL AND COMMUNITY SERVICES,"	MUSEUMS COLLECTIONS",MATERIALS,18/07/2023,11022330585,44.73,AMZNMKTPLACE AMAZON.CO
OXFORDSHIRE CC,SOCIAL AND COMMUNITY SERVICES,CSS - ABINGDON,CATERING PROVISIONS,18/07/2023,11022329913,12.75,B&M 515 - ABINGDON
OXFORDSHIRE CC,"CHILDRENS, YOUNG PEOPLE AND FAMILIES",PAUSE PROGRAMME,MATERIALS,18/07/2023,11022330205,5.99,AMZNMKTPLACE
OXFORDSHIRE CC,"CHILDRENS, YOUNG PEOPLE AND FAMILIES",THAME E&A HOME,CATERING PROVISIONS,18/07/2023,11022330391,17.59,SAINSBURYS SUPERMA
OXFORDSHIRE CC,SOCIAL AND COMMUNITY SERVICES,CSS WITNEY,CATERING PROVISIONS,18/07/2023,11022330477,18.15,CO-OP GROUP 070582
OXFORDSHIRE CC,"CHILDRENS, YOUNG PEOPLE AND FAMILIES","	LEAVING CARE CITY 2",CATERING PROVISIONS,18/07/2023,11022330493,20,TESCO GIFT CARD
OXFORDSHIRE CC,ENVIRONMENT AND ECONOMY,HARD FM,PREMISES REPAIRS,18/07/2023,11022329935,500,AIR CONDITIONING GROUP
OXFORDSHIRE CC,"CHILDRENS, YOUNG PEOPLE AND FAMILIES",WITNEY,MATERIALS,18/07/2023,11022329903,24.9,AMZNMKTPLACE
OXFORDSHIRE CC,"CHILDRENS, YOUNG PEOPLE AND FAMILIES",FSP NON-STAFFING - CENTRAL,PAYMENT TO GOVERNMENT DEPARTMENTS,18/07/2023,11022331029,11,OXFORDSHIRE CC WEB1
OXFORDSHIRE CC,"CHILDRENS, YOUNG PEOPLE AND FAMILIES",40 THE MOORS,CATERING PROVISIONS,18/07/2023,11022330295,15.5,SAINSBURYS S/MKTS
OXFORDSHIRE CC,SOCIAL AND COMMUNITY SERVICES,CSS - BANBURY,CATERING PROVISIONS,18/07/2023,11022331101,74.85,SAINSBURYS.CO.UK
OXFORDSHIRE CC,ENVIRONMENT AND ECONOMY,"	ROW MAINT",EQUIPMENT,18/07/2023,11022330393,133.4,SUPERLEC
OXFORDSHIRE CC,"CHILDRENS, YOUNG PEOPLE AND FAMILIES","	DIRECTOR'S OFFICE",MATERIALS,18/07/2023,11022330413,16.98,AMAZON.CO.UK 0I3H02DH5
OXFORDSHIRE CC,CORPORATE CORE,HISTORY SERVICE,FURNITURE,18/07/2023,11022330611,3,AMAZON.CO.UK 8S3DN0375
OXFORDSHIRE CC,SOCIAL AND COMMUNITY SERVICES,CSS WANTAGE,POSTAGE AND DELIVERY,18/07/2023,11022330665,1.5,FEE2PAYONLINE
OXFORDSHIRE CC,"CHILDRENS, YOUNG PEOPLE AND FAMILIES",THAME E&A HOME,CATERING PROVISIONS,18/07/2023,11022329991,12.05,SAINSBURYS S/MKTS
OXFORDSHIRE CC,SOCIAL AND COMMUNITY SERVICES,"	MTFC",CATERING,18/07/2023,11022330951,16.4,ZETTLE_ GOOD BELLY LIM
OXFORDSHIRE CC,CORPORATE CORE,SCHOOLS FM CATERING AREA 1,CATERING PROVISIONS,18/07/2023,11022330975,32.87,TESCO STORES 4480
OXFORDSHIRE CC,"CHILDRENS, YOUNG PEOPLE AND FAMILIES",0-5 STDS & PROGRESS,"SUPPLIES, STATIONERY AND MATERIALS",18/07/2023,11022330221,29.86,AMAZON.CO.UK ZQ9GN55C5
OXFORDSHIRE CC,"CHILDRENS, YOUNG PEOPLE AND FAMILIES","	LEAVING CARE SOUTH",OTHER EXPENSES,17/07/2023,11015078577,3.9,ZETTLE_ MODERN ART OXF
OXFORDSHIRE CC,CORPORATE CORE,SCHOOLS FM CATERING AREA 1,MATERIALS,17/07/2023,11015078805,14.99,WITNEY ROAD GARAGE
OXFORDSHIRE CC,"CHILDRENS, YOUNG PEOPLE AND FAMILIES",DIDCOT MOVE-ON HOME,"SUPPLIES, STATIONERY AND MATERIALS",17/07/2023,11015078823,6,B&M 514 - DICOT
OXFORDSHIRE CC,SOCIAL AND COMMUNITY SERVICES,CSS WITNEY,VEHICLES AND PLANT - REPAIRS AND MAIN,17/07/2023,11015078283,35.38,J MILLIN & SON LTD
OXFORDSHIRE CC,SOCIAL AND COMMUNITY SERVICES,BUSINESS SUPPORT SERVICE,MATERIALS,17/07/2023,11015078557,22.98,AMZNMKTPLACE
OXFORDSHIRE CC,"CHILDRENS, YOUNG PEOPLE AND FAMILIES",EYNSHAM,CATERING PROVISIONS,17/07/2023,11015078589,173.09,TESCO STORES 2008
OXFORDSHIRE CC,ENVIRONMENT AND ECONOMY,SCH&SOC CARE TRANSP,MATERIALS,17/07/2023,11015078315,55.93,AMZNMKTPLACE
OXFORDSHIRE CC,SOCIAL AND COMMUNITY SERVICES,WALLINGFORD LIBRARY,EQUIPMENT,17/07/2023,11015078769,9,WAITROSE 675
OXFORDSHIRE CC,"CHILDRENS, YOUNG PEOPLE AND FAMILIES",FAMILY SOLUTIONS PLUS NON-STAFF � SOUTH,CLOTHING AND UNIFORMS,17/07/2023,11015078787,41.95,DRMARTENS.COM
OXFORDSHIRE CC,"CHILDRENS, YOUNG PEOPLE AND FAMILIES",40 THE MOORS,HOSPITALITY EXPENSES,17/07/2023,11015078435,50.53,GURKHA VILLAGE
OXFORDSHIRE CC,"CHILDRENS, YOUNG PEOPLE AND FAMILIES","	LEAVING CARE SOUTH",FURNITURE,17/07/2023,11015078569,338,IKEA LTD SHOP ONLINE
OXFORDSHIRE CC,"CHILDRENS, YOUNG PEOPLE AND FAMILIES",EYNSHAM,CATERING PROVISIONS,17/07/2023,11015078593,8.75,MAYFIELDEGGS
OXFORDSHIRE CC,CORPORATE CORE,SCHOOLS FM CATERING AREA 1,MATERIALS,17/07/2023,11015078809,39.82,AMZNMKTPLACE
OXFORDSHIRE CC,"CHILDRENS, YOUNG PEOPLE AND FAMILIES",FIELDWORK UASC,OTHER TRANSPORT ARRANGEMENTS,17/07/2023,11015079019,4.5,OXFORD BUS COMPANY
OXFORDSHIRE CC,"CHILDRENS, YOUNG PEOPLE AND FAMILIES","	LEAVING CARE NORTH",CATERING,17/07/2023,11015079027,6.1,MCDONALDS
OXFORDSHIRE CC,SOCIAL AND COMMUNITY SERVICES,CSS - BANBURY,FURNITURE,17/07/2023,11015079061,14,IKEA LTD SHOP ONLINE
OXFORDSHIRE CC,SOCIAL AND COMMUNITY SERVICES,CSS - BANBURY,MATERIALS,17/07/2023,11015079053,3.79,AMZNMKTPLACE AMAZON.CO
OXFORDSHIRE CC,SOCIAL AND COMMUNITY SERVICES,CSS WITNEY,MATERIALS,17/07/2023,11015078291,13.99,AMZNMKTPLACE
OXFORDSHIRE CC,"CHILDRENS, YOUNG PEOPLE AND FAMILIES","	LEAVING CARE SOUTH",OTHER TRANSPORT ARRANGEMENTS,17/07/2023,11015078573,2,STGCOACH/CTYLINK
OXFORDSHIRE CC,"CHILDRENS, YOUNG PEOPLE AND FAMILIES",FAMILY SOLUTIONS PLUS NON-STAFF - NORTH,OTHER TRANSPORT ARRANGEMENTS,17/07/2023,11015078789,76,STAGECOACH SERVICES
OXFORDSHIRE CC,CORPORATE CORE,SCHOOLS FM CATERING AREA 1,MATERIALS,17/07/2023,11015078813,44.99,AMZNMKTPLACE
OXFORDSHIRE CC,"CHILDRENS, YOUNG PEOPLE AND FAMILIES",FIELDWORK UASC,MATERIALS,17/07/2023,11015079023,8.99,AMAZON PRIME 8S9E609U5
OXFORDSHIRE CC,SOCIAL AND COMMUNITY SERVICES,CSS - BANBURY,MATERIALS,17/07/2023,11015079049,3.88,AMZNMKTPLACE AMAZON.CO
OXFORDSHIRE CC,SOCIAL AND COMMUNITY SERVICES,CSS - BANBURY,EDUCATIONAL AND VOCATIONAL TRAINING ,17/07/2023,11015079065,193.5,PAYPAL  OPUS PHARM
OXFORDSHIRE CC,SOCIAL AND COMMUNITY SERVICES,CSS - BANBURY,MATERIALS,17/07/2023,11015079059,3.76,AMZNMKTPLACE AMAZON.CO
OXFORDSHIRE CC,SOCIAL AND COMMUNITY SERVICES,"	EMERGENCY DUTY TEAM",CATERING,17/07/2023,11015078379,13.04,UBER    EATS
OXFORDSHIRE CC,"CHILDRENS, YOUNG PEOPLE AND FAMILIES",FAMILY SOLUTIONS PLUS NON-STAFF - NORTH,PAYMENTS TO TRANSPORT OPERATORS,17/07/2023,11015078791,257.59,TRAINLINE
OXFORDSHIRE CC,"CHILDRENS, YOUNG PEOPLE AND FAMILIES",DIDCOT MOVE-ON HOME,DRUGS AND MEDICAL SUPPLIES,17/07/2023,11015078933,3.75,TESCO STORES 2413
OXFORDSHIRE CC,"CHILDRENS, YOUNG PEOPLE AND FAMILIES",PAUSE PROGRAMME,MATERIALS,17/07/2023,11015077255,13.8,AMZNMKTPLACE
OXFORDSHIRE CC,"CHILDRENS, YOUNG PEOPLE AND FAMILIES",EYNSHAM,CATERING PROVISIONS,17/07/2023,11015077281,10.21,SPAR EYNSHAM
OXFORDSHIRE CC,CORPORATE CORE,OPERATIONS,MATERIALS,17/07/2023,11015078059,2.48,AMZNMKTPLACE
OXFORDSHIRE CC,CORPORATE CORE,OPERATIONS,MATERIALS,17/07/2023,11015078077,34.58,AMZNMKTPLACE
OXFORDSHIRE CC,"CHILDRENS, YOUNG PEOPLE AND FAMILIES","	SEN/ICT EQUIPMENT",PURCHASE OF IT EQUIPMENT,17/07/2023,11015079129,16.98,AMZNMKTPLACE
OXFORDSHIRE CC,CORPORATE CORE,OPERATIONS,MATERIALS,17/07/2023,11015078065,20,AMZNMKTPLACE AMAZON.CO
OXFORDSHIRE CC,CORPORATE CORE,OPERATIONS,MATERIALS,17/07/2023,11015078081,12.92,AMZNMKTPLACE
OXFORDSHIRE CC,"CHILDRENS, YOUNG PEOPLE AND FAMILIES",PAUSE PROGRAMME,CATERING,17/07/2023,11015078109,11.8,CAFFE NERO   OXFORD HI
OXFORDSHIRE CC,"CHILDRENS, YOUNG PEOPLE AND FAMILIES","	LEAVING CARE CITY 2",PAYMENTS TO TRANSPORT OPERATORS,17/07/2023,11015077855,3.6,OXFORD PARKWAY SSTP
OXFORDSHIRE CC,CORPORATE CORE,OPERATIONS,MATERIALS,17/07/2023,11015078069,16.94,AMZNMKTPLACE
OXFORDSHIRE CC,CORPORATE CORE,OPERATIONS,MATERIALS,17/07/2023,11015078087,21.37,AMZNMKTPLACE
OXFORDSHIRE CC,"CHILDRENS, YOUNG PEOPLE AND FAMILIES","	LEAVING CARE CITY 2",OTHER TRANSPORT ARRANGEMENTS,17/07/2023,11015077859,4.5,STGCOACH/CTYLINK
OXFORDSHIRE CC,CORPORATE CORE,OPERATIONS,MATERIALS,17/07/2023,11015078073,12.98,AMZNMKTPLACE
OXFORDSHIRE CC,CORPORATE CORE,OPERATIONS,MATERIALS,17/07/2023,11015078091,9.93,AMZNMKTPLACE
OXFORDSHIRE CC,"CHILDRENS, YOUNG PEOPLE AND FAMILIES","	LEAVING CARE CITY 2",CATERING PROVISIONS,17/07/2023,11015077863,13.65,COSTA BICESTER
OXFORDSHIRE CC,"CHILDRENS, YOUNG PEOPLE AND FAMILIES","	OCCG GRANT",MATERIALS,17/07/2023,11015079169,10,TIMPSON LTD
OXFORDSHIRE CC,"CHILDRENS, YOUNG PEOPLE AND FAMILIES","	LEAVING CARE SOUTH",FURNITURE,17/07/2023,11015079171,379.5,IKEA LTD SHOP ONLINE
OXFORDSHIRE CC,"CHILDRENS, YOUNG PEOPLE AND FAMILIES",CSS - ABINGDON,HARDWARE AND CROCKERY,17/07/2023,11015079167,36.46,NOTCUTTS GARDEN CE
OXFORDSHIRE CC,SOCIAL AND COMMUNITY SERVICES,CSS WITNEY,MATERIALS,17/07/2023,11015078297,35.25,AMZNMKTPLACE AMAZON.CO
OXFORDSHIRE CC,"CHILDRENS, YOUNG PEOPLE AND FAMILIES",WITNEY,CATERING PROVISIONS,17/07/2023,11015078785,55.55,ALDI 41 775
OXFORDSHIRE CC,"CHILDRENS, YOUNG PEOPLE AND FAMILIES",PAUSE PROGRAMME,MATERIALS,17/07/2023,11015077247,26.16,AMZNMKTPLACE
OXFORDSHIRE CC,CORPORATE CORE,"MARKETING, COMMUNICATIONS & ENGAGEMENT","PUBLICITY, PROMOTIONS AND ADVERTISEMENT",17/07/2023,11015078867,15.43,SNAP INC SNAP SNAP ADS
OXFORDSHIRE CC,"CHILDRENS, YOUNG PEOPLE AND FAMILIES",DIDCOT MOVE-ON HOME,CLEANING MATERIALS,17/07/2023,11015078923,52.95,SAINSBURYS S/MKTS
OXFORDSHIRE CC,SOCIAL AND COMMUNITY SERVICES,COMMUNITY PARTNERSHIP TEAM,MATERIALS,17/07/2023,11015077071,7.2,AMZNMKTPLACE
OXFORDSHIRE CC,"CHILDRENS, YOUNG PEOPLE AND FAMILIES",40 THE MOORS,OTHER EXPENSES,17/07/2023,11015077181,138.99,JD SPORTS FASHION PLC
OXFORDSHIRE CC,"CHILDRENS, YOUNG PEOPLE AND FAMILIES",CSS WALLINGFORD,DOMESTIC AND CLEANING EQUIPMENT,17/07/2023,11015076699,30.8,WAITROSE 675
OXFORDSHIRE CC,"CHILDRENS, YOUNG PEOPLE AND FAMILIES",TRANSPORT COSTS,TRANSPORT TO SCHOOL,17/07/2023,11015076725,73,MULTIFLEET MINICABS
OXFORDSHIRE CC,"CHILDRENS, YOUNG PEOPLE AND FAMILIES","	HEARING IMPAIRMENT","SUPPLIES, STATIONERY AND MATERIALS",17/07/2023,11015078015,1.75,AMZNMKTPLACE
OXFORDSHIRE CC,CORPORATE CORE,OPERATIONS,MATERIALS,17/07/2023,11015078039,11.99,AMZNMKTPLACE
OXFORDSHIRE CC,CORPORATE CORE,OPERATIONS,MATERIALS,17/07/2023,11015078055,9.98,AMZNMKTPLACE
OXFORDSHIRE CC,CORPORATE CORE,CATERING MANAGEMENT SOFT FM,MATERIALS,17/07/2023,11015079011,11.38,AMZNMKTPLACE AMAZON.CO
OXFORDSHIRE CC,"CHILDRENS, YOUNG PEOPLE AND FAMILIES",40 THE MOORS,CATERING PROVISIONS,17/07/2023,11015078473,20.99,TESCO STORES 2788
OXFORDSHIRE CC,"CHILDRENS, YOUNG PEOPLE AND FAMILIES",VIRTUAL SCHOOL POST 16 PPP,PURCHASE OF IT EQUIPMENT,17/07/2023,11015077659,268.8,CURRYS BUSINESS
OXFORDSHIRE CC,"CHILDRENS, YOUNG PEOPLE AND FAMILIES","	RESIDENTIAL STRATEGY",CATERING PROVISIONS,17/07/2023,11015077679,5.25,SAINSBURYS S/MKTS
OXFORDSHIRE CC,"CHILDRENS, YOUNG PEOPLE AND FAMILIES",KINGFISHER,SUBSCRIPTIONS,17/07/2023,11015077705,2,BOX FIT PT
OXFORDSHIRE CC,"CHILDRENS, YOUNG PEOPLE AND FAMILIES","	MUSIC UNALLOCABLE",CATERING PROVISIONS,17/07/2023,11015078977,367.25,BUNNYS BAKERY
OXFORDSHIRE CC,"CHILDRENS, YOUNG PEOPLE AND FAMILIES",DEPUTY DIRECTOR &MAN,HIRE OF ACCOMMODATION AND FACILITIES,17/07/2023,11015078639,588,PREMIER INN
OXFORDSHIRE CC,"CHILDRENS, YOUNG PEOPLE AND FAMILIES",DIDCOT MOVE-ON HOME,CLEANING MATERIALS,17/07/2023,11015078827,13.6,TESCO STORES 2413
OXFORDSHIRE CC,CORPORATE CORE,CATERING MANAGEMENT SOFT FM,MATERIALS,17/07/2023,11015079015,11.03,AMZNMKTPLACE AMAZON.CO
OXFORDSHIRE CC,"CHILDRENS, YOUNG PEOPLE AND FAMILIES","	LEAVING CARE SOUTH",CATERING PROVISIONS,17/07/2023,11015077263,21.03,ALDI 99 775
OXFORDSHIRE CC,"CHILDRENS, YOUNG PEOPLE AND FAMILIES",NRPF & HOMELESSNESS,HIRE OF ACCOMMODATION AND FACILITIES,17/07/2023,11015078855,428.34,TRAVELODGE
OXFORDSHIRE CC,"CHILDRENS, YOUNG PEOPLE AND FAMILIES",DIDCOT MOVE-ON HOME,CATERING PROVISIONS,17/07/2023,11015078927,9.85,SAINSBURYS S/MKTS
OXFORDSHIRE CC,"CHILDRENS, YOUNG PEOPLE AND FAMILIES",DIDCOT MOVE-ON HOME,OTHER EXPENSES,17/07/2023,11015078931,70,B&M 514 - DICOT
OXFORDSHIRE CC,"CHILDRENS, YOUNG PEOPLE AND FAMILIES",40 THE MOORS,DOMESTIC AND CLEANING EQUIPMENT,17/07/2023,11015078969,57,SAINSBURY'S S/MKT
OXFORDSHIRE CC,SOCIAL AND COMMUNITY SERVICES,COMMUNITY PARTNERSHIP TEAM,CATERING PROVISIONS,17/07/2023,11015077075,38.24,LIDL GB ABINGDON
OXFORDSHIRE CC,SOCIAL AND COMMUNITY SERVICES,CSS - OXFORD,CATERING PROVISIONS,17/07/2023,11015076807,4.05,ALDI STORES 775-142
OXFORDSHIRE CC,"CHILDRENS, YOUNG PEOPLE AND FAMILIES","	LEAVING CARE CITY 2",OTHER EXPENSES,17/07/2023,11015076845,166.91,AMZNMKTPLACE
OXFORDSHIRE CC,"CHILDRENS, YOUNG PEOPLE AND FAMILIES",40 THE MOORS,OTHER EXPENSES,17/07/2023,11015077189,25.95,WWW.ARGOS.CO.UK
OXFORDSHIRE CC,"CHILDRENS, YOUNG PEOPLE AND FAMILIES",TRANSPORT COSTS,TRANSPORT TO SCHOOL,17/07/2023,11015076731,72.7,MULTIFLEET MINICABS
OXFORDSHIRE CC,CORPORATE CORE,CATERING MANAGEMENT SOFT FM,MATERIALS,17/07/2023,11015078993,50.98,AMZNMKTPLACE
OXFORDSHIRE CC,"CHILDRENS, YOUNG PEOPLE AND FAMILIES","	LEAVING CARE SOUTH",OTHER EXPENSES,17/07/2023,11015077647,465,WWW.ARGOS.CO.UK
OXFORDSHIRE CC,"CHILDRENS, YOUNG PEOPLE AND FAMILIES",DIDCOT MOVE-ON HOME,CATERING PROVISIONS,17/07/2023,11015078831,87.85,TESCO STORES 2413
OXFORDSHIRE CC,"CHILDRENS, YOUNG PEOPLE AND FAMILIES",40 THE MOORS,CATERING PROVISIONS,17/07/2023,11015078965,18.1,SAINSBURYS S/MKTS
OXFORDSHIRE CC,"CHILDRENS, YOUNG PEOPLE AND FAMILIES",PAUSE PROGRAMME,PRINTING,17/07/2023,11015077251,27.64,INKY LITTLE FINGERS LI
OXFORDSHIRE CC,"CHILDRENS, YOUNG PEOPLE AND FAMILIES",EYNSHAM,CATERING PROVISIONS,17/07/2023,11015077275,3.35,SPAR EYNSHAM
OXFORDSHIRE CC,CORPORATE CORE,CATERING MANAGEMENT SOFT FM,MATERIALS,17/07/2023,11015078999,101.94,AMZNMKTPLACE
OXFORDSHIRE CC,CORPORATE CORE,CATERING MANAGEMENT SOFT FM,MATERIALS,17/07/2023,11015079001,8.99,AMZNMKTPLACE AMAZON.CO
OXFORDSHIRE CC,"CHILDRENS, YOUNG PEOPLE AND FAMILIES","	LOOKED AFTER CITY 2",OTHER TRANSPORT ARRANGEMENTS,17/07/2023,11015078147,5.4,TFL TRAVEL CH
OXFORDSHIRE CC,"CHILDRENS, YOUNG PEOPLE AND FAMILIES","	LEAVING CARE SOUTH",OTHER EXPENSES,17/07/2023,11015077649,206.63,ALLPAY  GREENSQUAREACC
OXFORDSHIRE CC,"CHILDRENS, YOUNG PEOPLE AND FAMILIES",UASC POST 18,OTHER TRANSPORT ARRANGEMENTS,17/07/2023,11015078489,4.8,WESTGATE OXFORD CAR PA
OXFORDSHIRE CC,"CHILDRENS, YOUNG PEOPLE AND FAMILIES",KINGFISHER,CATERING,17/07/2023,11015077715,10.98,MCDONALDS
OXFORDSHIRE CC,CORPORATE CORE,CATERING MANAGEMENT SOFT FM,MATERIALS,17/07/2023,11015078985,9,AMZNMKTPLACE AMAZON.CO
OXFORDSHIRE CC,"CHILDRENS, YOUNG PEOPLE AND FAMILIES","	HEARING IMPAIRMENT","SUPPLIES, STATIONERY AND MATERIALS",17/07/2023,11015078021,6,AMZNMKTPLACE
OXFORDSHIRE CC,CORPORATE CORE,OPERATIONS,MATERIALS,17/07/2023,11015078043,4.95,AMZNMKTPLACE
OXFORDSHIRE CC,"CHILDRENS, YOUNG PEOPLE AND FAMILIES","	LEAVING CARE SOUTH",TELEPHONE - EQUIPMENT,17/07/2023,11015077641,20,PHONE MASTER
OXFORDSHIRE CC,CORPORATE CORE,CATERING MANAGEMENT SOFT FM,MATERIALS,17/07/2023,11015079007,52.31,AMZNMKTPLACE AMAZON.CO
OXFORDSHIRE CC,"CHILDRENS, YOUNG PEOPLE AND FAMILIES",UASC POST 18,MATERIALS,17/07/2023,11015078493,0.79,CARD FACTORY
OXFORDSHIRE CC,SOCIAL AND COMMUNITY SERVICES,BICESTER LIBRARY,MATERIALS,17/07/2023,11015078627,15.84,AMAZON.CO.UK 1S8PG1JO4
OXFORDSHIRE CC,"CHILDRENS, YOUNG PEOPLE AND FAMILIES",40 THE MOORS,CATERING PROVISIONS,17/07/2023,11015077445,71.8,TESCO STORES 2788
OXFORDSHIRE CC,"CHILDRENS, YOUNG PEOPLE AND FAMILIES",VIRTUAL SCHOOL POST 16 PPP,PURCHASE OF IT EQUIPMENT,17/07/2023,11015077663,"1,344.00",CURRYS BUSINESS
OXFORDSHIRE CC,"CHILDRENS, YOUNG PEOPLE AND FAMILIES",WITNEY,CATERING,17/07/2023,11015078835,8.5,THE SHAKE SHOP
OXFORDSHIRE CC,SOCIAL AND COMMUNITY SERVICES,CSS - OXFORD,CATERING PROVISIONS,17/07/2023,11015076813,49.28,ALDI STORES 775-142
OXFORDSHIRE CC,"CHILDRENS, YOUNG PEOPLE AND FAMILIES","	HEARING IMPAIRMENT","SUPPLIES, STATIONERY AND MATERIALS",17/07/2023,11015078025,5.79,AMZNMKTPLACE
OXFORDSHIRE CC,CORPORATE CORE,OPERATIONS,MATERIALS,17/07/2023,11015078047,4.88,AMZNMKTPLACE
OXFORDSHIRE CC,"CHILDRENS, YOUNG PEOPLE AND FAMILIES",FSP NON-STAFFING - CENTRAL,HIRE OF ACCOMMODATION AND FACILITIES,17/07/2023,11015077455,395.01,HOLIDAY INN BOURNEMOUT
OXFORDSHIRE CC,"CHILDRENS, YOUNG PEOPLE AND FAMILIES","	LEAVING CARE CITY 2",OTHER EXPENSES,17/07/2023,11015076839,71.9,AMZNMKTPLACE
OXFORDSHIRE CC,"CHILDRENS, YOUNG PEOPLE AND FAMILIES",CHILDREN IN CARE NON-STAFFING - CENTRL 1,PAYMENTS TO TRANSPORT OPERATORS,17/07/2023,11015076863,30.87,TRAINLINE.COM
OXFORDSHIRE CC,"CHILDRENS, YOUNG PEOPLE AND FAMILIES",40 THE MOORS,OTHER EXPENSES,17/07/2023,11015077175,20,AMZN DIGITAL
OXFORDSHIRE CC,"CHILDRENS, YOUNG PEOPLE AND FAMILIES",CSS WALLINGFORD,MATERIALS,17/07/2023,11015076687,9.24,AMZNMKTPLACE
OXFORDSHIRE CC,CORPORATE CORE,OPERATIONS,MATERIALS,17/07/2023,11015078035,5.9,AMZNMKTPLACE
OXFORDSHIRE CC,CORPORATE CORE,OPERATIONS,MATERIALS,17/07/2023,11015078049,7.94,AMZNMKTPLACE
OXFORDSHIRE CC,"CHILDRENS, YOUNG PEOPLE AND FAMILIES","	RESIDENTIAL STRATEGY",OTHER TRANSPORT ARRANGEMENTS,17/07/2023,11015077669,5.8,WESTGATE OXFORD CAR PA
OXFORDSHIRE CC,"CHILDRENS, YOUNG PEOPLE AND FAMILIES",PAUSE PROGRAMME,CATERING,17/07/2023,11015077695,8.5,SQ  COMMUNI-TEA CAFE
OXFORDSHIRE CC,"CHILDRENS, YOUNG PEOPLE AND FAMILIES","	RESIDENTIAL STRATEGY",OTHER TRANSPORT ARRANGEMENTS,17/07/2023,11015077675,4.5,STGCOACH/CTYLINK
OXFORDSHIRE CC,"CHILDRENS, YOUNG PEOPLE AND FAMILIES",KINGFISHER,CATERING,17/07/2023,11015077701,9.38,MCDONALDS
OXFORDSHIRE CC,"CHILDRENS, YOUNG PEOPLE AND FAMILIES",40 THE MOORS,CATERING PROVISIONS,17/07/2023,11015078973,123.52,SAINSBURY'S S/MKT
OXFORDSHIRE CC,CORPORATE CORE,CATERING MANAGEMENT SOFT FM,MATERIALS,17/07/2023,11015078989,6.29,AMZNMKTPLACE AMAZON.CO
OXFORDSHIRE CC,"CHILDRENS, YOUNG PEOPLE AND FAMILIES","	DIRECTOR'S OFFICE",MATERIALS,17/07/2023,11015078635,94,WWW.BLOOMANDWILD.COM
OXFORDSHIRE CC,"CHILDRENS, YOUNG PEOPLE AND FAMILIES",CHILDREN IN CARE NON-STAFFING - NORTH,ENTERTAINMENT EXPENSES,17/07/2023,11015077761,60,THE LIGHT CINEMAS
OXFORDSHIRE CC,SOCIAL AND COMMUNITY SERVICES,COMMUNITY PARTNERSHIP TEAM,MATERIALS,17/07/2023,11015077079,13.48,AMZNMKTPLACE AMAZON.CO
OXFORDSHIRE CC,"CHILDRENS, YOUNG PEOPLE AND FAMILIES",THAME E&A HOME,CATERING PROVISIONS,17/07/2023,11015077097,53,ASDA GEORGE COM LEEDS
OXFORDSHIRE CC,SOCIAL AND COMMUNITY SERVICES,CSS - BANBURY,MATERIALS,17/07/2023,11015079067,6.98,AMZNMKTPLACE AMAZON.CO
OXFORDSHIRE CC,"CHILDRENS, YOUNG PEOPLE AND FAMILIES",40 THE MOORS,DRUGS AND MEDICAL SUPPLIES,17/07/2023,11015077197,24.39,AMZNMKTPLACE
OXFORDSHIRE CC,"CHILDRENS, YOUNG PEOPLE AND FAMILIES",PAUSE PROGRAMME,MATERIALS,17/07/2023,11015077243,11.97,AMZNMKTPLACE
OXFORDSHIRE CC,"CHILDRENS, YOUNG PEOPLE AND FAMILIES","	LOOKED AFTER NORTH",CATERING PROVISIONS,17/07/2023,11015077319,100,ASDA STORES LTD
OXFORDSHIRE CC,"CHILDRENS, YOUNG PEOPLE AND FAMILIES",UASC 16&17,OTHER TRANSPORT ARRANGEMENTS,17/07/2023,11015077535,18,STAGECOACH SERVICES
OXFORDSHIRE CC,"CHILDRENS, YOUNG PEOPLE AND FAMILIES",MARKETING,OTHER SERVICES,17/07/2023,11015076743,20.36,AMZNMKTPLACE
OXFORDSHIRE CC,"CHILDRENS, YOUNG PEOPLE AND FAMILIES","	OCCG GRANT",MATERIALS,17/07/2023,11015076935,-7.75,AMZ THE LED SPECIALIST
OXFORDSHIRE CC,"CHILDRENS, YOUNG PEOPLE AND FAMILIES",EYNSHAM,OTHER COMMUNICATIONS,17/07/2023,11015078725,10.99,NETFLIX
OXFORDSHIRE CC,ENVIRONMENT AND ECONOMY,"	TVERC",IT SERVICES,17/07/2023,11015078743,7.53,NAME-CHEAP.COM  7A7SFU
OXFORDSHIRE CC,"CHILDRENS, YOUNG PEOPLE AND FAMILIES",NTS UASC AGENCY,CLEANING MATERIALS,17/07/2023,11015078765,5.99,SAVERS HEALTH & BEAUTY
OXFORDSHIRE CC,"CHILDRENS, YOUNG PEOPLE AND FAMILIES",CHILDREN IN CARE NON-STAFFING - NORTH,VEHICLE FUEL,17/07/2023,11015077763,42.43,ESSO ERMONT WAY SSTN
OXFORDSHIRE CC,SOCIAL AND COMMUNITY SERVICES,COMMUNITY PARTNERSHIP TEAM,MATERIALS,17/07/2023,11015077081,6.79,AMZNMKTPLACE AMAZON.CO
OXFORDSHIRE CC,SOCIAL AND COMMUNITY SERVICES,CSS - BANBURY,MATERIALS,17/07/2023,11015079071,13.99,AMZNMKTPLACE
OXFORDSHIRE CC,"CHILDRENS, YOUNG PEOPLE AND FAMILIES",40 THE MOORS,DRUGS AND MEDICAL SUPPLIES,17/07/2023,11015077205,11.99,AMZNMKTPLACE
OXFORDSHIRE CC,"CHILDRENS, YOUNG PEOPLE AND FAMILIES",MARKETING,OTHER SERVICES,17/07/2023,11015076749,61.97,AMZNMKTPLACE
OXFORDSHIRE CC,ENVIRONMENT AND ECONOMY,OXFDSHIRE PUBLIC SPACE INNOVATION NETWK,OTHER TRANSPORT ARRANGEMENTS,17/07/2023,11015076919,2,STGCOACH/CTYLINK
OXFORDSHIRE CC,SOCIAL AND COMMUNITY SERVICES,CSS - ABINGDON,MATERIALS,17/07/2023,11015076797,-2.79,AMZNMKTPLACE AMAZON.CO
OXFORDSHIRE CC,CORPORATE CORE,,STATIONERY,17/07/2023,11015078729,8.6,LYRECO UK LTD
OXFORDSHIRE CC,"CHILDRENS, YOUNG PEOPLE AND FAMILIES","	SM QUALITY ASSURANCE",CATERING,17/07/2023,11015078747,18.95,KFC-BANBURY
OXFORDSHIRE CC,"CHILDRENS, YOUNG PEOPLE AND FAMILIES",MARKETING,OTHER SERVICES,17/07/2023,11015076753,5.99,AMZNMKTPLACE
OXFORDSHIRE CC,SOCIAL AND COMMUNITY SERVICES,CSS - OXFORD,CATERING PROVISIONS,17/07/2023,11015076803,2.5,ALDI STORES 775-142
OXFORDSHIRE CC,"CHILDRENS, YOUNG PEOPLE AND FAMILIES","	HOME SUPPORT",MATERIALS,17/07/2023,11015077151,17.44,AMZNMKTPLACE AMAZON.CO
OXFORDSHIRE CC,"CHILDRENS, YOUNG PEOPLE AND FAMILIES","	OCCG GRANT",MATERIALS,17/07/2023,11015076927,23.98,AMZNMKTPLACE
OXFORDSHIRE CC,CORPORATE CORE,,STATIONERY,17/07/2023,11015078733,5.98,LYRECO UK LTD
OXFORDSHIRE CC,"CHILDRENS, YOUNG PEOPLE AND FAMILIES",NTS UASC AGENCY,CATERING,17/07/2023,11015078755,1.4,CO-OPERATIVE FOOD
OXFORDSHIRE CC,"CHILDRENS, YOUNG PEOPLE AND FAMILIES","	LOOKED AFTER CITY 2",PAYMENTS TO TRANSPORT OPERATORS,17/07/2023,11015078143,21.3,TRAINLINE
OXFORDSHIRE CC,"CHILDRENS, YOUNG PEOPLE AND FAMILIES",WITNEY,CATERING PROVISIONS,17/07/2023,11015077633,21.85,SAINSBURY'S S/MKT
OXFORDSHIRE CC,"CHILDRENS, YOUNG PEOPLE AND FAMILIES",PAUSE PROGRAMME,CATERING PROVISIONS,17/07/2023,11015077689,8.33,ALDI 10 775
OXFORDSHIRE CC,"CHILDRENS, YOUNG PEOPLE AND FAMILIES",KINGFISHER,SUBSCRIPTIONS,17/07/2023,11015077709,40,BOX FIT PT
OXFORDSHIRE CC,CORPORATE CORE,CATERING MANAGEMENT SOFT FM,MATERIALS,17/07/2023,11015078981,110.76,AMZNMKTPLACE
OXFORDSHIRE CC,"CHILDRENS, YOUNG PEOPLE AND FAMILIES","	OCCG GRANT",HARDWARE AND CROCKERY,17/07/2023,11015077267,6,TESCO STORES 2008
OXFORDSHIRE CC,"CHILDRENS, YOUNG PEOPLE AND FAMILIES",EYNSHAM,CATERING PROVISIONS,17/07/2023,11015077293,4.23,SPAR EYNSHAM
OXFORDSHIRE CC,"CHILDRENS, YOUNG PEOPLE AND FAMILIES",FIELDWORK UASC,MATERIALS,17/07/2023,11015077353,8,CURRYS CARE SERVICE
OXFORDSHIRE CC,"CHILDRENS, YOUNG PEOPLE AND FAMILIES",CSS WANTAGE,MATERIALS,17/07/2023,11015076785,21.57,AMZNMKTPLACE AMAZON.CO
OXFORDSHIRE CC,"CHILDRENS, YOUNG PEOPLE AND FAMILIES","	OCCG GRANT",MATERIALS,17/07/2023,11015078205,15.83,AMZNMKTPLACE
OXFORDSHIRE CC,"CHILDRENS, YOUNG PEOPLE AND FAMILIES","	LEAVING CARE CITY 2",CATERING,17/07/2023,11015077745,7.38,MCDONALDS
OXFORDSHIRE CC,"CHILDRENS, YOUNG PEOPLE AND FAMILIES",40 THE MOORS,MATERIALS,17/07/2023,11015077193,7.55,AMZNMKTPLACE
OXFORDSHIRE CC,"CHILDRENS, YOUNG PEOPLE AND FAMILIES",EYNSHAM,SUBSCRIPTIONS,17/07/2023,11015077285,43.66,HOLLYWOOD BOWL
OXFORDSHIRE CC,SOCIAL AND COMMUNITY SERVICES,SCHOOLS FM CATERING AREA 2,CATERING PROVISIONS,17/07/2023,11015077793,8.3,SAINSBURYS S/MKTS
OXFORDSHIRE CC,"CHILDRENS, YOUNG PEOPLE AND FAMILIES",PAUSE PROGRAMME,MATERIALS,17/07/2023,11015077245,12,AMZNMKTPLACE
OXFORDSHIRE CC,"CHILDRENS, YOUNG PEOPLE AND FAMILIES",FIELDWORK UASC,MATERIALS,17/07/2023,11015077357,67.99,SPORTSDIRECT 218
OXFORDSHIRE CC,"CHILDRENS, YOUNG PEOPLE AND FAMILIES","	LOOKED AFTER CITY 2",POSTAGE AND DELIVERY,17/07/2023,11015078139,13.7,POST OFFICE COUNTER
OXFORDSHIRE CC,"CHILDRENS, YOUNG PEOPLE AND FAMILIES",FSP NON-STAFFING - CENTRAL,VEHICLE EQUIPMENT AND EXPENSES - OTHER,17/07/2023,11015076719,13,QWIKPARK
OXFORDSHIRE CC,"CHILDRENS, YOUNG PEOPLE AND FAMILIES",CHILDREN IN CARE NON-STAFFING - NORTH,HIRE OF ACCOMMODATION AND FACILITIES,17/07/2023,11015077757,65,THE GEORGE HOTEL
OXFORDSHIRE CC,"CHILDRENS, YOUNG PEOPLE AND FAMILIES",THAME E&A HOME,CATERING PROVISIONS,17/07/2023,11015077093,184.96,TESCO STORES 2038
OXFORDSHIRE CC,"CHILDRENS, YOUNG PEOPLE AND FAMILIES",PAUSE PROGRAMME,MATERIALS,17/07/2023,11015077239,2.5,AMZNMKTPLACE
OXFORDSHIRE CC,"CHILDRENS, YOUNG PEOPLE AND FAMILIES",UASC 16&17,TELEPHONE - EQUIPMENT,17/07/2023,11015077313,26.99,TESCO STORES 2994
OXFORDSHIRE CC,"CHILDRENS, YOUNG PEOPLE AND FAMILIES",FIELDWORK UASC,MATERIALS,17/07/2023,11015077363,1.5,SPORTSDIRECT 218
OXFORDSHIRE CC,"CHILDRENS, YOUNG PEOPLE AND FAMILIES","	LEAVING CARE CITY 1",CATERING PROVISIONS,17/07/2023,11015077375,50,ASDA STORES LTD
OXFORDSHIRE CC,"CHILDRENS, YOUNG PEOPLE AND FAMILIES","	OCCG GRANT",CATERING PROVISIONS,17/07/2023,11015078209,9.13,ALDI STORES 775-142
OXFORDSHIRE CC,"CHILDRENS, YOUNG PEOPLE AND FAMILIES","	OCCG GRANT",MATERIALS,17/07/2023,11015076931,11.99,AMZNMKTPLACE
OXFORDSHIRE CC,"CHILDRENS, YOUNG PEOPLE AND FAMILIES",FAMILY SOLUTIONS PLUS NON-STAFF - NORTH,CATERING PROVISIONS,17/07/2023,11015078737,7.2,SAINSBURY'S S/MKT
OXFORDSHIRE CC,"CHILDRENS, YOUNG PEOPLE AND FAMILIES",NTS UASC AGENCY,OTHER EXPENSES,17/07/2023,11015078759,2,HEADINGTON HOMEWAR
OXFORDSHIRE CC,ENVIRONMENT AND ECONOMY,OXFDSHIRE PUBLIC SPACE INNOVATION NETWK,OTHER TRANSPORT ARRANGEMENTS,17/07/2023,11015076915,2,STGCOACH/CTYLINK
OXFORDSHIRE CC,"CHILDRENS, YOUNG PEOPLE AND FAMILIES",CHILDREN IN CARE NON-STAFFING - NORTH,VEHICLE FUEL,17/07/2023,11015077753,48.39,GREAT TORRINGTON SF CO
OXFORDSHIRE CC,CORPORATE CORE,THAME LIBRARY,CATERING PROVISIONS,17/07/2023,11015078681,7.3,SAINSBURYS S/MKTS
OXFORDSHIRE CC,CORPORATE CORE,"MARKETING, COMMUNICATIONS & ENGAGEMENT","PUBLICITY, PROMOTIONS AND ADVERTISEMENT",17/07/2023,11015078873,16.42,SNAP INC SNAP SNAP ADS
OXFORDSHIRE CC,CORPORATE CORE,"MARKETING, COMMUNICATIONS & ENGAGEMENT","PUBLICITY, PROMOTIONS AND ADVERTISEMENT",17/07/2023,11015078875,19.38,SNAP INC SNAP SNAP ADS
OXFORDSHIRE CC,"CHILDRENS, YOUNG PEOPLE AND FAMILIES",NTS UASC AGENCY,CATERING PROVISIONS,17/07/2023,11015078891,1.4,CO-OPERATIVE FOOD
OXFORDSHIRE CC,CORPORATE CORE,"MARKETING, COMMUNICATIONS & ENGAGEMENT","PUBLICITY, PROMOTIONS AND ADVERTISEMENT",17/07/2023,11015078879,19.9,SNAP INC SNAP SNAP ADS
OXFORDSHIRE CC,CORPORATE CORE,THAME LIBRARY,CATERING PROVISIONS,17/07/2023,11015078679,5.6,SAINSBURYS S/MKTS
OXFORDSHIRE CC,CORPORATE CORE,"MARKETING, COMMUNICATIONS & ENGAGEMENT","PUBLICITY, PROMOTIONS AND ADVERTISEMENT",17/07/2023,11015078869,500,FACEBK  5APT3S3AZ2
OXFORDSHIRE CC,"CHILDRENS, YOUNG PEOPLE AND FAMILIES","	BUSINESS DEVELOPMENT",OTHER TRANSPORT ARRANGEMENTS,17/07/2023,11015078883,500,ANYTHING FOR HIRE
OXFORDSHIRE CC,SOCIAL AND COMMUNITY SERVICES,CICC,MATERIALS,17/07/2023,11015076961,33,WWW.ARGOS.CO.UK
OXFORDSHIRE CC,SOCIAL AND COMMUNITY SERVICES,CICC,CATERING PROVISIONS,17/07/2023,11015076979,3.7,SAINSBURYS S/MKTS
OXFORDSHIRE CC,SOCIAL AND COMMUNITY SERVICES,CICC,CATERING PROVISIONS,17/07/2023,11015076997,8.25,SAINSBURYS S/MKTS
OXFORDSHIRE CC,"CHILDRENS, YOUNG PEOPLE AND FAMILIES",DIDCOT MOVE-ON HOME,CATERING PROVISIONS,17/07/2023,11015078919,18.99,SAINSBURYS S/MKTS
OXFORDSHIRE CC,SOCIAL AND COMMUNITY SERVICES,CICC,CATERING,17/07/2023,11015076987,157.05,ZETTLE_ THE WATERSIDE
OXFORDSHIRE CC,"CHILDRENS, YOUNG PEOPLE AND FAMILIES","	OCCG GRANT",MATERIALS,17/07/2023,11015076939,-6.99,AMZ TRADERS HUB LIMITE
OXFORDSHIRE CC,SOCIAL AND COMMUNITY SERVICES,CICC,CATERING PROVISIONS,17/07/2023,11015076965,6.2,SAINSBURYS S/MKTS
OXFORDSHIRE CC,SOCIAL AND COMMUNITY SERVICES,CICC,CATERING PROVISIONS,17/07/2023,11015076983,11,SAINSBURYS S/MKTS
OXFORDSHIRE CC,"CHILDRENS, YOUNG PEOPLE AND FAMILIES","	OCCG GRANT",MATERIALS,17/07/2023,11015076943,29.99,AMZNMKTPLACE
OXFORDSHIRE CC,SOCIAL AND COMMUNITY SERVICES,CICC,CLOTHING AND UNIFORMS,17/07/2023,11015076971,61.6,PRIMARK 440
OXFORDSHIRE CC,SOCIAL AND COMMUNITY SERVICES,CICC,CATERING,17/07/2023,11015076975,416.5,ZETTLE_ THE WATERSIDE
OXFORDSHIRE CC,SOCIAL AND COMMUNITY SERVICES,CICC,CATERING PROVISIONS,17/07/2023,11015076993,31.65,SAINSBURYS S/MKTS
OXFORDSHIRE CC,"CHILDRENS, YOUNG PEOPLE AND FAMILIES","	LEAVING CARE CITY 2",OTHER EXPENSES,17/07/2023,11015076851,40,TESCO GIFT CARD
OXFORDSHIRE CC,SOCIAL AND COMMUNITY SERVICES,CICC,CATERING,17/07/2023,11015077001,150.05,DOMINO S PIZZA
OXFORDSHIRE CC,"CHILDRENS, YOUNG PEOPLE AND FAMILIES",EYNSHAM,CATERING PROVISIONS,17/07/2023,11015077289,4.05,CO-OPERATIVE FOOD
OXFORDSHIRE CC,ENVIRONMENT AND ECONOMY,"	ROW MAINT",EQUIPMENT,17/07/2023,11015077799,49.8,OXON FASTENING SYSTEMS
OXFORDSHIRE CC,"CHILDRENS, YOUNG PEOPLE AND FAMILIES",THAME E&A HOME,CATERING PROVISIONS,17/07/2023,11015077807,4,SAINSBURYS SUPERMA
OXFORDSHIRE CC,"CHILDRENS, YOUNG PEOPLE AND FAMILIES","	LEAVING CARE CITY 1",OTHER TRANSPORT ARRANGEMENTS,17/07/2023,11015077383,4.6,MOREBUS
OXFORDSHIRE CC,ENVIRONMENT AND ECONOMY,MUSEUMS COLLECTIONS,MATERIALS,17/07/2023,11015078193,19.98,AMZNMKTPLACE
OXFORDSHIRE CC,"CHILDRENS, YOUNG PEOPLE AND FAMILIES",CHILDREN IN CARE NON-STAFFING - SOUTH,OTHER EXPENSES,17/07/2023,11015076733,"1,709.94",AMZNMKTPLACE
OXFORDSHIRE CC,SOCIAL AND COMMUNITY SERVICES,COMMUNITY PARTNERSHIP TEAM,MATERIALS,17/07/2023,11015077085,6.79,AMZNMKTPLACE AMAZON.CO
OXFORDSHIRE CC,SOCIAL AND COMMUNITY SERVICES,CSS - OXFORD,MATERIALS,17/07/2023,11015077113,63.46,ALDI STORES 775-142
OXFORDSHIRE CC,"CHILDRENS, YOUNG PEOPLE AND FAMILIES","ABINGDON CC, STRATTON WAY",CATERING PROVISIONS,17/07/2023,11015079075,3.1,POUNDLAND LTD - 1366
OXFORDSHIRE CC,ENTERPRISEVC,BUSINESS SYST STAFF,MATERIALS,17/07/2023,11015076833,25.98,AMZNMKTPLACE AMAZON.CO
OXFORDSHIRE CC,"CHILDRENS, YOUNG PEOPLE AND FAMILIES",CHILDREN IN CARE NON-STAFFING - CENTRL 1,PAYMENTS TO TRANSPORT OPERATORS,17/07/2023,11015076857,121.25,TRAINLINE.COM
OXFORDSHIRE CC,SOCIAL AND COMMUNITY SERVICES,CICC,CATERING,17/07/2023,11015077005,8.15,STARBUCKS
OXFORDSHIRE CC,"CHILDRENS, YOUNG PEOPLE AND FAMILIES","	LEAVING CARE SOUTH",MATERIALS,14/07/2023,11007539127,737,CURRYS ONLINE
OXFORDSHIRE CC,"CHILDRENS, YOUNG PEOPLE AND FAMILIES","	LOOKED AFTER NORTH",CATERING,14/07/2023,11007539161,10.88,MCDONALDS
OXFORDSHIRE CC,"CHILDRENS, YOUNG PEOPLE AND FAMILIES",EYNSHAM,DOMESTIC SUPPLIES,14/07/2023,11007539771,10.98,SUPERDRUG STORES PLC
OXFORDSHIRE CC,"CHILDRENS, YOUNG PEOPLE AND FAMILIES","	LEAVING CARE SOUTH",OTHER TRANSPORT ARRANGEMENTS,14/07/2023,11007539983,1.7,TOTAL PARKING SOLUTION
OXFORDSHIRE CC,"CHILDRENS, YOUNG PEOPLE AND FAMILIES","	LEAVING CARE SOUTH",OTHER TRANSPORT ARRANGEMENTS,14/07/2023,11007540001,3,OXFORD BUS COMPANY
OXFORDSHIRE CC,"CHILDRENS, YOUNG PEOPLE AND FAMILIES",UASC 16&17,RESIDENTIAL ACTIVITIES,14/07/2023,11007539027,89.99,TESCO STORES 2994
OXFORDSHIRE CC,CORPORATE CORE,OPERATIONS,MATERIALS,14/07/2023,11007539361,26.67,AMZNMKTPLACE AMAZON.CO
OXFORDSHIRE CC,SOCIAL AND COMMUNITY SERVICES,"	MUSEUMS COLLECTIONS",CATERING PROVISIONS,14/07/2023,11007539377,4.62,MILK AND MORE (RECUR
OXFORDSHIRE CC,"CHILDRENS, YOUNG PEOPLE AND FAMILIES","	LOOKED AFTER CITY 2",OTHER TRANSPORT ARRANGEMENTS,14/07/2023,11007539385,2,STGCOACH/CTYLINK
OXFORDSHIRE CC,"CHILDRENS, YOUNG PEOPLE AND FAMILIES","	AAC EQUIPMENT",PURCHASE OF IT EQUIPMENT,14/07/2023,11007539435,9.89,AMZNMKTPLACE
OXFORDSHIRE CC,ENVIRONMENT AND ECONOMY,SCH&SOC CARE TRANSP,STATIONERY,14/07/2023,11007539441,142.58,UKOFFICEDIRECT.CO.
OXFORDSHIRE CC,CORPORATE CORE,PUBLIC HEALTH GENERA,PAYMENTS TO TRANSPORT OPERATORS,14/07/2023,11007539225,63.8,CHILTERN RAILWAYS
OXFORDSHIRE CC,CORPORATE CORE,,STATIONERY,14/07/2023,11007539621,79.7,LYRECO UK LTD
OXFORDSHIRE CC,CORPORATE CORE,,STATIONERY,14/07/2023,11007539645,237.26,LYRECO UK LTD
OXFORDSHIRE CC,"CHILDRENS, YOUNG PEOPLE AND FAMILIES","	SM QUALITY ASSURANCE",CATERING PROVISIONS,14/07/2023,11007539663,50,PREZZEE/GBF06D4E20
OXFORDSHIRE CC,"CHILDRENS, YOUNG PEOPLE AND FAMILIES","	LEAVING CARE SOUTH",OTHER EXPENSES,14/07/2023,11007539535,63.49,B&M 514 - DICOT
OXFORDSHIRE CC,"CHILDRENS, YOUNG PEOPLE AND FAMILIES","	LEAVING CARE SOUTH",OTHER TRANSPORT ARRANGEMENTS,14/07/2023,11007539251,30,ESSO ACORN SSTN
OXFORDSHIRE CC,SOCIAL AND COMMUNITY SERVICES,"	MTFC",CATERING,14/07/2023,11007539717,22.9,KASPAS READING
OXFORDSHIRE CC,"CHILDRENS, YOUNG PEOPLE AND FAMILIES",FAMILY SOLUTIONS PLUS NON-STAFF � SOUTH,FURNITURE,14/07/2023,11007539793,39.91,AMZNMKTPLACE
OXFORDSHIRE CC,"CHILDRENS, YOUNG PEOPLE AND FAMILIES",PAUSE PROGRAMME,CATERING PROVISIONS,14/07/2023,11007539275,6.7,SAINSBURYS S/MKTS
OXFORDSHIRE CC,ENVIRONMENT AND ECONOMY,"	ROW MAINT",EQUIPMENT,14/07/2023,11007539291,367.2,JEWSON LTD
OXFORDSHIRE CC,CORPORATE CORE,BUSINESS INTELLECTUAL PROPERTY CENTRE,PAYMENTS TO TRANSPORT OPERATORS,14/07/2023,11007539337,32.4,TRAINLINE
OXFORDSHIRE CC,SOCIAL AND COMMUNITY SERVICES,CSS WITNEY,MATERIALS,14/07/2023,11007538997,59.88,AMZNMKTPLACE
OXFORDSHIRE CC,SOCIAL AND COMMUNITY SERVICES,CSS - OXFORD,CATERING PROVISIONS,14/07/2023,11007539059,32.12,ALDI STORES 775-142
OXFORDSHIRE CC,"CHILDRENS, YOUNG PEOPLE AND FAMILIES",DIDCOT MOVE-ON HOME,HARDWARE AND CROCKERY,14/07/2023,11007539107,66,HOMEBASE LTD
